Body Name,Transaction Number,Account Code Description,Expenses Type,Service Code,Service Area Categorisation,Supplier Name,Date,Amount
Bath and North East Somerset Council,10831670,LN4,Mobile Phones,P10,Finance & Efficiency,EE LIMITED,14/09/2013,660
Bath and North East Somerset Council,10831671,LN4,Mobile Phones,P10,Finance & Efficiency,ORANGE PCS,22/06/2015,1434
Bath and North East Somerset Council,10836128,LM6,Nursing Care,P11,Adult Social Care & Health,JASMINE COURT NURSIING HOME,25/08/2015,488.57
Bath and North East Somerset Council,10836128,LM6,Nursing Care,P11,Adult Social Care & Health,JASMINE COURT NURSIING HOME,25/08/2015,570
Bath and North East Somerset Council,10836128,LM6,Nursing Care,P11,Adult Social Care & Health,JASMINE COURT NURSIING HOME,25/08/2015,570
Bath and North East Somerset Council,10836128,LM6,Nursing Care,P11,Adult Social Care & Health,JASMINE COURT NURSIING HOME,25/08/2015,570
Bath and North East Somerset Council,10836128,LM6,Nursing Care,P11,Adult Social Care & Health,JASMINE COURT NURSIING HOME,25/08/2015,570
Bath and North East Somerset Council,10836128,LM6,Nursing Care,P11,Adult Social Care & Health,JASMINE COURT NURSIING HOME,25/08/2015,570
Bath and North East Somerset Council,10836128,LM6,Nursing Care,P11,Adult Social Care & Health,JASMINE COURT NURSIING HOME,25/08/2015,570
Bath and North East Somerset Council,10836128,LM6,Nursing Care,P11,Adult Social Care & Health,JASMINE COURT NURSIING HOME,25/08/2015,570
Bath and North East Somerset Council,10832128,LL8,Individualised Budget,P11,Adult Social Care & Health,REDACTED,25/01/2016,603.43
Bath and North East Somerset Council,10832128,LL8,Individualised Budget,P11,Adult Social Care & Health,REDACTED,25/01/2016,704
Bath and North East Somerset Council,10832128,LL8,Individualised Budget,P11,Adult Social Care & Health,REDACTED,25/01/2016,704
Bath and North East Somerset Council,10839821,LE1,Education Payment (independent school),P12,Children's Services,EXETER ROYAL ACADEMY FOR DEAF EDUCATION,27/10/2016,1163.86
Bath and North East Somerset Council,10833321,LJ3,Other Services to the Council,P04,Leader,CENTRE FOR SUSTAINABLE ENERGY,01/11/2016,4513.58
Bath and North East Somerset Council,10839490,HP8,Service Charges,P10,Finance & Efficiency,SAVILLS COM LTD MANAGEMENT CLIENT ACC,15/11/2016,2693.31
Bath and North East Somerset Council,10839491,HP8,Service Charges,P10,Finance & Efficiency,SAVILLS COM LTD MANAGEMENT CLIENT ACC,15/11/2016,2693.31
Bath and North East Somerset Council,10833164,3E5,IT Hardware,P04,Leader,BT GLOBAL SERVICES,22/11/2016,1204
Bath and North East Somerset Council,10837560,HP8,Service Charges,P10,Finance & Efficiency,CAPITA P AND I LTD CLIENT A/C 0005-COMMON,25/11/2016,3327.31
Bath and North East Somerset Council,10830671,HA1,Responsive Maintenance,P10,Finance & Efficiency,N K S CONTRACTS LTD,03/01/2017,28.13
Bath and North East Somerset Council,10830671,3C4,Building Works,P13,Economic Development,N K S CONTRACTS LTD,03/01/2017,110.88
Bath and North East Somerset Council,10830671,3C4,Building Works,P10,Finance & Efficiency,N K S CONTRACTS LTD,03/01/2017,135
Bath and North East Somerset Council,10831337,LJ3,Other Services to the Council,P10,Finance & Efficiency,RUNDLES & CO LTD,03/01/2017,150
Bath and North East Somerset Council,10830671,HA1,Responsive Maintenance,P01,Transport,N K S CONTRACTS LTD,03/01/2017,213.75
Bath and North East Somerset Council,10830671,3C4,Building Works,P10,Finance & Efficiency,N K S CONTRACTS LTD,03/01/2017,253.11
Bath and North East Somerset Council,10830671,HA1,Responsive Maintenance,P10,Finance & Efficiency,N K S CONTRACTS LTD,03/01/2017,354.54
Bath and North East Somerset Council,10830671,HA1,Responsive Maintenance,P10,Finance & Efficiency,N K S CONTRACTS LTD,03/01/2017,426.38
Bath and North East Somerset Council,10831300,HV1,Contract Cleaning,P10,Finance & Efficiency,DIRECT CLEANING SERVICES UK LTD,03/01/2017,445
Bath and North East Somerset Council,10831044,LN5,Data Lines,P10,Finance & Efficiency,ACCESS INFRASTRUCTURE,03/01/2017,534.72
Bath and North East Somerset Council,10831424,LA5,Materials,P14,Community Services,G WILLIAMS & SONS LTD,03/01/2017,563
Bath and North East Somerset Council,10831425,LA5,Materials,P14,Community Services,BONINGALE NURSERIES,03/01/2017,660.86
Bath and North East Somerset Council,10830671,HA1,Responsive Maintenance,P10,Finance & Efficiency,N K S CONTRACTS LTD,03/01/2017,665.49
Bath and North East Somerset Council,10831360,LK3,PCB Fees (paid),P01,Transport,MEDIACLASH LTD,03/01/2017,776
Bath and North East Somerset Council,10830935,LF5,Postages,P13,Economic Development,ROYAL MAIL GROUP PLC,03/01/2017,787
Bath and North East Somerset Council,10831355,LP5,Software Support,P10,Finance & Efficiency,ABRITAS LTD,03/01/2017,820.08
Bath and North East Somerset Council,10831358,HK1,Highway Maintenance,P01,Transport,DYNNIQ UK LTD,03/01/2017,827.95
Bath and North East Somerset Council,10830671,HA1,Responsive Maintenance,P10,Finance & Efficiency,N K S CONTRACTS LTD,03/01/2017,873.01
Bath and North East Somerset Council,10831370,LH2,Advertising,P09,Homes & Planning,LOCAL WORLD LTD,03/01/2017,939.48
Bath and North East Somerset Council,10831239,HP6,Water Charges,P14,Community Services,BWBSL,03/01/2017,965.21
Bath and North East Somerset Council,10831283,LF5,Postages,P04,Leader,ROYAL MAIL GROUP PLC,03/01/2017,1045.52
Bath and North East Somerset Council,10831369,LF5,Postages,P10,Finance & Efficiency,WHISTL UK LTD,03/01/2017,1684.85
Bath and North East Somerset Council,10831319,LJ1,Consultants Fees,P14,Community Services,CROFT SURVEYORS,03/01/2017,2070.8
Bath and North East Somerset Council,10831275,LJ3,Other Services to the Council,P14,Community Services,STONEMARK INDUSTRIAL LIMITED,03/01/2017,2600
Bath and North East Somerset Council,10831078,LN5,Data Lines,P10,Finance & Efficiency,TOTAL NETWORKING PEOPLE,03/01/2017,2616.01
Bath and North East Somerset Council,10831367,3F7,External Fees,P10,Finance & Efficiency,N K S CONTRACTS LTD,03/01/2017,6901.13
Bath and North East Somerset Council,10830671,HA1,Responsive Maintenance,P10,Finance & Efficiency,N K S CONTRACTS LTD,03/01/2017,7055.84
Bath and North East Somerset Council,10831356,HA3,Planned Maintenance,P13,Economic Development,H MEALING & SONS LTD,03/01/2017,7879.1
Bath and North East Somerset Council,10830990,3C4,Building Works,P01,Transport,ERH COMMUNICATIONS LTD,03/01/2017,10242.4
Bath and North East Somerset Council,10831353,LK1,Fees,P12,Children's Services,NHS BATH & NORTH EAST SOMERSET CCG,03/01/2017,12187.14
Bath and North East Somerset Council,10830671,HA1,Responsive Maintenance,P10,Finance & Efficiency,N K S CONTRACTS LTD,03/01/2017,15443.02
Bath and North East Somerset Council,10831116,LJ1,Consultants Fees,P12,Children's Services,OXFORD COMPUTER CONSULTANTS,03/01/2017,16492.8
Bath and North East Somerset Council,10831134,LV2,Contributions to Organisations,Z98,West of England Partnership,BATH COLLEGE,03/01/2017,23118
Bath and North East Somerset Council,10831361,DB1,Agency Staff,P10,Finance & Efficiency,COMENSURA LTD,03/01/2017,33509.17
Bath and North East Somerset Council,10831135,LV2,Contributions to Organisations,Z98,West of England Partnership,CITY OF BRISTOL COLLEGE,03/01/2017,83652
Bath and North East Somerset Council,10831308,HK2,Street Lighting Maintenance,P01,Transport,SOUTHERN ELECTRIC CONTRACTING LTD,03/01/2017,84513.26
Bath and North East Somerset Council,10831256,PB4,Payments to Private Contractors,P14,Community Services,SUEZ RECYCLING AND RECOVERY UK LTD,03/01/2017,167595.42
Bath and North East Somerset Council,80655830,LL5,Adoption Allowances,P12,Children's Services,REDACTED,04/01/2017,728.82
Bath and North East Somerset Council,80655830,LL5,Adoption Allowances,P12,Children's Services,REDACTED,04/01/2017,742.8
Bath and North East Somerset Council,80655875,PG1,Rent Allowances,P10,Finance & Efficiency,ADVANCE HOUSING SUPPORT & SUPPOR,04/01/2017,2088.84
Bath and North East Somerset Council,10831495,DB1,Agency Staff,P01,Transport,MARIAN CALINOIU (MARIO PRIVATE HIRE LTD),04/01/2017,40
Bath and North East Somerset Council,10831447,LJ4,Contracts,P01,Transport,AVON MINI BUSES LTD,04/01/2017,188
Bath and North East Somerset Council,80655856,LL5,Adoption Allowances,P12,Children's Services,REDACTED,04/01/2017,871.12
Bath and North East Somerset Council,10831415,LM6,Nursing Care,P11,Adult Social Care & Health,CARE AT ROBERTSBRIDGE LTD,04/01/2017,594.21
Bath and North East Somerset Council,10831376,LM6,Nursing Care,P11,Adult Social Care & Health,CARE FIRST CARE HOMES LTD,04/01/2017,189.64
Bath and North East Somerset Council,10831376,LM6,Nursing Care,P11,Adult Social Care & Health,CARE FIRST CARE HOMES LTD,04/01/2017,568.93
Bath and North East Somerset Council,10831389,LM6,Nursing Care,P11,Adult Social Care & Health,CEDAR CARE HOMES LTD,04/01/2017,189.64
Bath and North East Somerset Council,10831389,LM6,Nursing Care,P11,Adult Social Care & Health,CEDAR CARE HOMES LTD,04/01/2017,1295.89
Bath and North East Somerset Council,10831490,LJ4,Contracts,P01,Transport,RADSTOCK TAXIS,04/01/2017,360
Bath and North East Somerset Council,10831401,LM6,Nursing Care,P11,Adult Social Care & Health,CRANHILL NURSING HOME LTD,04/01/2017,676.39
Bath and North East Somerset Council,10831405,LM6,Nursing Care,P11,Adult Social Care & Health,CULVERHAY NURSING HOME,04/01/2017,189.64
Bath and North East Somerset Council,10831405,LM6,Nursing Care,P11,Adult Social Care & Health,CULVERHAY NURSING HOME,04/01/2017,5758.82
Bath and North East Somerset Council,80655804,LM2,Foster Carer Allowances,P12,Children's Services,REDACTED,04/01/2017,581.46
Bath and North East Somerset Council,10831492,LJ4,Contracts,P01,Transport,S. J. & J M MUNDEN T/A GUYAN MINI BUSES,04/01/2017,700
Bath and North East Somerset Council,10831520,LJ4,Contracts,P01,Transport,PLUTO ENTERPRISES LTD T/A A.F.C. TAXIS,04/01/2017,720
Bath and North East Somerset Council,10830915,LK1,Fees,P10,Finance & Efficiency,HMCS,04/01/2017,759
Bath and North East Somerset Council,10831465,LJ4,Contracts,P01,Transport,RUSSELLS OF BATH PRIVATE HIRE,04/01/2017,759
Bath and North East Somerset Council,10831544,LD1,Protective & Safety Clothing,P14,Community Services,SMI GROUP,04/01/2017,797.5
Bath and North East Somerset Council,10831460,LJ4,Contracts,P01,Transport,ROMAN BATH TRANSPORT,04/01/2017,800
Bath and North East Somerset Council,10831475,LJ4,Contracts,P01,Transport,STEVE WARREN TRANSPORT SERVICES LTD,04/01/2017,826.08
Bath and North East Somerset Council,10831506,LJ4,Contracts,P01,Transport,RUSSELLS OF BATH PRIVATE HIRE,04/01/2017,828
Bath and North East Somerset Council,10831488,LJ4,Contracts,P01,Transport,ROMAN BATH TRANSPORT,04/01/2017,852
Bath and North East Somerset Council,10831508,LJ4,Contracts,P01,Transport,RUSSELLS OF BATH PRIVATE HIRE,04/01/2017,876
Bath and North East Somerset Council,10831466,LM1,Volunt Homes Placements Top/Up,P12,Children's Services,CYGNET SURREY LTD,04/01/2017,888
Bath and North East Somerset Council,10831559,EA2,Professional Subscriptions,P14,Community Services,CHARTERED TRADING STANDARDS INSTITUTE,04/01/2017,892.4
Bath and North East Somerset Council,10831471,LJ4,Contracts,P01,Transport,TRAVELBILLITY LTD,04/01/2017,900
Bath and North East Somerset Council,10831468,LJ4,Contracts,P01,Transport,MR M L BRACEY T/A A B M MINIBUSES,04/01/2017,921.6
Bath and North East Somerset Council,10831446,LJ4,Contracts,P01,Transport,MR M L BRACEY T/A A B M MINIBUSES,04/01/2017,928.08
Bath and North East Somerset Council,10831513,LJ4,Contracts,P01,Transport,RUSSELLS OF BATH PRIVATE HIRE,04/01/2017,948
Bath and North East Somerset Council,10831464,LJ4,Contracts,P01,Transport,RUSSELLS OF BATH PRIVATE HIRE,04/01/2017,972
Bath and North East Somerset Council,10831462,LJ4,Contracts,P01,Transport,RUSSELLS OF BATH PRIVATE HIRE,04/01/2017,975
Bath and North East Somerset Council,80653283,LL8,Individualised Budget,P11,Adult Social Care & Health,REDACTED,04/01/2017,3836.62
Bath and North East Somerset Council,10831441,HE1,General Maintenance,P14,Community Services,ARCO SOUTH WEST,04/01/2017,986.1
Bath and North East Somerset Council,10831514,LJ4,Contracts,P01,Transport,RUSSELLS OF BATH PRIVATE HIRE,04/01/2017,996
Bath and North East Somerset Council,10831493,LJ4,Contracts,P01,Transport,MARIAN CALINOIU (MARIO PRIVATE HIRE LTD),04/01/2017,1080
Bath and North East Somerset Council,10831461,LJ4,Contracts,P01,Transport,RUSSELLS OF BATH PRIVATE HIRE,04/01/2017,1200
Bath and North East Somerset Council,10831428,LM6,Nursing Care,P11,Adult Social Care & Health,LIFESTYLE CARE (2011) PLC,04/01/2017,575.25
Bath and North East Somerset Council,80653576,LM6,Nursing Care,P11,Adult Social Care & Health,LIFESTYLE CARE (2011) PLC,04/01/2017,1292.56
Bath and North East Somerset Council,10830654,LJ2,Legal Fees,P12,Children's Services,REDACTED,04/01/2017,1400
Bath and North East Somerset Council,10831495,LJ4,Contracts,P01,Transport,MARIAN CALINOIU (MARIO PRIVATE HIRE LTD),04/01/2017,1320
Bath and North East Somerset Council,10831110,3E5,IT Hardware,P10,Finance & Efficiency,CARILLION COMMUNICATIONS LTD,04/01/2017,1320
Bath and North East Somerset Council,80655805,LM2,Foster Carer Allowances,P12,Children's Services,REDACTED,04/01/2017,417
Bath and North East Somerset Council,80655805,LM2,Foster Carer Allowances,P12,Children's Services,REDACTED,04/01/2017,417
Bath and North East Somerset Council,10831489,LJ4,Contracts,P01,Transport,ROMAN BATH TRANSPORT,04/01/2017,1344
Bath and North East Somerset Council,80655861,LL4,Direct Payments,P12,Children's Services,REDACTED,04/01/2017,1928.64
Bath and North East Somerset Council,80655874,PG1,Rent Allowances,P10,Finance & Efficiency,REDACTED,04/01/2017,991.96
Bath and North East Somerset Council,80655868,PG1,Rent Allowances,P10,Finance & Efficiency,REDACTED,04/01/2017,735
Bath and North East Somerset Council,80655799,LM2,Foster Carer Allowances,P12,Children's Services,REDACTED,04/01/2017,100
Bath and North East Somerset Council,80655799,LM2,Foster Carer Allowances,P12,Children's Services,REDACTED,04/01/2017,100
Bath and North East Somerset Council,80655799,LM2,Foster Carer Allowances,P12,Children's Services,REDACTED,04/01/2017,286
Bath and North East Somerset Council,80655799,LM2,Foster Carer Allowances,P12,Children's Services,REDACTED,04/01/2017,286
Bath and North East Somerset Council,80655831,LM2,Foster Carer Allowances,P12,Children's Services,REDACTED,04/01/2017,100
Bath and North East Somerset Council,80655831,LM2,Foster Carer Allowances,P12,Children's Services,REDACTED,04/01/2017,100
Bath and North East Somerset Council,80655831,LM2,Foster Carer Allowances,P12,Children's Services,REDACTED,04/01/2017,286
Bath and North East Somerset Council,80655831,LM2,Foster Carer Allowances,P12,Children's Services,REDACTED,04/01/2017,286
Bath and North East Somerset Council,80655831,LM2,Foster Carer Allowances,P12,Children's Services,REDACTED,04/01/2017,785.96
Bath and North East Somerset Council,80655860,LL4,Direct Payments,P12,Children's Services,REDACTED,04/01/2017,1175.66
Bath and North East Somerset Council,80655862,LL4,Direct Payments,P12,Children's Services,REDACTED,04/01/2017,770.54
Bath and North East Somerset Council,80655817,LM4,Respite Care,P12,Children's Services,REDACTED,04/01/2017,50
Bath and North East Somerset Council,80655817,LM4,Respite Care,P12,Children's Services,REDACTED,04/01/2017,125
Bath and North East Somerset Council,80655817,LM4,Respite Care,P12,Children's Services,REDACTED,04/01/2017,202.78
Bath and North East Somerset Council,80655817,LM1,Volunt Homes Placements Top/Up,P12,Children's Services,REDACTED,04/01/2017,377.78
Bath and North East Somerset Council,10831505,LJ4,Contracts,P01,Transport,BUGLERS COACHES LIMITED,04/01/2017,1680
Bath and North East Somerset Council,10831529,LN5,Data Lines,P10,Finance & Efficiency,BRITISH TELECOM,04/01/2017,1738
Bath and North East Somerset Council,10831447,LJ4,Contracts,P01,Transport,AVON MINI BUSES LTD,04/01/2017,1776
Bath and North East Somerset Council,10831479,LJ4,Contracts,P01,Transport,EAGLE COACHES LTD,04/01/2017,1798.8
Bath and North East Somerset Council,10831481,LJ4,Contracts,P01,Transport,BUGLERS COACHES LIMITED,04/01/2017,1800
Bath and North East Somerset Council,10831504,LJ4,Contracts,P01,Transport,BUGLERS COACHES LIMITED,04/01/2017,1800
Bath and North East Somerset Council,10831457,LA3,Equipment Maintenance (Non Medical),P14,Community Services,D BRASH & SONS LTD,04/01/2017,1862
Bath and North East Somerset Council,10831516,LJ4,Contracts,P01,Transport,BUGLERS COACHES LIMITED,04/01/2017,1920
Bath and North East Somerset Council,10831487,LJ4,Contracts,P01,Transport,EAGLE COACHES LTD,04/01/2017,1942.8
Bath and North East Somerset Council,80655794,LM2,Foster Carer Allowances,P12,Children's Services,REDACTED,04/01/2017,100
Bath and North East Somerset Council,80655794,LM2,Foster Carer Allowances,P12,Children's Services,REDACTED,04/01/2017,140
Bath and North East Somerset Council,80655794,LM2,Foster Carer Allowances,P12,Children's Services,REDACTED,04/01/2017,143
Bath and North East Somerset Council,80655794,LM2,Foster Carer Allowances,P12,Children's Services,REDACTED,04/01/2017,286
Bath and North East Somerset Council,10831507,LJ4,Contracts,P01,Transport,BUGLERS COACHES LIMITED,04/01/2017,2160
Bath and North East Somerset Council,10831515,LJ4,Contracts,P01,Transport,BUGLERS COACHES LIMITED,04/01/2017,2160
Bath and North East Somerset Council,10831537,HE1,General Maintenance,P01,Transport,E W HOBBS,04/01/2017,2375.5
Bath and North East Somerset Council,10831503,LJ4,Contracts,P01,Transport,MARIAN CALINOIU (MARIO PRIVATE HIRE LTD),04/01/2017,2391
Bath and North East Somerset Council,10831562,3F7,External Fees,P13,Economic Development,MDA CONSULTING LTD,04/01/2017,2812.5
Bath and North East Somerset Council,10831533,LJ4,Contracts,P11,Adult Social Care & Health,SIRONA CARE & HEALTH C.I.C.,04/01/2017,335738.42
Bath and North East Somerset Council,80655866,LE3,Statementing Payments to B&NES schools,P12,Children's Services,PALLADIAN ACADEMY TRUST RE OLDFIELD PARK JUNIOR,04/01/2017,3105
Bath and North East Somerset Council,10831467,LM2,Foster Carer Allowances,P12,Children's Services,NATIONAL FOSTERING AGENCY,04/01/2017,3274.2
Bath and North East Somerset Council,10831490,LJ4,Contracts,P01,Transport,RADSTOCK TAXIS,04/01/2017,3564
Bath and North East Somerset Council,10831414,LM6,Nursing Care,P11,Adult Social Care & Health,T C CAREHOME LTD,04/01/2017,189.64
Bath and North East Somerset Council,10831414,LM6,Nursing Care,P11,Adult Social Care & Health,T C CAREHOME LTD,04/01/2017,240.21
Bath and North East Somerset Council,10831276,3G1,Grants/Advances,P11,Adult Social Care & Health,STANNAH LIFT SERVICES LIMITED,04/01/2017,4555
Bath and North East Somerset Council,10831414,LM6,Nursing Care,P11,Adult Social Care & Health,T C CAREHOME LTD,04/01/2017,1024.07
Bath and North East Somerset Council,10831484,LJ4,Contracts,P01,Transport,REDACTED,04/01/2017,649
Bath and North East Somerset Council,10831483,LJ4,Contracts,P01,Transport,REDACTED,04/01/2017,1180
Bath and North East Somerset Council,10831482,LJ4,Contracts,P01,Transport,REDACTED,04/01/2017,1296
Bath and North East Somerset Council,10831492,LJ4,Contracts,P01,Transport,S. J. & J M MUNDEN T/A GUYAN MINI BUSES,04/01/2017,5629.08
Bath and North East Somerset Council,10831434,LM6,Nursing Care,P11,Adult Social Care & Health,THE ROYAL LEICESTERSHIRE RUTLAND & WYCLIFFE SOCIETY FOR THE BLIND,04/01/2017,638.46
Bath and North East Somerset Council,10831473,LJ4,Contracts,P01,Transport,ARLEEN COACH & HIRE SERVICES L,04/01/2017,6612
Bath and North East Somerset Council,10831527,EA1,Training,P14,Community Services,TELESHORE UK LTD,04/01/2017,6626
Bath and North East Somerset Council,10831509,LJ4,Contracts,P01,Transport,TOMMY JUKES,04/01/2017,6863.76
Bath and North East Somerset Council,10831475,LJ4,Contracts,P01,Transport,STEVE WARREN TRANSPORT SERVICES LTD,04/01/2017,7170.92
Bath and North East Somerset Council,10831510,HP3,Room Hire Charges,P10,Finance & Efficiency,AQUATERRA LEISURE SERVICES LTD,04/01/2017,7807.85
Bath and North East Somerset Council,10831491,LJ4,Contracts,P01,Transport,CENTURION TRAVEL LTD,04/01/2017,7882.8
Bath and North East Somerset Council,10831497,LJ4,Contracts,P01,Transport,FILERS COACHES,04/01/2017,9120
Bath and North East Somerset Council,10831553,HE1,General Maintenance,P01,Transport,BRISTOL CITY COUNCIL,04/01/2017,17764
Bath and North East Somerset Council,10831536,LJ4,Contracts,P11,Adult Social Care & Health,SIRONA CARE SERVICES LTD,04/01/2017,18343.03
Bath and North East Somerset Council,10831530,LJ4,Contracts,P11,Adult Social Care & Health,SIRONA CARE SERVICES LTD,04/01/2017,18500
Bath and North East Somerset Council,10831458,LK1,Fees,P11,Adult Social Care & Health,NHS BATH & NORTH EAST SOMERSET CCG,04/01/2017,29166.67
Bath and North East Somerset Council,10831390,LM3,Residential Care,P11,Adult Social Care & Health,YELDALL CHRISTIAN CENTRES,04/01/2017,799
Bath and North East Somerset Council,10831541,LJ4,Contracts,P12,Children's Services,SOUTHSIDE FAMILY PROJECT,04/01/2017,68547.66
Bath and North East Somerset Council,10831393,LJ4,Contracts,P14,Community Services,GREENWICH LEISURE LIMITED,04/01/2017,71700
Bath and North East Somerset Council,10831531,LJ4,Contracts,P11,Adult Social Care & Health,SIRONA CARE SERVICES LTD,04/01/2017,75855.45
Bath and North East Somerset Council,10831451,LK1,Fees,P11,Adult Social Care & Health,NHS BATH & NORTH EAST SOMERSET CCG,04/01/2017,87500
Bath and North East Somerset Council,10831535,LJ4,Contracts,P11,Adult Social Care & Health,SIRONA CARE SERVICES LTD,04/01/2017,188825.05
Bath and North East Somerset Council,10831534,LJ4,Contracts,P11,Adult Social Care & Health,SIRONA CARE SERVICES LTD,04/01/2017,428296.29
Bath and North East Somerset Council,80655947,PG1,Rent Allowances,P10,Finance & Efficiency,REDACTED,05/01/2017,585
Bath and North East Somerset Council,80655920,PG1,Rent Allowances,P10,Finance & Efficiency,REDACTED,05/01/2017,1153.84
Bath and North East Somerset Council,80656050,PG1,Rent Allowances,P10,Finance & Efficiency,REDACTED,05/01/2017,542.96
Bath and North East Somerset Council,80655892,LK4,Nursery/Childcare Vouchers,P12,Children's Services,REDACTED,05/01/2017,772.8
Bath and North East Somerset Council,80656051,PG1,Rent Allowances,P10,Finance & Efficiency,ALLEN RESIDENTIAL LETTINGS,05/01/2017,1585.24
Bath and North East Somerset Council,80655921,PG1,Rent Allowances,P10,Finance & Efficiency,ALLIANCE HOMES GROUP,05/01/2017,564.04
Bath and North East Somerset Council,10831552,EA1,Training,P14,Community Services,DRIVER HIRE NATIONWIDE,05/01/2017,96.25
Bath and North East Somerset Council,80655993,PG1,Rent Allowances,P10,Finance & Efficiency,BARONS PROPERTY AGENTS,05/01/2017,2078.2
Bath and North East Somerset Council,80656054,PG1,Rent Allowances,P10,Finance & Efficiency,BATH & DISTRICT LIFE CARE,05/01/2017,2633.76
Bath and North East Somerset Council,80655901,PG1,Rent Allowances,P10,Finance & Efficiency,BATH PROPERTY LETTING,05/01/2017,2722.64
Bath and North East Somerset Council,80655912,PG1,Rent Allowances,P10,Finance & Efficiency,C F LETTINGS (BATH) LTD T/A DOVE,05/01/2017,876.92
Bath and North East Somerset Council,10831643,3F7,External Fees,P12,Children's Services,MACE LIMITED,05/01/2017,374
Bath and North East Somerset Council,10831545,EA1,Training,P14,Community Services,TELESHORE UK LTD,05/01/2017,485
Bath and North East Somerset Council,10831665,LV2,Contributions to Organisations,P04,Leader,BATH AREA PLAY PROJECT,05/01/2017,500
Bath and North East Somerset Council,80656058,PG1,Rent Allowances,P10,Finance & Efficiency,CURO,05/01/2017,19329.22
Bath and North East Somerset Council,80656057,PG1,Rent Allowances,P10,Finance & Efficiency,CURO,05/01/2017,67409.33
Bath and North East Somerset Council,10831552,EA1,Training,P14,Community Services,DRIVER HIRE NATIONWIDE,05/01/2017,527.45
Bath and North East Somerset Council,10831521,KE3,Transport & Travel,P10,Finance & Efficiency,MR P AUSTIN,05/01/2017,580
Bath and North East Somerset Council,10831600,LJ2,Legal Fees,P12,Children's Services,HEALTHCARE SOUTH WEST LTD,05/01/2017,645
Bath and North East Somerset Council,10831611,LA1,Equipment Purchase (Non Medical),P10,Finance & Efficiency,LIONEL SAUNDERS & CO (BRISTOL),05/01/2017,685
Bath and North East Somerset Council,10831550,KB1,Hire of Vehicles,P14,Community Services,SHB HIRE LTD,05/01/2017,691.5
Bath and North East Somerset Council,80655900,LK4,Nursery/Childcare Vouchers,P12,Children's Services,KINGSWOOD PRE SCHOOL,05/01/2017,698.1
Bath and North East Somerset Council,80655879,LK4,Nursery/Childcare Vouchers,P12,Children's Services,ROYAL HIGH SCHOOL,05/01/2017,698.1
Bath and North East Somerset Council,80655882,LK4,Nursery/Childcare Vouchers,P12,Children's Services,THE PARAGON SCHOOL,05/01/2017,698.1
Bath and North East Somerset Council,10831638,LJ2,Legal Fees,P12,Children's Services,MS GEMMA CHAPMAN,05/01/2017,700
Bath and North East Somerset Council,10831564,HN1,Electricity,P01,Transport,SOUTHERN ELECTRIC PLC,05/01/2017,718.75
Bath and North East Somerset Council,10831595,LK1,Fees,P12,Children's Services,TALKOUT SERVICES LTD,05/01/2017,726.77
Bath and North East Somerset Council,10831645,3F7,External Fees,P01,Transport,MACE LIMITED,05/01/2017,748
Bath and North East Somerset Council,10831558,EA1,Training,P04,Leader,VEALE WASBROUGH VIZARDS,05/01/2017,750
Bath and North East Somerset Council,10831640,KA3,Fuel,P14,Community Services,FORD FUELS LTD,05/01/2017,779.25
Bath and North East Somerset Council,10831522,KE3,Transport & Travel,P10,Finance & Efficiency,MR P AUSTIN,05/01/2017,780
Bath and North East Somerset Council,10831644,LJ4,Contracts,P11,Adult Social Care & Health,SIRONA CARE SERVICES LTD,05/01/2017,825.08
Bath and North East Somerset Council,10831631,KA3,Fuel,P14,Community Services,ALLSTAR BUSINESS SOLUTIONS LTD,05/01/2017,837.46
Bath and North East Somerset Council,10831588,LK1,Fees,P12,Children's Services,TALKOUT SERVICES LTD,05/01/2017,849.75
Bath and North East Somerset Council,10831604,LH2,Advertising,P09,Homes & Planning,LOCAL WORLD LTD,05/01/2017,870
Bath and North East Somerset Council,80655987,PG1,Rent Allowances,P10,Finance & Efficiency,EXORS OF REDACTED,05/01/2017,641.52
Bath and North East Somerset Council,80655898,LK4,Nursery/Childcare Vouchers,P12,Children's Services,FIRST STEPS NURSERY,05/01/2017,638.82
Bath and North East Somerset Council,80655891,LK4,Nursery/Childcare Vouchers,P12,Children's Services,FIRST STEPS WESTON,05/01/2017,772.8
Bath and North East Somerset Council,10831637,LH2,Advertising,P09,Homes & Planning,LOCAL WORLD LTD,05/01/2017,939.48
Bath and North East Somerset Council,10831590,LK1,Fees,P12,Children's Services,TALKOUT SERVICES LTD,05/01/2017,953
Bath and North East Somerset Council,10831594,LK1,Fees,P12,Children's Services,TALKOUT SERVICES LTD,05/01/2017,953
Bath and North East Somerset Council,10831668,LL4,Direct Payments,P12,Children's Services,REDACTED,05/01/2017,811.44
Bath and North East Somerset Council,80655996,PG1,Rent Allowances,P10,Finance & Efficiency,HANOVER HOUSING ASSOCIATION,05/01/2017,1544.04
Bath and North East Somerset Council,10831560,KE3,Transport & Travel,P10,Finance & Efficiency,1ST AVENUE TRAVEL,05/01/2017,980
Bath and North East Somerset Council,80655982,PG1,Rent Allowances,P10,Finance & Efficiency,REDACTED,05/01/2017,7493.69
Bath and North East Somerset Council,10829066,EG3,Recruitment Advertising,P14,Community Services,TMP (UK) LTD,05/01/2017,1030
Bath and North East Somerset Council,80655981,PG1,Rent Allowances,P10,Finance & Efficiency,KNIGHTSTONE HOUSING ASSOCIATION,05/01/2017,1361.72
Bath and North East Somerset Council,80655977,PG1,Rent Allowances,P10,Finance & Efficiency,KNIGHTSTONE HOUSING ASSOCIATION,05/01/2017,8074.58
Bath and North East Somerset Council,80655994,PG1,Rent Allowances,P10,Finance & Efficiency,KNIGHTSTONE HOUSING ASSOCIATION,05/01/2017,9737.31
Bath and North East Somerset Council,80655896,LK4,Nursery/Childcare Vouchers,P12,Children's Services,EAST HARPTREE PRE-SCHOOL,05/01/2017,1064.7
Bath and North East Somerset Council,80655880,LK4,Nursery/Childcare Vouchers,P12,Children's Services,ST JOHNS C OF E PRIMARY SCHOOL,05/01/2017,1074.68
Bath and North East Somerset Council,10831567,LJ4,Contracts,P14,Community Services,WORCESTERSHIRE COUNTY COUNCIL,05/01/2017,1098.94
Bath and North East Somerset Council,10831643,3F7,External Fees,P12,Children's Services,MACE LIMITED,05/01/2017,1122
Bath and North East Somerset Council,10831577,LJ2,Legal Fees,P12,Children's Services,MISS ESTHER LIEU,05/01/2017,1175
Bath and North East Somerset Council,10831542,LW9,Other Expenses,P10,Finance & Efficiency,TUSKER DIRECT LTD,05/01/2017,1236.69
Bath and North East Somerset Council,80655922,PG1,Rent Allowances,P10,Finance & Efficiency,REDACTED,05/01/2017,969.32
Bath and North East Somerset Council,80656000,PG1,Rent Allowances,P10,Finance & Efficiency,REDACTED,05/01/2017,796.62
Bath and North East Somerset Council,80655908,PG1,Rent Allowances,P10,Finance & Efficiency,REDACTED,05/01/2017,1991.62
Bath and North East Somerset Council,10831576,LJ2,Legal Fees,P12,Children's Services,REDACTED,05/01/2017,900
Bath and North East Somerset Council,10831578,LJ2,Legal Fees,P12,Children's Services,REDACTED,05/01/2017,900
Bath and North East Somerset Council,80655959,PG1,Rent Allowances,P10,Finance & Efficiency,REDACTED,05/01/2017,624.43
Bath and North East Somerset Council,80655953,PG1,Rent Allowances,P10,Finance & Efficiency,REDACTED,05/01/2017,1204.02
Bath and North East Somerset Council,80655966,PG1,Rent Allowances,P10,Finance & Efficiency,REDACTED,05/01/2017,564.88
Bath and North East Somerset Council,80656020,PG1,Rent Allowances,P10,Finance & Efficiency,REDACTED,05/01/2017,668.92
Bath and North East Somerset Council,80656025,PG1,Rent Allowances,P10,Finance & Efficiency,REDACTED,05/01/2017,573.36
Bath and North East Somerset Council,80655998,PG1,Rent Allowances,P10,Finance & Efficiency,REDACTED,05/01/2017,521.52
Bath and North East Somerset Council,80656032,PG1,Rent Allowances,P10,Finance & Efficiency,REDACTED,05/01/2017,507.52
Bath and North East Somerset Council,80655910,PG1,Rent Allowances,P10,Finance & Efficiency,REDACTED,05/01/2017,561
Bath and North East Somerset Council,80655930,PG1,Rent Allowances,P10,Finance & Efficiency,REDACTED,05/01/2017,1163.08
Bath and North East Somerset Council,80655960,PG1,Rent Allowances,P10,Finance & Efficiency,REDACTED,05/01/2017,521.28
Bath and North East Somerset Council,80656003,PG1,Rent Allowances,P10,Finance & Efficiency,REDACTED,05/01/2017,1050.64
Bath and North East Somerset Council,80655980,PG1,Rent Allowances,P10,Finance & Efficiency,REDACTED,05/01/2017,663.73
Bath and North East Somerset Council,80655914,PG1,Rent Allowances,P10,Finance & Efficiency,REDACTED,05/01/2017,507.68
Bath and North East Somerset Council,80655923,PG1,Rent Allowances,P10,Finance & Efficiency,REDACTED,05/01/2017,532.88
Bath and North East Somerset Council,80655916,PG1,Rent Allowances,P10,Finance & Efficiency,REDACTED,05/01/2017,588.44
Bath and North East Somerset Council,80656017,PG1,Rent Allowances,P10,Finance & Efficiency,REDACTED,05/01/2017,754.02
Bath and North East Somerset Council,80656039,PG1,Rent Allowances,P10,Finance & Efficiency,REDACTED,05/01/2017,600
Bath and North East Somerset Council,80656026,PG1,Rent Allowances,P10,Finance & Efficiency,REDACTED,05/01/2017,2173.32
Bath and North East Somerset Council,80656044,PG1,Rent Allowances,P10,Finance & Efficiency,REDACTED,05/01/2017,623.08
Bath and North East Somerset Council,80656034,PG1,Rent Allowances,P10,Finance & Efficiency,REDACTED,05/01/2017,903.96
Bath and North East Somerset Council,10831609,LJ2,Legal Fees,P12,Children's Services,REDACTED,05/01/2017,1650
Bath and North East Somerset Council,80656022,PG1,Rent Allowances,P10,Finance & Efficiency,REDACTED,05/01/2017,668.92
Bath and North East Somerset Council,80656006,PG1,Rent Allowances,P10,Finance & Efficiency,REDACTED,05/01/2017,553.84
Bath and North East Somerset Council,80656011,PG1,Rent Allowances,P10,Finance & Efficiency,REDACTED,05/01/2017,542.96
Bath and North East Somerset Council,80655964,PG1,Rent Allowances,P10,Finance & Efficiency,REDACTED,05/01/2017,553.84
Bath and North East Somerset Council,80656023,PG1,Rent Allowances,P10,Finance & Efficiency,REDACTED,05/01/2017,530.76
Bath and North East Somerset Council,80656038,PG1,Rent Allowances,P10,Finance & Efficiency,REDACTED,05/01/2017,1006.31
Bath and North East Somerset Council,80655919,PG1,Rent Allowances,P10,Finance & Efficiency,REDACTED,05/01/2017,981.73
Bath and North East Somerset Council,80656030,PG1,Rent Allowances,P10,Finance & Efficiency,REDACTED,05/01/2017,542.96
Bath and North East Somerset Council,10831522,KE3,Transport & Travel,P10,Finance & Efficiency,MR P AUSTIN,05/01/2017,1555
Bath and North East Somerset Council,80655904,PG1,Rent Allowances,P10,Finance & Efficiency,REDACTED,05/01/2017,784.64
Bath and North East Somerset Council,80655913,PG1,Rent Allowances,P10,Finance & Efficiency,REDACTED,05/01/2017,542.96
Bath and North East Somerset Council,80656035,PG1,Rent Allowances,P10,Finance & Efficiency,REDACTED,05/01/2017,648.08
Bath and North East Somerset Council,80656037,PG1,Rent Allowances,P10,Finance & Efficiency,REDACTED,05/01/2017,2378.96
Bath and North East Somerset Council,10831633,LJ4,Contracts,P01,Transport,BBFI LTD,05/01/2017,1600
Bath and North East Somerset Council,80656015,PG1,Rent Allowances,P10,Finance & Efficiency,REDACTED,05/01/2017,606
Bath and North East Somerset Council,80655915,PG1,Rent Allowances,P10,Finance & Efficiency,REDACTED,05/01/2017,661.84
Bath and North East Somerset Council,80655931,PG1,Rent Allowances,P10,Finance & Efficiency,REDACTED,05/01/2017,721.23
Bath and North East Somerset Council,80656041,PG1,Rent Allowances,P10,Finance & Efficiency,NEXT LINK,05/01/2017,4112.47
Bath and North East Somerset Council,10831619,LJ4,Contracts,P11,Adult Social Care & Health,SIRONA CARE SERVICES LTD,05/01/2017,1794.5
Bath and North East Somerset Council,80656042,PG1,Rent Allowances,P10,Finance & Efficiency,OPTIONS FOR LIVING LTD,05/01/2017,1906.16
Bath and North East Somerset Council,80656033,PG1,Rent Allowances,P10,Finance & Efficiency,P.E.O.P.L.E.,05/01/2017,2417.14
Bath and North East Somerset Council,80655979,PG1,Rent Allowances,P10,Finance & Efficiency,PEGASUS PROPERTIES,05/01/2017,1684.28
Bath and North East Somerset Council,10831496,LJ2,Legal Fees,P10,Finance & Efficiency,ASHFORDS LLP OFFICE ACCOUNT,05/01/2017,1908
Bath and North East Somerset Council,10831579,LJ2,Legal Fees,P12,Children's Services,MISS TANYA ZABIHI,05/01/2017,1950
Bath and North East Somerset Council,10831663,EA1,Training,P10,Finance & Efficiency,JULIE MAYCOCK,05/01/2017,1950
Bath and North East Somerset Council,80655995,PG1,Rent Allowances,P10,Finance & Efficiency,PLACES FOR PEOPLE HOMES,05/01/2017,3567.96
Bath and North East Somerset Council,10831629,LK1,Fees,P11,Adult Social Care & Health,SUITED AND BOOTED STUDIOS CIC,05/01/2017,2250
Bath and North East Somerset Council,10831561,LX6,Bus Revenue Support,P01,Transport,SOMERBUS LTD,05/01/2017,2439.84
Bath and North East Somerset Council,10831480,KB1,Hire of Vehicles,P14,Community Services,SFS LIMITED T/A CTS,05/01/2017,2550
Bath and North East Somerset Council,80655986,PG1,Rent Allowances,P10,Finance & Efficiency,SANCTUARY HOUSING ASSOCIATION,05/01/2017,1063.68
Bath and North East Somerset Council,80655925,PG1,Rent Allowances,P10,Finance & Efficiency,SELWOOD HOUSING,05/01/2017,1255
Bath and North East Somerset Council,80655911,PG1,Rent Allowances,P10,Finance & Efficiency,SHELAND LTD,05/01/2017,638.8
Bath and North East Somerset Council,80655999,PG1,Rent Allowances,P10,Finance & Efficiency,SOVEREIGN HOUSING ASSOCIATION,05/01/2017,635.66
Bath and North East Somerset Council,10831470,PB4,Payments to Private Contractors,P14,Community Services,FAIRPORT CONTAINERS LTD,05/01/2017,3590
Bath and North East Somerset Council,10831625,LJ4,Contracts,P11,Adult Social Care & Health,SIRONA CARE SERVICES LTD,05/01/2017,3707.5
Bath and North East Somerset Council,10831634,LJ4,Contracts,P11,Adult Social Care & Health,SIRONA CARE SERVICES LTD,05/01/2017,3750
Bath and North East Somerset Council,10831494,LJ1,Consultants Fees,P10,Finance & Efficiency,NEPRO LTD,05/01/2017,3984.74
Bath and North East Somerset Council,10831574,LJ1,Consultants Fees,P09,Homes & Planning,DTZ DEBENHAM TIE LEUNG LTD,05/01/2017,4250
Bath and North East Somerset Council,10831618,LJ4,Contracts,P11,Adult Social Care & Health,SIRONA CARE SERVICES LTD,05/01/2017,4316.25
Bath and North East Somerset Council,10831655,LJ4,Contracts,P11,Adult Social Care & Health,UNIVERSITY HOSPITALS BRISTOL,05/01/2017,4513.53
Bath and North East Somerset Council,10831620,LJ4,Contracts,P11,Adult Social Care & Health,SIRONA CARE SERVICES LTD,05/01/2017,4789.75
Bath and North East Somerset Council,80656049,PG1,Rent Allowances,P10,Finance & Efficiency,REDACTED,05/01/2017,4466.68
Bath and North East Somerset Council,80656004,PG1,Rent Allowances,P10,Finance & Efficiency,THE BATH PROPERTY SHOP,05/01/2017,1052.32
Bath and North East Somerset Council,80655983,PG1,Rent Allowances,P10,Finance & Efficiency,THE GUINNESS PARTNERSHIP,05/01/2017,2873.46
Bath and North East Somerset Council,80655984,PG1,Rent Allowances,P10,Finance & Efficiency,THE GUINNESS TRUST,05/01/2017,2119.54
Bath and North East Somerset Council,10831642,KA3,Fuel,P14,Community Services,FORD FUELS LTD,05/01/2017,5932.76
Bath and North East Somerset Council,10828967,EA1,Training,P10,Finance & Efficiency,QA LTD,05/01/2017,6347.3
Bath and North East Somerset Council,10831650,LJ4,Contracts,P11,Adult Social Care & Health,ROYAL UNITED HOSPITAL NHS TRUST,05/01/2017,6531.74
Bath and North East Somerset Council,10831292,LP5,Software Support,P10,Finance & Efficiency,NORTHGATE PUBLIC SERVICES (UK) LTD,05/01/2017,6969.58
Bath and North East Somerset Council,80656016,PG1,Rent Allowances,P10,Finance & Efficiency,TRUSTEASE PROPERTY MANAGEMENT LT,05/01/2017,1905.28
Bath and North East Somerset Council,10831635,LE1,Education Payment (independent school),P12,Children's Services,APPLEFORD SCHOOL,05/01/2017,7793
Bath and North East Somerset Council,10831542,LW9,Other Expenses,P10,Finance & Efficiency,TUSKER DIRECT LTD,05/01/2017,7970.55
Bath and North East Somerset Council,10831652,LJ4,Contracts,P11,Adult Social Care & Health,ROYAL UNITED HOSPITAL NHS TRUST,05/01/2017,9031.47
Bath and North East Somerset Council,10830595,LJ2,Legal Fees,P14,Community Services,MR ALAN FULLER,05/01/2017,9035
Bath and North East Somerset Council,10831666,3E6,IT Software,P04,Leader,BOOKING BUG,05/01/2017,9600
Bath and North East Somerset Council,10831647,LJ4,Contracts,P11,Adult Social Care & Health,SIRONA CARE SERVICES LTD,05/01/2017,12692.5
Bath and North East Somerset Council,10831589,PB3,Payments to Other Establishments,P12,Children's Services,WELLSWAY - REDACTED,05/01/2017,53000
Bath and North East Somerset Council,10831649,LJ4,Contracts,P11,Adult Social Care & Health,ROYAL UNITED HOSPITAL NHS TRUST,05/01/2017,14073.29
Bath and North East Somerset Council,10830790,LM2,Foster Carer Allowances,P12,Children's Services,NEXT STEP CARE MANAGEMENT LTD,05/01/2017,14142.86
Bath and North East Somerset Council,10831641,KA3,Fuel,P14,Community Services,FORD FUELS LTD,05/01/2017,18516.47
Bath and North East Somerset Council,10831511,HK1,Highway Maintenance,P01,Transport,DYNNIQ UK LTD,05/01/2017,20726.4
Bath and North East Somerset Council,10831626,LJ4,Contracts,P11,Adult Social Care & Health,SIRONA CARE SERVICES LTD,05/01/2017,23380
Bath and North East Somerset Council,10831648,LJ4,Contracts,P11,Adult Social Care & Health,SIRONA CARE SERVICES LTD,05/01/2017,23412.08
Bath and North East Somerset Council,10831646,LJ4,Contracts,P11,Adult Social Care & Health,SIRONA CARE SERVICES LTD,05/01/2017,23610.83
Bath and North East Somerset Council,10831586,LJ1,Consultants Fees,P12,Children's Services,KICKSTART ENTERPRISES  LTD,05/01/2017,23750
Bath and North East Somerset Council,10831615,LJ4,Contracts,P11,Adult Social Care & Health,SIRONA CARE SERVICES LTD,05/01/2017,24290.42
Bath and North East Somerset Council,10831616,LJ4,Contracts,P11,Adult Social Care & Health,SIRONA CARE SERVICES LTD,05/01/2017,26055.25
Bath and North East Somerset Council,10831639,DB1,Agency Staff,P10,Finance & Efficiency,COMENSURA LTD,05/01/2017,26709.34
Bath and North East Somerset Council,10831653,LJ4,Contracts,P11,Adult Social Care & Health,ROYAL UNITED HOSPITAL NHS TRUST,05/01/2017,41871.6
Bath and North East Somerset Council,10831617,LJ4,Contracts,P11,Adult Social Care & Health,SIRONA CARE SERVICES LTD,05/01/2017,49056.75
Bath and North East Somerset Council,10831547,LP9,IT Support Costs,P12,Children's Services,SOUTH WEST GRID FOR LEARNING TRUST LTD,05/01/2017,53002.17
Bath and North East Somerset Council,10831627,LJ4,Contracts,P11,Adult Social Care & Health,SIRONA CARE SERVICES LTD,05/01/2017,198470.33
Bath and North East Somerset Council,10831571,PB4,Payments to Private Contractors,P14,Community Services,KIER INTEGRATED SERVICES LTD,05/01/2017,251661.43
Bath and North East Somerset Council,10839344,LJ1,Consultants Fees,P10,Finance & Efficiency,WORKMAN LLP,05/01/2017,13816.36
Bath and North East Somerset Council,10831498,LJ2,Legal Fees,P14,Community Services,CAPITAL LAW LLP OFFICE ACCOUNT,06/01/2017,6
Bath and North East Somerset Council,10831498,LJ2,Legal Fees,P14,Community Services,CAPITAL LAW LLP OFFICE ACCOUNT,06/01/2017,6
Bath and North East Somerset Council,10830569,HA1,Responsive Maintenance,P10,Finance & Efficiency,HORDERS,06/01/2017,25.54
Bath and North East Somerset Council,80656114,LM8,Home Care,P11,Adult Social Care & Health,ALZHEIMER'S SOCIETY,06/01/2017,286.4
Bath and North East Somerset Council,10830569,HA1,Responsive Maintenance,P10,Finance & Efficiency,HORDERS,06/01/2017,51.08
Bath and North East Somerset Council,80656114,LM9,Day Care,P11,Adult Social Care & Health,ALZHEIMER'S SOCIETY,06/01/2017,562.72
Bath and North East Somerset Council,10831701,KA2,Running Costs,P14,Community Services,P & L INSPECTIONS LTD,06/01/2017,78.82
Bath and North East Somerset Council,10831701,KA2,Running Costs,P14,Community Services,P & L INSPECTIONS LTD,06/01/2017,78.82
Bath and North East Somerset Council,10831701,KA2,Running Costs,P14,Community Services,P & L INSPECTIONS LTD,06/01/2017,78.82
Bath and North East Somerset Council,10831701,KA2,Running Costs,P14,Community Services,P & L INSPECTIONS LTD,06/01/2017,78.82
Bath and North East Somerset Council,10831701,KA2,Running Costs,P14,Community Services,P & L INSPECTIONS LTD,06/01/2017,78.82
Bath and North East Somerset Council,10831701,KA2,Running Costs,P14,Community Services,P & L INSPECTIONS LTD,06/01/2017,78.82
Bath and North East Somerset Council,10831701,KA2,Running Costs,P14,Community Services,P & L INSPECTIONS LTD,06/01/2017,78.83
Bath and North East Somerset Council,10830569,HA1,Responsive Maintenance,P12,Children's Services,HORDERS,06/01/2017,182.76
Bath and North East Somerset Council,80656070,LA7,Purchases for Resale,P13,Economic Development,J & N PRODUCTS,06/01/2017,291.6
Bath and North East Somerset Council,80656125,LM8,Home Care,P11,Adult Social Care & Health,BLUEBIRD CARE (BATH),06/01/2017,191.5
Bath and North East Somerset Council,80656125,LM8,Home Care,P11,Adult Social Care & Health,BLUEBIRD CARE (BATH),06/01/2017,442.85
Bath and North East Somerset Council,80656125,LM8,Home Care,P11,Adult Social Care & Health,BLUEBIRD CARE (BATH),06/01/2017,493
Bath and North East Somerset Council,80656125,LM8,Home Care,P11,Adult Social Care & Health,BLUEBIRD CARE (BATH),06/01/2017,593
Bath and North East Somerset Council,80656125,LM8,Home Care,P11,Adult Social Care & Health,BLUEBIRD CARE (BATH),06/01/2017,645.8
Bath and North East Somerset Council,80656125,LM8,Home Care,P11,Adult Social Care & Health,BLUEBIRD CARE (BATH),06/01/2017,993.86
Bath and North East Somerset Council,80656125,LM8,Home Care,P11,Adult Social Care & Health,BLUEBIRD CARE (BATH),06/01/2017,1062.93
Bath and North East Somerset Council,80656125,LM8,Home Care,P11,Adult Social Care & Health,BLUEBIRD CARE (BATH),06/01/2017,1720.04
Bath and North East Somerset Council,80656125,LM8,Home Care,P11,Adult Social Care & Health,BLUEBIRD CARE (BATH),06/01/2017,3073.75
Bath and North East Somerset Council,80656125,LM8,Home Care,P11,Adult Social Care & Health,BLUEBIRD CARE (BATH),06/01/2017,4729.83
Bath and North East Somerset Council,80656125,LM8,Home Care,P11,Adult Social Care & Health,BLUEBIRD CARE (BATH),06/01/2017,4908.24
Bath and North East Somerset Council,80656118,LM9,Day Care,P11,Adult Social Care & Health,CARE FUTURES,06/01/2017,777.24
Bath and North East Somerset Council,80656118,LM9,Day Care,P11,Adult Social Care & Health,CARE FUTURES,06/01/2017,1377.64
Bath and North East Somerset Council,80656118,LM9,Day Care,P11,Adult Social Care & Health,CARE FUTURES,06/01/2017,1939.96
Bath and North East Somerset Council,80656119,LM8,Home Care,P11,Adult Social Care & Health,CARE SOUTH,06/01/2017,1138.56
Bath and North East Somerset Council,80656119,LM8,Home Care,P11,Adult Social Care & Health,CARE SOUTH,06/01/2017,2869.89
Bath and North East Somerset Council,80656119,LM8,Home Care,P11,Adult Social Care & Health,CARE SOUTH,06/01/2017,3512.46
Bath and North East Somerset Council,10830569,HA1,Responsive Maintenance,P10,Finance & Efficiency,HORDERS,06/01/2017,357.23
Bath and North East Somerset Council,80656121,LM8,Home Care,P11,Adult Social Care & Health,CORINIUM CARE LIMITED,06/01/2017,360
Bath and North East Somerset Council,80656121,LM8,Home Care,P11,Adult Social Care & Health,CORINIUM CARE LIMITED,06/01/2017,3681.8
Bath and North East Somerset Council,10830569,HA1,Responsive Maintenance,P10,Finance & Efficiency,HORDERS,06/01/2017,386.93
Bath and North East Somerset Council,80656070,LA7,Purchases for Resale,P13,Economic Development,J & N PRODUCTS,06/01/2017,388.8
Bath and North East Somerset Council,80656070,LA7,Purchases for Resale,P13,Economic Development,J & N PRODUCTS,06/01/2017,388.8
Bath and North East Somerset Council,10831693,LH2,Advertising,P01,Transport,TMP (UK) LTD,06/01/2017,417.62
Bath and North East Somerset Council,10831696,LH2,Advertising,P01,Transport,TMP (UK) LTD,06/01/2017,417.62
Bath and North East Somerset Council,10831702,LK3,PCB Fees (paid),P01,Transport,TMP (UK) LTD,06/01/2017,417.62
Bath and North East Somerset Council,10831703,3N7,Misc. Costs,P01,Transport,TMP (UK) LTD,06/01/2017,417.62
Bath and North East Somerset Council,80656072,LA7,Purchases for Resale,P13,Economic Development,ONE HUNDRED STARS TRADING LTD,06/01/2017,432
Bath and North East Somerset Council,10831699,3N7,Misc. Costs,P01,Transport,TMP (UK) LTD,06/01/2017,444.6
Bath and North East Somerset Council,10831764,3F7,External Fees,P10,Finance & Efficiency,CAPITA SYMONDS,06/01/2017,450
Bath and North East Somerset Council,80656070,LA7,Purchases for Resale,P13,Economic Development,J & N PRODUCTS,06/01/2017,486
Bath and North East Somerset Council,10831659,LK1,Fees,P14,Community Services,WESSEX WATER ENTERPRISES,06/01/2017,498.06
Bath and North East Somerset Council,10831723,KB1,Hire of Vehicles,P14,Community Services,GULLIVERS TRUCK HIRE LTD,06/01/2017,502
Bath and North East Somerset Council,10831690,3F7,External Fees,P12,Children's Services,MACE LIMITED,06/01/2017,561
Bath and North East Somerset Council,10831690,3F7,External Fees,P12,Children's Services,MACE LIMITED,06/01/2017,561
Bath and North East Somerset Council,10831690,3F7,External Fees,P12,Children's Services,MACE LIMITED,06/01/2017,561
Bath and North East Somerset Council,10830569,HA1,Responsive Maintenance,P10,Finance & Efficiency,HORDERS,06/01/2017,599.76
Bath and North East Somerset Council,10830569,HA1,Responsive Maintenance,P10,Finance & Efficiency,HORDERS,06/01/2017,638.19
Bath and North East Somerset Council,10831760,PB4,Payments to Private Contractors,P14,Community Services,R J KING & SONS,06/01/2017,650.5
Bath and North East Somerset Council,80656075,LA7,Purchases for Resale,P13,Economic Development,ROMAN CANDLES OF BATH LTD,06/01/2017,718.56
Bath and North East Somerset Council,10831759,LH2,Advertising,P11,Adult Social Care & Health,MEDIACLASH LTD,06/01/2017,723
Bath and North East Somerset Council,10830569,HA1,Responsive Maintenance,P01,Transport,HORDERS,06/01/2017,723.79
Bath and North East Somerset Council,10831690,3F7,External Fees,P12,Children's Services,MACE LIMITED,06/01/2017,748
Bath and North East Somerset Council,80656107,LM8,Home Care,P11,Adult Social Care & Health,DIMENSIONS (UK) LTD,06/01/2017,160.65
Bath and North East Somerset Council,80656107,LM8,Home Care,P11,Adult Social Care & Health,DIMENSIONS (UK) LTD,06/01/2017,446.25
Bath and North East Somerset Council,10831714,LP5,Software Support,P10,Finance & Efficiency,METRIC GROUP LIMITED,06/01/2017,783
Bath and North East Somerset Council,80656107,LM8,Home Care,P11,Adult Social Care & Health,DIMENSIONS (UK) LTD,06/01/2017,714
Bath and North East Somerset Council,80656107,LM8,Home Care,P11,Adult Social Care & Health,DIMENSIONS (UK) LTD,06/01/2017,745.24
Bath and North East Somerset Council,80656107,LM8,Home Care,P11,Adult Social Care & Health,DIMENSIONS (UK) LTD,06/01/2017,876.96
Bath and North East Somerset Council,80656107,LM8,Home Care,P11,Adult Social Care & Health,DIMENSIONS (UK) LTD,06/01/2017,1442.4
Bath and North East Somerset Council,80656107,LM8,Home Care,P11,Adult Social Care & Health,DIMENSIONS (UK) LTD,06/01/2017,2888.44
Bath and North East Somerset Council,10831524,LJ4,Contracts,P12,Children's Services,FIRST RESPONSE TRAINING & CONSULTANC,06/01/2017,852
Bath and North East Somerset Council,10831765,3F7,External Fees,P10,Finance & Efficiency,CAPITA SYMONDS,06/01/2017,900
Bath and North East Somerset Council,10831770,3F7,External Fees,P10,Finance & Efficiency,CAPITA SYMONDS,06/01/2017,900
Bath and North East Somerset Council,10831742,LF1,Printing/Design,P10,Finance & Efficiency,FACILITIES & CORPORATE SOLUTIONS,06/01/2017,906.22
Bath and North East Somerset Council,10830569,HA1,Responsive Maintenance,P10,Finance & Efficiency,HORDERS,06/01/2017,927.94
Bath and North East Somerset Council,10831762,PB4,Payments to Private Contractors,P14,Community Services,R J KING & SONS,06/01/2017,975
Bath and North East Somerset Council,80656100,LM8,Home Care,P11,Adult Social Care & Health,KUMARI HOMECARE SERVICE,06/01/2017,51.25
Bath and North East Somerset Council,80656100,LM8,Home Care,P11,Adult Social Care & Health,KUMARI HOMECARE SERVICE,06/01/2017,51.25
Bath and North East Somerset Council,80656100,LM8,Home Care,P11,Adult Social Care & Health,KUMARI HOMECARE SERVICE,06/01/2017,61.5
Bath and North East Somerset Council,80656100,LM8,Home Care,P11,Adult Social Care & Health,KUMARI HOMECARE SERVICE,06/01/2017,61.5
Bath and North East Somerset Council,80656100,LM8,Home Care,P11,Adult Social Care & Health,KUMARI HOMECARE SERVICE,06/01/2017,71.75
Bath and North East Somerset Council,80656093,LK4,Nursery/Childcare Vouchers,P12,Children's Services,TEDDY BEAR NURSERY,06/01/2017,1064.7
Bath and North East Somerset Council,80656100,LM8,Home Care,P11,Adult Social Care & Health,KUMARI HOMECARE SERVICE,06/01/2017,102.5
Bath and North East Somerset Council,80656100,LM8,Home Care,P11,Adult Social Care & Health,KUMARI HOMECARE SERVICE,06/01/2017,102.5
Bath and North East Somerset Council,80656100,LM8,Home Care,P11,Adult Social Care & Health,KUMARI HOMECARE SERVICE,06/01/2017,112.75
Bath and North East Somerset Council,80656100,LM8,Home Care,P11,Adult Social Care & Health,KUMARI HOMECARE SERVICE,06/01/2017,184.5
Bath and North East Somerset Council,80656100,LM8,Home Care,P11,Adult Social Care & Health,KUMARI HOMECARE SERVICE,06/01/2017,194.75
Bath and North East Somerset Council,80656100,LM8,Home Care,P11,Adult Social Care & Health,KUMARI HOMECARE SERVICE,06/01/2017,205
Bath and North East Somerset Council,80656100,LM8,Home Care,P11,Adult Social Care & Health,KUMARI HOMECARE SERVICE,06/01/2017,205
Bath and North East Somerset Council,10831689,3F7,External Fees,P13,Economic Development,MDA CONSULTING LTD,06/01/2017,1110
Bath and North East Somerset Council,80656100,LM8,Home Care,P11,Adult Social Care & Health,KUMARI HOMECARE SERVICE,06/01/2017,665
Bath and North East Somerset Council,80656100,LM8,Home Care,P11,Adult Social Care & Health,KUMARI HOMECARE SERVICE,06/01/2017,690
Bath and North East Somerset Council,80656100,LM8,Home Care,P11,Adult Social Care & Health,KUMARI HOMECARE SERVICE,06/01/2017,717.5
Bath and North East Somerset Council,80656100,LM8,Home Care,P11,Adult Social Care & Health,KUMARI HOMECARE SERVICE,06/01/2017,717.5
Bath and North East Somerset Council,80656100,LM8,Home Care,P11,Adult Social Care & Health,KUMARI HOMECARE SERVICE,06/01/2017,717.5
Bath and North East Somerset Council,80656100,LM8,Home Care,P11,Adult Social Care & Health,KUMARI HOMECARE SERVICE,06/01/2017,758.5
Bath and North East Somerset Council,80656100,LM8,Home Care,P11,Adult Social Care & Health,KUMARI HOMECARE SERVICE,06/01/2017,758.5
Bath and North East Somerset Council,10831771,3F7,External Fees,P10,Finance & Efficiency,CAPITA SYMONDS,06/01/2017,1125
Bath and North East Somerset Council,10831772,3F7,External Fees,P10,Finance & Efficiency,CAPITA SYMONDS,06/01/2017,1125
Bath and North East Somerset Council,80656100,LM8,Home Care,P11,Adult Social Care & Health,KUMARI HOMECARE SERVICE,06/01/2017,790.25
Bath and North East Somerset Council,80656100,LM8,Home Care,P11,Adult Social Care & Health,KUMARI HOMECARE SERVICE,06/01/2017,804.93
Bath and North East Somerset Council,80656100,LM8,Home Care,P11,Adult Social Care & Health,KUMARI HOMECARE SERVICE,06/01/2017,804.93
Bath and North East Somerset Council,80656100,LM8,Home Care,P11,Adult Social Care & Health,KUMARI HOMECARE SERVICE,06/01/2017,804.93
Bath and North East Somerset Council,80656100,LM8,Home Care,P11,Adult Social Care & Health,KUMARI HOMECARE SERVICE,06/01/2017,804.93
Bath and North East Somerset Council,80656100,LM8,Home Care,P11,Adult Social Care & Health,KUMARI HOMECARE SERVICE,06/01/2017,805
Bath and North East Somerset Council,80656100,LM8,Home Care,P11,Adult Social Care & Health,KUMARI HOMECARE SERVICE,06/01/2017,1235.43
Bath and North East Somerset Council,80656100,LM8,Home Care,P11,Adult Social Care & Health,KUMARI HOMECARE SERVICE,06/01/2017,1235.43
Bath and North East Somerset Council,80656100,LM8,Home Care,P11,Adult Social Care & Health,KUMARI HOMECARE SERVICE,06/01/2017,1250.52
Bath and North East Somerset Council,10831761,3F7,External Fees,P13,Economic Development,COTSWOLD ARCHAEOLOGY,06/01/2017,1175.25
Bath and North East Somerset Council,10831293,HA1,Responsive Maintenance,P10,Finance & Efficiency,ADT FIRE & SECURITY PLC,06/01/2017,1194
Bath and North East Somerset Council,10831766,3F7,External Fees,P10,Finance & Efficiency,CAPITA SYMONDS,06/01/2017,1350
Bath and North East Somerset Council,10831743,LK1,Fees,P14,Community Services,THE TOUR SERIES,06/01/2017,1440
Bath and North East Somerset Council,10831301,3G1,Grants/Advances,P13,Economic Development,DYSON ENERGY SERVICES,06/01/2017,1500
Bath and North East Somerset Council,80656069,LA7,Purchases for Resale,P13,Economic Development,HOUSE OF DORCHESTER LTD,06/01/2017,1558
Bath and North East Somerset Council,10829649,3N7,Misc. Costs,P14,Community Services,BRITISH GAS - ELECTRICITY,06/01/2017,1670.46
Bath and North East Somerset Council,80656064,LA7,Purchases for Resale,P13,Economic Development,FIKKERTS LTD,06/01/2017,1707
Bath and North East Somerset Council,10831766,3F7,External Fees,P10,Finance & Efficiency,CAPITA SYMONDS,06/01/2017,1800
Bath and North East Somerset Council,10831686,3F7,External Fees,P14,Community Services,BBA ARCHITECTS,06/01/2017,1820
Bath and North East Somerset Council,10831690,3F7,External Fees,P12,Children's Services,MACE LIMITED,06/01/2017,1870
Bath and North East Somerset Council,10831781,LJ1,Consultants Fees,P12,Children's Services,LIQUIDLOGIC LIMITED,06/01/2017,1926.12
Bath and North East Somerset Council,10830148,3N7,Misc. Costs,P14,Community Services,BRITISH GAS - ELECTRICITY,06/01/2017,1933.58
Bath and North East Somerset Council,80656113,LL3,Supported Living,P11,Adult Social Care & Health,PRESTIGE NURSING HEALTHCARE,06/01/2017,105.72
Bath and North East Somerset Council,80656113,LM8,Home Care,P11,Adult Social Care & Health,PRESTIGE NURSING HEALTHCARE,06/01/2017,106.61
Bath and North East Somerset Council,80656113,LM8,Home Care,P11,Adult Social Care & Health,PRESTIGE NURSING HEALTHCARE,06/01/2017,110.61
Bath and North East Somerset Council,80656113,LL3,Supported Living,P11,Adult Social Care & Health,PRESTIGE NURSING HEALTHCARE,06/01/2017,197.4
Bath and North East Somerset Council,80656113,LL3,Supported Living,P11,Adult Social Care & Health,PRESTIGE NURSING HEALTHCARE,06/01/2017,213.82
Bath and North East Somerset Council,80656113,LM8,Home Care,P11,Adult Social Care & Health,PRESTIGE NURSING HEALTHCARE,06/01/2017,393.49
Bath and North East Somerset Council,80656113,LM8,Home Care,P11,Adult Social Care & Health,PRESTIGE NURSING HEALTHCARE,06/01/2017,462.29
Bath and North East Somerset Council,80656113,LM8,Home Care,P11,Adult Social Care & Health,PRESTIGE NURSING HEALTHCARE,06/01/2017,666.95
Bath and North East Somerset Council,80656113,LM8,Home Care,P11,Adult Social Care & Health,PRESTIGE NURSING HEALTHCARE,06/01/2017,724.43
Bath and North East Somerset Council,80656113,LM8,Home Care,P11,Adult Social Care & Health,PRESTIGE NURSING HEALTHCARE,06/01/2017,808.04
Bath and North East Somerset Council,80656113,LL3,Supported Living,P11,Adult Social Care & Health,PRESTIGE NURSING HEALTHCARE,06/01/2017,1250.09
Bath and North East Somerset Council,80656113,LL3,Supported Living,P11,Adult Social Care & Health,PRESTIGE NURSING HEALTHCARE,06/01/2017,1356.72
Bath and North East Somerset Council,10831498,LJ2,Legal Fees,P14,Community Services,CAPITAL LAW LLP OFFICE ACCOUNT,06/01/2017,2024
Bath and North East Somerset Council,80656113,LM8,Home Care,P11,Adult Social Care & Health,PRESTIGE NURSING HEALTHCARE,06/01/2017,2430.33
Bath and North East Somerset Council,80656113,LM8,Home Care,P11,Adult Social Care & Health,PRESTIGE NURSING HEALTHCARE,06/01/2017,2696.92
Bath and North East Somerset Council,80656113,LM8,Home Care,P11,Adult Social Care & Health,PRESTIGE NURSING HEALTHCARE,06/01/2017,2826.28
Bath and North East Somerset Council,80656113,LM8,Home Care,P11,Adult Social Care & Health,PRESTIGE NURSING HEALTHCARE,06/01/2017,2895.1
Bath and North East Somerset Council,80656113,LM8,Home Care,P11,Adult Social Care & Health,PRESTIGE NURSING HEALTHCARE,06/01/2017,2920.96
Bath and North East Somerset Council,80656113,LM8,Home Care,P11,Adult Social Care & Health,PRESTIGE NURSING HEALTHCARE,06/01/2017,3255.51
Bath and North East Somerset Council,80656113,LM8,Home Care,P11,Adult Social Care & Health,PRESTIGE NURSING HEALTHCARE,06/01/2017,4709.17
Bath and North East Somerset Council,80656113,LM8,Home Care,P11,Adult Social Care & Health,PRESTIGE NURSING HEALTHCARE,06/01/2017,5408.71
Bath and North East Somerset Council,80656112,LM8,Home Care,P11,Adult Social Care & Health,REDACTED,06/01/2017,580
Bath and North East Somerset Council,80656112,LM8,Home Care,P11,Adult Social Care & Health,REDACTED,06/01/2017,870
Bath and North East Somerset Council,80656112,LM8,Home Care,P11,Adult Social Care & Health,REDACTED,06/01/2017,1160
Bath and North East Somerset Council,80656112,LM8,Home Care,P11,Adult Social Care & Health,REDACTED,06/01/2017,1596
Bath and North East Somerset Council,80656106,LM8,Home Care,P11,Adult Social Care & Health,ROBERT OWEN FOUNDATION,06/01/2017,301
Bath and North East Somerset Council,80656106,LM8,Home Care,P11,Adult Social Care & Health,ROBERT OWEN FOUNDATION,06/01/2017,1577
Bath and North East Somerset Council,80656116,LM8,Home Care,P11,Adult Social Care & Health,ROBERT SAGE LTD T/A PRESTIGE NURSING PAYROLL,06/01/2017,571.41
Bath and North East Somerset Council,80656116,LM8,Home Care,P11,Adult Social Care & Health,ROBERT SAGE LTD T/A PRESTIGE NURSING PAYROLL,06/01/2017,571.41
Bath and North East Somerset Council,80656116,LM8,Home Care,P11,Adult Social Care & Health,ROBERT SAGE LTD T/A PRESTIGE NURSING PAYROLL,06/01/2017,1017.27
Bath and North East Somerset Council,80656116,LM8,Home Care,P11,Adult Social Care & Health,ROBERT SAGE LTD T/A PRESTIGE NURSING PAYROLL,06/01/2017,1984.94
Bath and North East Somerset Council,10831731,LF5,Postages,P10,Finance & Efficiency,WHISTL UK LTD,06/01/2017,2253.66
Bath and North East Somerset Council,10831744,LF5,Postages,P10,Finance & Efficiency,FACILITIES & CORPORATE SOLUTIONS,06/01/2017,2357.8
Bath and North East Somerset Council,10831763,3F7,External Fees,P12,Children's Services,BBA ARCHITECTS,06/01/2017,2445
Bath and North East Somerset Council,80656102,LM8,Home Care,P11,Adult Social Care & Health,SAFE & SOUND HOMECARE SERVICES,06/01/2017,1990.01
Bath and North East Somerset Council,80656102,LM8,Home Care,P11,Adult Social Care & Health,SAFE & SOUND HOMECARE SERVICES,06/01/2017,3621.41
Bath and North East Somerset Council,10831721,LJ9,PCB Consultants Fees,P13,Economic Development,CREATIVE BATH,06/01/2017,2500
Bath and North East Somerset Council,10831750,LJ4,Contracts,P12,Children's Services,BLACK FAMILIES EDUCATION SUPPO,06/01/2017,2585
Bath and North East Somerset Council,10831775,3C4,Building Works,P12,Children's Services,PROPERTECO,06/01/2017,2655
Bath and North East Somerset Council,10829644,3N7,Misc. Costs,P14,Community Services,BRITISH GAS - ELECTRICITY,06/01/2017,2743.81
Bath and North East Somerset Council,10831732,LN4,Mobile Phones,P10,Finance & Efficiency,EE LIMITED,06/01/2017,2905.2
Bath and North East Somerset Council,80656120,LM6,Nursing Care,P11,Adult Social Care & Health,NEWCROSS HEALTHCARE SOLUTIONS LTD,06/01/2017,2943.54
Bath and North East Somerset Council,80656126,LL3,Supported Living,P11,Adult Social Care & Health,SIRONA CARE & HEALTH C.I.C.,06/01/2017,8042.45
Bath and North East Somerset Council,80656126,LL3,Supported Living,P11,Adult Social Care & Health,SIRONA CARE & HEALTH C.I.C.,06/01/2017,9206.07
Bath and North East Somerset Council,80656092,LK4,Nursery/Childcare Vouchers,P12,Children's Services,SNAPDRAGONS NURSERY HORFIELD,06/01/2017,1316.35
Bath and North East Somerset Council,10829645,3N7,Misc. Costs,P14,Community Services,BRITISH GAS - ELECTRICITY,06/01/2017,3021.46
Bath and North East Somerset Council,80656122,LM8,Home Care,P11,Adult Social Care & Health,SOMERSET CARE AT HOME LTD,06/01/2017,608
Bath and North East Somerset Council,10831498,LJ2,Legal Fees,P14,Community Services,CAPITAL LAW LLP OFFICE ACCOUNT,06/01/2017,3205
Bath and North East Somerset Council,10831681,3F7,External Fees,P12,Children's Services,MOTT MACDONALD LIMITED,06/01/2017,3500
Bath and North East Somerset Council,80656127,LM8,Home Care,P11,Adult Social Care & Health,REDACTED,06/01/2017,525
Bath and North East Somerset Council,10830569,3C4,Building Works,P10,Finance & Efficiency,HORDERS,06/01/2017,4173.37
Bath and North East Somerset Council,10831674,LJ4,Contracts,P12,Children's Services,SIGNIS LTD,06/01/2017,4625
Bath and North East Somerset Council,10831724,PA3,Payments to Health Authorities,P11,Adult Social Care & Health,NHS BATH & NORTH EAST SOMERSET CCG,06/01/2017,4933.26
Bath and North East Somerset Council,10831725,HE5,Security of Premises,P01,Transport,KEYLINE SECURITY,06/01/2017,4998.7
Bath and North East Somerset Council,80656105,LM9,Day Care,P11,Adult Social Care & Health,THE BRANDON TRUST,06/01/2017,414.2
Bath and North East Somerset Council,80656105,LM9,Day Care,P11,Adult Social Care & Health,THE BRANDON TRUST,06/01/2017,1003.68
Bath and North East Somerset Council,10831734,DB1,Agency Staff,P01,Transport,CEEMA LTD,06/01/2017,6208.7
Bath and North East Somerset Council,10831680,3F7,External Fees,P10,Finance & Efficiency,CLEVER SPACES LTD,06/01/2017,7000
Bath and North East Somerset Council,80656115,LM8,Home Care,P11,Adult Social Care & Health,UNITED RESPONSE,06/01/2017,515.52
Bath and North East Somerset Council,80656115,LM8,Home Care,P11,Adult Social Care & Health,UNITED RESPONSE,06/01/2017,515.52
Bath and North East Somerset Council,80656115,LM8,Home Care,P11,Adult Social Care & Health,UNITED RESPONSE,06/01/2017,1095.44
Bath and North East Somerset Council,10830569,HA1,Responsive Maintenance,P10,Finance & Efficiency,HORDERS,06/01/2017,8246.32
Bath and North East Somerset Council,80656115,LM8,Home Care,P11,Adult Social Care & Health,UNITED RESPONSE,06/01/2017,1095.44
Bath and North East Somerset Council,10831756,LC1,Provisions,P12,Children's Services,SCHOOL MILK SERVICES LTD,06/01/2017,8890
Bath and North East Somerset Council,80656115,LM8,Home Care,P11,Adult Social Care & Health,UNITED RESPONSE,06/01/2017,7068.08
Bath and North East Somerset Council,80656115,LM8,Home Care,P11,Adult Social Care & Health,UNITED RESPONSE,06/01/2017,8785
Bath and North East Somerset Council,10830637,HP1,Rent Payable,P10,Finance & Efficiency,MR WILLATS' CHARITY,06/01/2017,9125
Bath and North East Somerset Council,10831735,LE1,Education Payment (independent school),P12,Children's Services,NEWBURY MANOR PRIORY,06/01/2017,22457.33
Bath and North East Somerset Council,10831691,HF1,Grounds Maintenance - Contract,P14,Community Services,GREENWICH LEISURE LIMITED,06/01/2017,25000
Bath and North East Somerset Council,10831679,3N7,Misc. Costs,P14,Community Services,GREENWICH LEISURE LIMITED,06/01/2017,147599.43
Bath and North East Somerset Council,80656450,LL8,Individualised Budget,P11,Adult Social Care & Health,REDACTED,09/01/2017,2969
Bath and North East Somerset Council,80656644,LM3,Residential Care,P11,Adult Social Care & Health,ALEXANDRA HOMES (BRISTOL) LTD,09/01/2017,3674
Bath and North East Somerset Council,80656368,LL8,Individualised Budget,P11,Adult Social Care & Health,REDACTED,09/01/2017,1696.8
Bath and North East Somerset Council,10831905,LJ1,Consultants Fees,P11,Adult Social Care & Health,COAST SOCIAL WORK LTD,09/01/2017,49.6
Bath and North East Somerset Council,80656668,LM3,Residential Care,P11,Adult Social Care & Health,ALMONDSBURY CARE LTD,09/01/2017,1300
Bath and North East Somerset Council,80656686,LM6,Nursing Care,P11,Adult Social Care & Health,AMBLESIDE NURSING HOME,09/01/2017,1590
Bath and North East Somerset Council,80656686,LM6,Nursing Care,P11,Adult Social Care & Health,AMBLESIDE NURSING HOME,09/01/2017,1618
Bath and North East Somerset Council,80656727,LM3,Residential Care,P11,Adult Social Care & Health,ANCHOR TRUST,09/01/2017,904
Bath and North East Somerset Council,80656727,LM3,Residential Care,P11,Adult Social Care & Health,ANCHOR TRUST,09/01/2017,1052
Bath and North East Somerset Council,80656727,LM3,Residential Care,P11,Adult Social Care & Health,ANCHOR TRUST,09/01/2017,1124
Bath and North East Somerset Council,80656727,LM3,Residential Care,P11,Adult Social Care & Health,ANCHOR TRUST,09/01/2017,1305.9
Bath and North East Somerset Council,80656727,LM3,Residential Care,P11,Adult Social Care & Health,ANCHOR TRUST,09/01/2017,1388
Bath and North East Somerset Council,80656727,LM3,Residential Care,P11,Adult Social Care & Health,ANCHOR TRUST,09/01/2017,1388
Bath and North East Somerset Council,80656727,LM3,Residential Care,P11,Adult Social Care & Health,ANCHOR TRUST,09/01/2017,1430
Bath and North East Somerset Council,80656727,LM3,Residential Care,P11,Adult Social Care & Health,ANCHOR TRUST,09/01/2017,1516
Bath and North East Somerset Council,80656727,LM3,Residential Care,P11,Adult Social Care & Health,ANCHOR TRUST,09/01/2017,1516
Bath and North East Somerset Council,80656727,LM3,Residential Care,P11,Adult Social Care & Health,ANCHOR TRUST,09/01/2017,1590
Bath and North East Somerset Council,80656727,LM6,Nursing Care,P11,Adult Social Care & Health,ANCHOR TRUST,09/01/2017,1700
Bath and North East Somerset Council,80656727,LM3,Residential Care,P11,Adult Social Care & Health,ANCHOR TRUST,09/01/2017,1700
Bath and North East Somerset Council,80656727,LM3,Residential Care,P11,Adult Social Care & Health,ANCHOR TRUST,09/01/2017,1750
Bath and North East Somerset Council,80656612,XD3,Client Contributions,P11,Adult Social Care & Health,PONDSMEAD (SHEPTON MALLET) LIMITED,09/01/2017,85.2
Bath and North East Somerset Council,80656563,LL8,Individualised Budget,P11,Adult Social Care & Health,REDACTED,09/01/2017,699.94
Bath and North East Somerset Council,80656763,LM8,Home Care,P11,Adult Social Care & Health,ARCH CARE SERVICES,09/01/2017,36
Bath and North East Somerset Council,80656763,LM8,Home Care,P11,Adult Social Care & Health,ARCH CARE SERVICES,09/01/2017,144
Bath and North East Somerset Council,80656763,LM8,Home Care,P11,Adult Social Care & Health,ARCH CARE SERVICES,09/01/2017,162
Bath and North East Somerset Council,80656763,LM8,Home Care,P11,Adult Social Care & Health,ARCH CARE SERVICES,09/01/2017,180
Bath and North East Somerset Council,80656763,LM8,Home Care,P11,Adult Social Care & Health,ARCH CARE SERVICES,09/01/2017,180
Bath and North East Somerset Council,80656763,LM8,Home Care,P11,Adult Social Care & Health,ARCH CARE SERVICES,09/01/2017,180
Bath and North East Somerset Council,80656612,LM6,Nursing Care,P11,Adult Social Care & Health,PONDSMEAD (SHEPTON MALLET) LIMITED,09/01/2017,100
Bath and North East Somerset Council,80656763,LM8,Home Care,P11,Adult Social Care & Health,ARCH CARE SERVICES,09/01/2017,270
Bath and North East Somerset Council,80656763,LM8,Home Care,P11,Adult Social Care & Health,ARCH CARE SERVICES,09/01/2017,360
Bath and North East Somerset Council,80656763,LM8,Home Care,P11,Adult Social Care & Health,ARCH CARE SERVICES,09/01/2017,505
Bath and North East Somerset Council,80656763,LM8,Home Care,P11,Adult Social Care & Health,ARCH CARE SERVICES,09/01/2017,540
Bath and North East Somerset Council,80656763,LM8,Home Care,P11,Adult Social Care & Health,ARCH CARE SERVICES,09/01/2017,700
Bath and North East Somerset Council,80656763,LM8,Home Care,P11,Adult Social Care & Health,ARCH CARE SERVICES,09/01/2017,800
Bath and North East Somerset Council,80656763,LM8,Home Care,P11,Adult Social Care & Health,ARCH CARE SERVICES,09/01/2017,860
Bath and North East Somerset Council,80656763,LM8,Home Care,P11,Adult Social Care & Health,ARCH CARE SERVICES,09/01/2017,860
Bath and North East Somerset Council,80656763,LM8,Home Care,P11,Adult Social Care & Health,ARCH CARE SERVICES,09/01/2017,860
Bath and North East Somerset Council,80656763,LM8,Home Care,P11,Adult Social Care & Health,ARCH CARE SERVICES,09/01/2017,1030
Bath and North East Somerset Council,80656763,LL3,Supported Living,P11,Adult Social Care & Health,ARCH CARE SERVICES,09/01/2017,5600
Bath and North East Somerset Council,80656753,LM3,Residential Care,P11,Adult Social Care & Health,ARTI CARE HOMES (SOUTHWEST) LTD,09/01/2017,904
Bath and North East Somerset Council,80656753,LM3,Residential Care,P11,Adult Social Care & Health,ARTI CARE HOMES (SOUTHWEST) LTD,09/01/2017,904
Bath and North East Somerset Council,80656753,LM3,Residential Care,P11,Adult Social Care & Health,ARTI CARE HOMES (SOUTHWEST) LTD,09/01/2017,904
Bath and North East Somerset Council,80656753,LM3,Residential Care,P11,Adult Social Care & Health,ARTI CARE HOMES (SOUTHWEST) LTD,09/01/2017,904
Bath and North East Somerset Council,80656753,LM3,Residential Care,P11,Adult Social Care & Health,ARTI CARE HOMES (SOUTHWEST) LTD,09/01/2017,904
Bath and North East Somerset Council,80656753,LM3,Residential Care,P11,Adult Social Care & Health,ARTI CARE HOMES (SOUTHWEST) LTD,09/01/2017,904
Bath and North East Somerset Council,80656753,LM3,Residential Care,P11,Adult Social Care & Health,ARTI CARE HOMES (SOUTHWEST) LTD,09/01/2017,904
Bath and North East Somerset Council,80656753,LM3,Residential Care,P11,Adult Social Care & Health,ARTI CARE HOMES (SOUTHWEST) LTD,09/01/2017,992
Bath and North East Somerset Council,80656753,LM3,Residential Care,P11,Adult Social Care & Health,ARTI CARE HOMES (SOUTHWEST) LTD,09/01/2017,1052
Bath and North East Somerset Council,80656753,LM3,Residential Care,P11,Adult Social Care & Health,ARTI CARE HOMES (SOUTHWEST) LTD,09/01/2017,1066
Bath and North East Somerset Council,80656753,LM3,Residential Care,P11,Adult Social Care & Health,ARTI CARE HOMES (SOUTHWEST) LTD,09/01/2017,1310
Bath and North East Somerset Council,80656753,LM3,Residential Care,P11,Adult Social Care & Health,ARTI CARE HOMES (SOUTHWEST) LTD,09/01/2017,6685.72
Bath and North East Somerset Council,80656739,LM3,Residential Care,P11,Adult Social Care & Health,ARTI SERVICES LTD T/A THE MANOR FARM HOUSE,09/01/2017,904
Bath and North East Somerset Council,80656739,LM3,Residential Care,P11,Adult Social Care & Health,ARTI SERVICES LTD T/A THE MANOR FARM HOUSE,09/01/2017,904
Bath and North East Somerset Council,80656739,LM3,Residential Care,P11,Adult Social Care & Health,ARTI SERVICES LTD T/A THE MANOR FARM HOUSE,09/01/2017,904
Bath and North East Somerset Council,80656739,LM3,Residential Care,P11,Adult Social Care & Health,ARTI SERVICES LTD T/A THE MANOR FARM HOUSE,09/01/2017,904
Bath and North East Somerset Council,80656739,LM3,Residential Care,P11,Adult Social Care & Health,ARTI SERVICES LTD T/A THE MANOR FARM HOUSE,09/01/2017,904
Bath and North East Somerset Council,80656739,LM3,Residential Care,P11,Adult Social Care & Health,ARTI SERVICES LTD T/A THE MANOR FARM HOUSE,09/01/2017,992
Bath and North East Somerset Council,80656739,LM3,Residential Care,P11,Adult Social Care & Health,ARTI SERVICES LTD T/A THE MANOR FARM HOUSE,09/01/2017,992
Bath and North East Somerset Council,80656739,LM3,Residential Care,P11,Adult Social Care & Health,ARTI SERVICES LTD T/A THE MANOR FARM HOUSE,09/01/2017,992
Bath and North East Somerset Council,80656739,LM3,Residential Care,P11,Adult Social Care & Health,ARTI SERVICES LTD T/A THE MANOR FARM HOUSE,09/01/2017,1138
Bath and North East Somerset Council,80656739,LM3,Residential Care,P11,Adult Social Care & Health,ARTI SERVICES LTD T/A THE MANOR FARM HOUSE,09/01/2017,1310
Bath and North East Somerset Council,80656618,LM3,Residential Care,P11,Adult Social Care & Health,ASPECTS & MILESTONES TRUST,09/01/2017,1722
Bath and North East Somerset Council,80656618,LM3,Residential Care,P11,Adult Social Care & Health,ASPECTS & MILESTONES TRUST,09/01/2017,1920
Bath and North East Somerset Council,80656618,LM3,Residential Care,P11,Adult Social Care & Health,ASPECTS & MILESTONES TRUST,09/01/2017,2042
Bath and North East Somerset Council,80656618,LM3,Residential Care,P11,Adult Social Care & Health,ASPECTS & MILESTONES TRUST,09/01/2017,4028
Bath and North East Somerset Council,80656618,LM3,Residential Care,P11,Adult Social Care & Health,ASPECTS & MILESTONES TRUST,09/01/2017,4327.3
Bath and North East Somerset Council,80656618,LM3,Residential Care,P11,Adult Social Care & Health,ASPECTS & MILESTONES TRUST,09/01/2017,5120
Bath and North East Somerset Council,80656618,LM3,Residential Care,P11,Adult Social Care & Health,ASPECTS & MILESTONES TRUST,09/01/2017,5120
Bath and North East Somerset Council,80656618,LM3,Residential Care,P11,Adult Social Care & Health,ASPECTS & MILESTONES TRUST,09/01/2017,8273.96
Bath and North East Somerset Council,80656630,LM3,Residential Care,P11,Adult Social Care & Health,AUTISM SPECIALISED CARE HOMES LTD,09/01/2017,2622
Bath and North East Somerset Council,80656652,LM3,Residential Care,P11,Adult Social Care & Health,BAMFIELD LODGE LIMITED,09/01/2017,992
Bath and North East Somerset Council,10831598,KE2,Payment to Parents/Students,P12,Children's Services,REDACTED,09/01/2017,699.2
Bath and North East Somerset Council,80656252,LM6,Nursing Care,P11,Adult Social Care & Health,BARCHESTER HEALTH CARE,09/01/2017,312.5
Bath and North East Somerset Council,80656252,LM6,Nursing Care,P11,Adult Social Care & Health,BARCHESTER HEALTH CARE,09/01/2017,312.5
Bath and North East Somerset Council,80656252,LM6,Nursing Care,P11,Adult Social Care & Health,BARCHESTER HEALTH CARE,09/01/2017,312.5
Bath and North East Somerset Council,80656252,LM6,Nursing Care,P11,Adult Social Care & Health,BARCHESTER HEALTH CARE,09/01/2017,312.5
Bath and North East Somerset Council,80656252,LM6,Nursing Care,P11,Adult Social Care & Health,BARCHESTER HEALTH CARE,09/01/2017,312.5
Bath and North East Somerset Council,80656252,LM6,Nursing Care,P11,Adult Social Care & Health,BARCHESTER HEALTH CARE,09/01/2017,312.5
Bath and North East Somerset Council,80656252,LM6,Nursing Care,P11,Adult Social Care & Health,BARCHESTER HEALTH CARE,09/01/2017,312.5
Bath and North East Somerset Council,80656252,LM6,Nursing Care,P11,Adult Social Care & Health,BARCHESTER HEALTH CARE,09/01/2017,312.5
Bath and North East Somerset Council,80656252,LM6,Nursing Care,P11,Adult Social Care & Health,BARCHESTER HEALTH CARE,09/01/2017,312.5
Bath and North East Somerset Council,80656252,LM6,Nursing Care,P11,Adult Social Care & Health,BARCHESTER HEALTH CARE,09/01/2017,312.5
Bath and North East Somerset Council,80656252,LM6,Nursing Care,P11,Adult Social Care & Health,BARCHESTER HEALTH CARE,09/01/2017,312.5
Bath and North East Somerset Council,80656252,LM6,Nursing Care,P11,Adult Social Care & Health,BARCHESTER HEALTH CARE,09/01/2017,312.5
Bath and North East Somerset Council,80656252,LM6,Nursing Care,P11,Adult Social Care & Health,BARCHESTER HEALTH CARE,09/01/2017,312.5
Bath and North East Somerset Council,80656252,LM6,Nursing Care,P11,Adult Social Care & Health,BARCHESTER HEALTH CARE,09/01/2017,312.5
Bath and North East Somerset Council,80656252,LM6,Nursing Care,P11,Adult Social Care & Health,BARCHESTER HEALTH CARE,09/01/2017,312.5
Bath and North East Somerset Council,80656252,LM6,Nursing Care,P11,Adult Social Care & Health,BARCHESTER HEALTH CARE,09/01/2017,312.5
Bath and North East Somerset Council,80656751,LM6,Nursing Care,P11,Adult Social Care & Health,BARCHESTER HEALTH CARE,09/01/2017,1477.6
Bath and North East Somerset Council,80656751,LM3,Residential Care,P11,Adult Social Care & Health,BARCHESTER HEALTH CARE,09/01/2017,1700
Bath and North East Somerset Council,80656751,LM6,Nursing Care,P11,Adult Social Care & Health,BARCHESTER HEALTH CARE,09/01/2017,1700
Bath and North East Somerset Council,80656751,LM6,Nursing Care,P11,Adult Social Care & Health,BARCHESTER HEALTH CARE,09/01/2017,1700
Bath and North East Somerset Council,80656751,LM6,Nursing Care,P11,Adult Social Care & Health,BARCHESTER HEALTH CARE,09/01/2017,1850
Bath and North East Somerset Council,80656751,LM6,Nursing Care,P11,Adult Social Care & Health,BARCHESTER HEALTH CARE,09/01/2017,1850
Bath and North East Somerset Council,80656751,LM6,Nursing Care,P11,Adult Social Care & Health,BARCHESTER HEALTH CARE,09/01/2017,1850
Bath and North East Somerset Council,80656751,LM6,Nursing Care,P11,Adult Social Care & Health,BARCHESTER HEALTH CARE,09/01/2017,1850
Bath and North East Somerset Council,80656751,LM6,Nursing Care,P11,Adult Social Care & Health,BARCHESTER HEALTH CARE,09/01/2017,1850
Bath and North East Somerset Council,80656296,LM6,Nursing Care,P11,Adult Social Care & Health,BARCHESTER HEALTH CARE,09/01/2017,1986
Bath and North East Somerset Council,80656296,LM6,Nursing Care,P11,Adult Social Care & Health,BARCHESTER HEALTH CARE,09/01/2017,2238
Bath and North East Somerset Council,80656296,LM6,Nursing Care,P11,Adult Social Care & Health,BARCHESTER HEALTH CARE,09/01/2017,2278
Bath and North East Somerset Council,80656751,LM6,Nursing Care,P11,Adult Social Care & Health,BARCHESTER HEALTH CARE,09/01/2017,2600
Bath and North East Somerset Council,80656632,LM6,Nursing Care,P11,Adult Social Care & Health,BARCHESTER HEALTHCARE,09/01/2017,1430
Bath and North East Somerset Council,80656632,LM6,Nursing Care,P11,Adult Social Care & Health,BARCHESTER HEALTHCARE,09/01/2017,1430
Bath and North East Somerset Council,80656632,LM6,Nursing Care,P11,Adult Social Care & Health,BARCHESTER HEALTHCARE,09/01/2017,1634
Bath and North East Somerset Council,80656632,LM6,Nursing Care,P11,Adult Social Care & Health,BARCHESTER HEALTHCARE,09/01/2017,1646
Bath and North East Somerset Council,80656632,LM6,Nursing Care,P11,Adult Social Care & Health,BARCHESTER HEALTHCARE,09/01/2017,1646
Bath and North East Somerset Council,80656632,LM6,Nursing Care,P11,Adult Social Care & Health,BARCHESTER HEALTHCARE,09/01/2017,1646
Bath and North East Somerset Council,80656239,LM6,Nursing Care,P11,Adult Social Care & Health,BARCHESTER HEALTHCARE HOMES LTD,09/01/2017,312.5
Bath and North East Somerset Council,80656239,LM6,Nursing Care,P11,Adult Social Care & Health,BARCHESTER HEALTHCARE HOMES LTD,09/01/2017,312.5
Bath and North East Somerset Council,80656239,LM6,Nursing Care,P11,Adult Social Care & Health,BARCHESTER HEALTHCARE HOMES LTD,09/01/2017,312.5
Bath and North East Somerset Council,80656239,LM6,Nursing Care,P11,Adult Social Care & Health,BARCHESTER HEALTHCARE HOMES LTD,09/01/2017,312.5
Bath and North East Somerset Council,80656239,LM6,Nursing Care,P11,Adult Social Care & Health,BARCHESTER HEALTHCARE HOMES LTD,09/01/2017,312.5
Bath and North East Somerset Council,80656239,LM6,Nursing Care,P11,Adult Social Care & Health,BARCHESTER HEALTHCARE HOMES LTD,09/01/2017,312.5
Bath and North East Somerset Council,80656239,LM6,Nursing Care,P11,Adult Social Care & Health,BARCHESTER HEALTHCARE HOMES LTD,09/01/2017,312.5
Bath and North East Somerset Council,80656239,LM6,Nursing Care,P11,Adult Social Care & Health,BARCHESTER HEALTHCARE HOMES LTD,09/01/2017,312.5
Bath and North East Somerset Council,80656239,LM6,Nursing Care,P11,Adult Social Care & Health,BARCHESTER HEALTHCARE HOMES LTD,09/01/2017,312.5
Bath and North East Somerset Council,80656239,LM6,Nursing Care,P11,Adult Social Care & Health,BARCHESTER HEALTHCARE HOMES LTD,09/01/2017,312.5
Bath and North East Somerset Council,80656239,LM6,Nursing Care,P11,Adult Social Care & Health,BARCHESTER HEALTHCARE HOMES LTD,09/01/2017,312.5
Bath and North East Somerset Council,80656239,LM6,Nursing Care,P11,Adult Social Care & Health,BARCHESTER HEALTHCARE HOMES LTD,09/01/2017,312.5
Bath and North East Somerset Council,80656239,LM6,Nursing Care,P11,Adult Social Care & Health,BARCHESTER HEALTHCARE HOMES LTD,09/01/2017,312.5
Bath and North East Somerset Council,80656239,LM6,Nursing Care,P11,Adult Social Care & Health,BARCHESTER HEALTHCARE HOMES LTD,09/01/2017,312.5
Bath and North East Somerset Council,80656239,LM6,Nursing Care,P11,Adult Social Care & Health,BARCHESTER HEALTHCARE HOMES LTD,09/01/2017,312.5
Bath and North East Somerset Council,80656239,LM6,Nursing Care,P11,Adult Social Care & Health,BARCHESTER HEALTHCARE HOMES LTD,09/01/2017,312.5
Bath and North East Somerset Council,80656239,LM6,Nursing Care,P11,Adult Social Care & Health,BARCHESTER HEALTHCARE HOMES LTD,09/01/2017,312.5
Bath and North East Somerset Council,80656239,LM6,Nursing Care,P11,Adult Social Care & Health,BARCHESTER HEALTHCARE HOMES LTD,09/01/2017,312.5
Bath and North East Somerset Council,80656239,LM6,Nursing Care,P11,Adult Social Care & Health,BARCHESTER HEALTHCARE HOMES LTD,09/01/2017,312.5
Bath and North East Somerset Council,80656239,LM6,Nursing Care,P11,Adult Social Care & Health,BARCHESTER HEALTHCARE HOMES LTD,09/01/2017,312.5
Bath and North East Somerset Council,80656239,LM6,Nursing Care,P11,Adult Social Care & Health,BARCHESTER HEALTHCARE HOMES LTD,09/01/2017,312.5
Bath and North East Somerset Council,80656239,LM6,Nursing Care,P11,Adult Social Care & Health,BARCHESTER HEALTHCARE HOMES LTD,09/01/2017,312.5
Bath and North East Somerset Council,80656239,LM6,Nursing Care,P11,Adult Social Care & Health,BARCHESTER HEALTHCARE HOMES LTD,09/01/2017,312.5
Bath and North East Somerset Council,80656239,LM6,Nursing Care,P11,Adult Social Care & Health,BARCHESTER HEALTHCARE HOMES LTD,09/01/2017,312.5
Bath and North East Somerset Council,80656239,LM6,Nursing Care,P11,Adult Social Care & Health,BARCHESTER HEALTHCARE HOMES LTD,09/01/2017,312.5
Bath and North East Somerset Council,80656239,LM6,Nursing Care,P11,Adult Social Care & Health,BARCHESTER HEALTHCARE HOMES LTD,09/01/2017,312.5
Bath and North East Somerset Council,80656239,LM6,Nursing Care,P11,Adult Social Care & Health,BARCHESTER HEALTHCARE HOMES LTD,09/01/2017,312.5
Bath and North East Somerset Council,80656239,LM6,Nursing Care,P11,Adult Social Care & Health,BARCHESTER HEALTHCARE HOMES LTD,09/01/2017,312.5
Bath and North East Somerset Council,80656239,LM6,Nursing Care,P11,Adult Social Care & Health,BARCHESTER HEALTHCARE HOMES LTD,09/01/2017,312.5
Bath and North East Somerset Council,80656239,LM6,Nursing Care,P11,Adult Social Care & Health,BARCHESTER HEALTHCARE HOMES LTD,09/01/2017,312.5
Bath and North East Somerset Council,80656239,LM6,Nursing Care,P11,Adult Social Care & Health,BARCHESTER HEALTHCARE HOMES LTD,09/01/2017,312.5
Bath and North East Somerset Council,10831739,KE3,Transport & Travel,P10,Finance & Efficiency,CT COACHES,09/01/2017,186
Bath and North East Somerset Council,80656722,LM3,Residential Care,P11,Adult Social Care & Health,BARCHESTER HEALTHCARE HOMES LTD,09/01/2017,1032
Bath and North East Somerset Council,80656722,LM6,Nursing Care,P11,Adult Social Care & Health,BARCHESTER HEALTHCARE HOMES LTD,09/01/2017,1152
Bath and North East Somerset Council,80656722,LM6,Nursing Care,P11,Adult Social Care & Health,BARCHESTER HEALTHCARE HOMES LTD,09/01/2017,1326
Bath and North East Somerset Council,80656722,LM3,Residential Care,P11,Adult Social Care & Health,BARCHESTER HEALTHCARE HOMES LTD,09/01/2017,1328
Bath and North East Somerset Council,80656276,LM6,Nursing Care,P11,Adult Social Care & Health,BARCHESTER HEALTHCARE HOMES LTD,09/01/2017,1492
Bath and North East Somerset Council,80656722,LM6,Nursing Care,P11,Adult Social Care & Health,BARCHESTER HEALTHCARE HOMES LTD,09/01/2017,1500
Bath and North East Somerset Council,80656722,LM6,Nursing Care,P11,Adult Social Care & Health,BARCHESTER HEALTHCARE HOMES LTD,09/01/2017,1516
Bath and North East Somerset Council,80656722,LM6,Nursing Care,P11,Adult Social Care & Health,BARCHESTER HEALTHCARE HOMES LTD,09/01/2017,1516
Bath and North East Somerset Council,80656722,LM6,Nursing Care,P11,Adult Social Care & Health,BARCHESTER HEALTHCARE HOMES LTD,09/01/2017,1516
Bath and North East Somerset Council,10831739,KE3,Transport & Travel,P10,Finance & Efficiency,CT COACHES,09/01/2017,192
Bath and North East Somerset Council,80656722,LM6,Nursing Care,P11,Adult Social Care & Health,BARCHESTER HEALTHCARE HOMES LTD,09/01/2017,1532
Bath and North East Somerset Council,80656709,LM6,Nursing Care,P11,Adult Social Care & Health,BARCHESTER HEALTHCARE HOMES LTD,09/01/2017,1550
Bath and North East Somerset Council,80656722,LM6,Nursing Care,P11,Adult Social Care & Health,BARCHESTER HEALTHCARE HOMES LTD,09/01/2017,1736
Bath and North East Somerset Council,80656722,LM6,Nursing Care,P11,Adult Social Care & Health,BARCHESTER HEALTHCARE HOMES LTD,09/01/2017,1736
Bath and North East Somerset Council,80656276,LM6,Nursing Care,P11,Adult Social Care & Health,BARCHESTER HEALTHCARE HOMES LTD,09/01/2017,1748
Bath and North East Somerset Council,80656722,LM6,Nursing Care,P11,Adult Social Care & Health,BARCHESTER HEALTHCARE HOMES LTD,09/01/2017,1768
Bath and North East Somerset Council,80656722,LM6,Nursing Care,P11,Adult Social Care & Health,BARCHESTER HEALTHCARE HOMES LTD,09/01/2017,1818
Bath and North East Somerset Council,80656722,LM6,Nursing Care,P11,Adult Social Care & Health,BARCHESTER HEALTHCARE HOMES LTD,09/01/2017,1838
Bath and North East Somerset Council,80656276,LM6,Nursing Care,P11,Adult Social Care & Health,BARCHESTER HEALTHCARE HOMES LTD,09/01/2017,1850
Bath and North East Somerset Council,80656722,LM6,Nursing Care,P11,Adult Social Care & Health,BARCHESTER HEALTHCARE HOMES LTD,09/01/2017,1850
Bath and North East Somerset Council,80656722,LM6,Nursing Care,P11,Adult Social Care & Health,BARCHESTER HEALTHCARE HOMES LTD,09/01/2017,1850
Bath and North East Somerset Council,80656722,LM6,Nursing Care,P11,Adult Social Care & Health,BARCHESTER HEALTHCARE HOMES LTD,09/01/2017,1850
Bath and North East Somerset Council,80656722,LM6,Nursing Care,P11,Adult Social Care & Health,BARCHESTER HEALTHCARE HOMES LTD,09/01/2017,1850
Bath and North East Somerset Council,80656722,LM6,Nursing Care,P11,Adult Social Care & Health,BARCHESTER HEALTHCARE HOMES LTD,09/01/2017,1850
Bath and North East Somerset Council,80656722,LM6,Nursing Care,P11,Adult Social Care & Health,BARCHESTER HEALTHCARE HOMES LTD,09/01/2017,1850
Bath and North East Somerset Council,80656722,LM6,Nursing Care,P11,Adult Social Care & Health,BARCHESTER HEALTHCARE HOMES LTD,09/01/2017,1850
Bath and North East Somerset Council,80656722,LM6,Nursing Care,P11,Adult Social Care & Health,BARCHESTER HEALTHCARE HOMES LTD,09/01/2017,1852
Bath and North East Somerset Council,80656722,LM6,Nursing Care,P11,Adult Social Care & Health,BARCHESTER HEALTHCARE HOMES LTD,09/01/2017,1880
Bath and North East Somerset Council,80656722,LM6,Nursing Care,P11,Adult Social Care & Health,BARCHESTER HEALTHCARE HOMES LTD,09/01/2017,1900
Bath and North East Somerset Council,80656722,LM6,Nursing Care,P11,Adult Social Care & Health,BARCHESTER HEALTHCARE HOMES LTD,09/01/2017,1920
Bath and North East Somerset Council,80656722,LM6,Nursing Care,P11,Adult Social Care & Health,BARCHESTER HEALTHCARE HOMES LTD,09/01/2017,1920
Bath and North East Somerset Council,80656722,LM6,Nursing Care,P11,Adult Social Care & Health,BARCHESTER HEALTHCARE HOMES LTD,09/01/2017,2020
Bath and North East Somerset Council,80656276,LM6,Nursing Care,P11,Adult Social Care & Health,BARCHESTER HEALTHCARE HOMES LTD,09/01/2017,2140
Bath and North East Somerset Council,80656239,LM6,Nursing Care,P11,Adult Social Care & Health,BARCHESTER HEALTHCARE HOMES LTD,09/01/2017,4375
Bath and North East Somerset Council,80656651,LM6,Nursing Care,P11,Adult Social Care & Health,BARCHESTER HEALTHCARE HOMES LTD,09/01/2017,6450
Bath and North East Somerset Council,80656248,LM6,Nursing Care,P11,Adult Social Care & Health,BARKER CHEMICALS LTD T/A ST TERESA'S NH,09/01/2017,312.5
Bath and North East Somerset Council,80656248,LM6,Nursing Care,P11,Adult Social Care & Health,BARKER CHEMICALS LTD T/A ST TERESA'S NH,09/01/2017,312.5
Bath and North East Somerset Council,80656248,LM6,Nursing Care,P11,Adult Social Care & Health,BARKER CHEMICALS LTD T/A ST TERESA'S NH,09/01/2017,312.5
Bath and North East Somerset Council,80656248,LM6,Nursing Care,P11,Adult Social Care & Health,BARKER CHEMICALS LTD T/A ST TERESA'S NH,09/01/2017,312.5
Bath and North East Somerset Council,80656248,LM6,Nursing Care,P11,Adult Social Care & Health,BARKER CHEMICALS LTD T/A ST TERESA'S NH,09/01/2017,312.5
Bath and North East Somerset Council,80656248,LM6,Nursing Care,P11,Adult Social Care & Health,BARKER CHEMICALS LTD T/A ST TERESA'S NH,09/01/2017,312.5
Bath and North East Somerset Council,80656248,LM6,Nursing Care,P11,Adult Social Care & Health,BARKER CHEMICALS LTD T/A ST TERESA'S NH,09/01/2017,312.5
Bath and North East Somerset Council,80656248,LM6,Nursing Care,P11,Adult Social Care & Health,BARKER CHEMICALS LTD T/A ST TERESA'S NH,09/01/2017,312.5
Bath and North East Somerset Council,80656248,LM6,Nursing Care,P11,Adult Social Care & Health,BARKER CHEMICALS LTD T/A ST TERESA'S NH,09/01/2017,312.5
Bath and North East Somerset Council,80656248,LM6,Nursing Care,P11,Adult Social Care & Health,BARKER CHEMICALS LTD T/A ST TERESA'S NH,09/01/2017,312.5
Bath and North East Somerset Council,80656248,LM6,Nursing Care,P11,Adult Social Care & Health,BARKER CHEMICALS LTD T/A ST TERESA'S NH,09/01/2017,312.5
Bath and North East Somerset Council,80656248,LM6,Nursing Care,P11,Adult Social Care & Health,BARKER CHEMICALS LTD T/A ST TERESA'S NH,09/01/2017,312.5
Bath and North East Somerset Council,80656248,LM6,Nursing Care,P11,Adult Social Care & Health,BARKER CHEMICALS LTD T/A ST TERESA'S NH,09/01/2017,312.5
Bath and North East Somerset Council,80656248,LM6,Nursing Care,P11,Adult Social Care & Health,BARKER CHEMICALS LTD T/A ST TERESA'S NH,09/01/2017,312.5
Bath and North East Somerset Council,80656248,LM6,Nursing Care,P11,Adult Social Care & Health,BARKER CHEMICALS LTD T/A ST TERESA'S NH,09/01/2017,312.5
Bath and North East Somerset Council,80656248,LM6,Nursing Care,P11,Adult Social Care & Health,BARKER CHEMICALS LTD T/A ST TERESA'S NH,09/01/2017,312.5
Bath and North East Somerset Council,80656248,LM6,Nursing Care,P11,Adult Social Care & Health,BARKER CHEMICALS LTD T/A ST TERESA'S NH,09/01/2017,312.5
Bath and North East Somerset Council,80656248,LM6,Nursing Care,P11,Adult Social Care & Health,BARKER CHEMICALS LTD T/A ST TERESA'S NH,09/01/2017,312.5
Bath and North East Somerset Council,80656742,LM6,Nursing Care,P11,Adult Social Care & Health,BARKER CHEMICALS LTD T/A ST TERESA'S NH,09/01/2017,1152
Bath and North East Somerset Council,80656742,LM6,Nursing Care,P11,Adult Social Care & Health,BARKER CHEMICALS LTD T/A ST TERESA'S NH,09/01/2017,1196
Bath and North East Somerset Council,80656742,LM6,Nursing Care,P11,Adult Social Care & Health,BARKER CHEMICALS LTD T/A ST TERESA'S NH,09/01/2017,1226
Bath and North East Somerset Council,80656742,LM6,Nursing Care,P11,Adult Social Care & Health,BARKER CHEMICALS LTD T/A ST TERESA'S NH,09/01/2017,1226
Bath and North East Somerset Council,80656742,LM6,Nursing Care,P11,Adult Social Care & Health,BARKER CHEMICALS LTD T/A ST TERESA'S NH,09/01/2017,1322
Bath and North East Somerset Council,80656742,LM6,Nursing Care,P11,Adult Social Care & Health,BARKER CHEMICALS LTD T/A ST TERESA'S NH,09/01/2017,1328
Bath and North East Somerset Council,80656742,LM6,Nursing Care,P11,Adult Social Care & Health,BARKER CHEMICALS LTD T/A ST TERESA'S NH,09/01/2017,1328
Bath and North East Somerset Council,80656742,LM6,Nursing Care,P11,Adult Social Care & Health,BARKER CHEMICALS LTD T/A ST TERESA'S NH,09/01/2017,1328
Bath and North East Somerset Council,80656742,LM6,Nursing Care,P11,Adult Social Care & Health,BARKER CHEMICALS LTD T/A ST TERESA'S NH,09/01/2017,1378
Bath and North East Somerset Council,80656742,LM6,Nursing Care,P11,Adult Social Care & Health,BARKER CHEMICALS LTD T/A ST TERESA'S NH,09/01/2017,1400
Bath and North East Somerset Council,10831692,3N7,Misc. Costs,P14,Community Services,TOM LEDBURY,09/01/2017,240
Bath and North East Somerset Council,80656742,LM6,Nursing Care,P11,Adult Social Care & Health,BARKER CHEMICALS LTD T/A ST TERESA'S NH,09/01/2017,1406
Bath and North East Somerset Council,80656742,LM6,Nursing Care,P11,Adult Social Care & Health,BARKER CHEMICALS LTD T/A ST TERESA'S NH,09/01/2017,1414
Bath and North East Somerset Council,80656742,LM6,Nursing Care,P11,Adult Social Care & Health,BARKER CHEMICALS LTD T/A ST TERESA'S NH,09/01/2017,1414
Bath and North East Somerset Council,80656742,LM6,Nursing Care,P11,Adult Social Care & Health,BARKER CHEMICALS LTD T/A ST TERESA'S NH,09/01/2017,1430
Bath and North East Somerset Council,80656742,LM6,Nursing Care,P11,Adult Social Care & Health,BARKER CHEMICALS LTD T/A ST TERESA'S NH,09/01/2017,1430
Bath and North East Somerset Council,80656742,LM6,Nursing Care,P11,Adult Social Care & Health,BARKER CHEMICALS LTD T/A ST TERESA'S NH,09/01/2017,1430
Bath and North East Somerset Council,80656742,LM6,Nursing Care,P11,Adult Social Care & Health,BARKER CHEMICALS LTD T/A ST TERESA'S NH,09/01/2017,1430
Bath and North East Somerset Council,80656742,LM6,Nursing Care,P11,Adult Social Care & Health,BARKER CHEMICALS LTD T/A ST TERESA'S NH,09/01/2017,1430
Bath and North East Somerset Council,80656742,LM6,Nursing Care,P11,Adult Social Care & Health,BARKER CHEMICALS LTD T/A ST TERESA'S NH,09/01/2017,1474
Bath and North East Somerset Council,80656291,LM6,Nursing Care,P11,Adult Social Care & Health,BARKER CHEMICALS LTD T/A ST TERESA'S NH,09/01/2017,1500
Bath and North East Somerset Council,80656742,LM6,Nursing Care,P11,Adult Social Care & Health,BARKER CHEMICALS LTD T/A ST TERESA'S NH,09/01/2017,1542
Bath and North East Somerset Council,80656742,LM6,Nursing Care,P11,Adult Social Care & Health,BARKER CHEMICALS LTD T/A ST TERESA'S NH,09/01/2017,1592
Bath and North East Somerset Council,80656742,LM6,Nursing Care,P11,Adult Social Care & Health,BARKER CHEMICALS LTD T/A ST TERESA'S NH,09/01/2017,1600
Bath and North East Somerset Council,80656742,LM6,Nursing Care,P11,Adult Social Care & Health,BARKER CHEMICALS LTD T/A ST TERESA'S NH,09/01/2017,1600
Bath and North East Somerset Council,80656742,LM6,Nursing Care,P11,Adult Social Care & Health,BARKER CHEMICALS LTD T/A ST TERESA'S NH,09/01/2017,1600
Bath and North East Somerset Council,80656742,LM6,Nursing Care,P11,Adult Social Care & Health,BARKER CHEMICALS LTD T/A ST TERESA'S NH,09/01/2017,1612
Bath and North East Somerset Council,80656742,LM6,Nursing Care,P11,Adult Social Care & Health,BARKER CHEMICALS LTD T/A ST TERESA'S NH,09/01/2017,1616
Bath and North East Somerset Council,80656742,LM6,Nursing Care,P11,Adult Social Care & Health,BARKER CHEMICALS LTD T/A ST TERESA'S NH,09/01/2017,1616
Bath and North East Somerset Council,80656742,LM6,Nursing Care,P11,Adult Social Care & Health,BARKER CHEMICALS LTD T/A ST TERESA'S NH,09/01/2017,1626
Bath and North East Somerset Council,80656742,LM6,Nursing Care,P11,Adult Social Care & Health,BARKER CHEMICALS LTD T/A ST TERESA'S NH,09/01/2017,1634
Bath and North East Somerset Council,80656742,LM6,Nursing Care,P11,Adult Social Care & Health,BARKER CHEMICALS LTD T/A ST TERESA'S NH,09/01/2017,1638
Bath and North East Somerset Council,80656742,LM6,Nursing Care,P11,Adult Social Care & Health,BARKER CHEMICALS LTD T/A ST TERESA'S NH,09/01/2017,1650
Bath and North East Somerset Council,10831739,KE3,Transport & Travel,P10,Finance & Efficiency,CT COACHES,09/01/2017,252
Bath and North East Somerset Council,80656742,LM6,Nursing Care,P11,Adult Social Care & Health,BARKER CHEMICALS LTD T/A ST TERESA'S NH,09/01/2017,1700
Bath and North East Somerset Council,80656742,LM6,Nursing Care,P11,Adult Social Care & Health,BARKER CHEMICALS LTD T/A ST TERESA'S NH,09/01/2017,1700
Bath and North East Somerset Council,80656742,LM6,Nursing Care,P11,Adult Social Care & Health,BARKER CHEMICALS LTD T/A ST TERESA'S NH,09/01/2017,1700
Bath and North East Somerset Council,80656742,LM6,Nursing Care,P11,Adult Social Care & Health,BARKER CHEMICALS LTD T/A ST TERESA'S NH,09/01/2017,1740
Bath and North East Somerset Council,80656291,LM6,Nursing Care,P11,Adult Social Care & Health,BARKER CHEMICALS LTD T/A ST TERESA'S NH,09/01/2017,1760
Bath and North East Somerset Council,80656742,LM6,Nursing Care,P11,Adult Social Care & Health,BARKER CHEMICALS LTD T/A ST TERESA'S NH,09/01/2017,1790
Bath and North East Somerset Council,80656742,LM6,Nursing Care,P11,Adult Social Care & Health,BARKER CHEMICALS LTD T/A ST TERESA'S NH,09/01/2017,1790
Bath and North East Somerset Council,80656291,LM6,Nursing Care,P11,Adult Social Care & Health,BARKER CHEMICALS LTD T/A ST TERESA'S NH,09/01/2017,1850
Bath and North East Somerset Council,80656291,LM6,Nursing Care,P11,Adult Social Care & Health,BARKER CHEMICALS LTD T/A ST TERESA'S NH,09/01/2017,1970
Bath and North East Somerset Council,80656742,LM6,Nursing Care,P11,Adult Social Care & Health,BARKER CHEMICALS LTD T/A ST TERESA'S NH,09/01/2017,5884
Bath and North East Somerset Council,80656380,LL8,Individualised Budget,P11,Adult Social Care & Health,REDACTED,09/01/2017,984.46
Bath and North East Somerset Council,80656729,LM3,Residential Care,P11,Adult Social Care & Health,BATH MIND,09/01/2017,1518.4
Bath and North East Somerset Council,10831739,KE3,Transport & Travel,P10,Finance & Efficiency,CT COACHES,09/01/2017,279
Bath and North East Somerset Council,80656729,LM3,Residential Care,P11,Adult Social Care & Health,BATH MIND,09/01/2017,1518.4
Bath and North East Somerset Council,80656729,LM3,Residential Care,P11,Adult Social Care & Health,BATH MIND,09/01/2017,1518.4
Bath and North East Somerset Council,80656729,LM3,Residential Care,P11,Adult Social Care & Health,BATH MIND,09/01/2017,1518.4
Bath and North East Somerset Council,80656729,LM3,Residential Care,P11,Adult Social Care & Health,BATH MIND,09/01/2017,1518.4
Bath and North East Somerset Council,80656729,LM3,Residential Care,P11,Adult Social Care & Health,BATH MIND,09/01/2017,1518.46
Bath and North East Somerset Council,80656725,LM3,Residential Care,P11,Adult Social Care & Health,BCVS HOMES,09/01/2017,904
Bath and North East Somerset Council,80656725,LM3,Residential Care,P11,Adult Social Care & Health,BCVS HOMES,09/01/2017,904
Bath and North East Somerset Council,80656725,LM3,Residential Care,P11,Adult Social Care & Health,BCVS HOMES,09/01/2017,904
Bath and North East Somerset Council,80656725,LM3,Residential Care,P11,Adult Social Care & Health,BCVS HOMES,09/01/2017,1022
Bath and North East Somerset Council,80656725,LM3,Residential Care,P11,Adult Social Care & Health,BCVS HOMES,09/01/2017,1154
Bath and North East Somerset Council,80656725,LM3,Residential Care,P11,Adult Social Care & Health,BCVS HOMES,09/01/2017,1164
Bath and North East Somerset Council,80656725,LM3,Residential Care,P11,Adult Social Care & Health,BCVS HOMES,09/01/2017,1180
Bath and North East Somerset Council,80656725,LM3,Residential Care,P11,Adult Social Care & Health,BCVS HOMES,09/01/2017,1212
Bath and North East Somerset Council,80656725,LM3,Residential Care,P11,Adult Social Care & Health,BCVS HOMES,09/01/2017,1228
Bath and North East Somerset Council,80656725,LM3,Residential Care,P11,Adult Social Care & Health,BCVS HOMES,09/01/2017,1300
Bath and North East Somerset Council,80656631,LM3,Residential Care,P11,Adult Social Care & Health,REDACTED,09/01/2017,1612
Bath and North East Somerset Council,80656645,LM3,Residential Care,P11,Adult Social Care & Health,BELMONT VILLA RESIDENTIAL NURSING HOME LTD,09/01/2017,1124
Bath and North East Somerset Council,80656645,LM6,Nursing Care,P11,Adult Social Care & Health,BELMONT VILLA RESIDENTIAL NURSING HOME LTD,09/01/2017,2042
Bath and North East Somerset Council,80656642,LM3,Residential Care,P11,Adult Social Care & Health,BOLE ALLER HOUSE LTD,09/01/2017,1488
Bath and North East Somerset Council,80656677,LM3,Residential Care,P11,Adult Social Care & Health,REDACTED,09/01/2017,4728.12
Bath and North East Somerset Council,80656232,LM6,Nursing Care,P11,Adult Social Care & Health,BRIDGE CARE LTD,09/01/2017,312.5
Bath and North East Somerset Council,80656232,LM6,Nursing Care,P11,Adult Social Care & Health,BRIDGE CARE LTD,09/01/2017,312.5
Bath and North East Somerset Council,80656232,LM6,Nursing Care,P11,Adult Social Care & Health,BRIDGE CARE LTD,09/01/2017,312.5
Bath and North East Somerset Council,80656232,LM6,Nursing Care,P11,Adult Social Care & Health,BRIDGE CARE LTD,09/01/2017,312.5
Bath and North East Somerset Council,80656232,LM6,Nursing Care,P11,Adult Social Care & Health,BRIDGE CARE LTD,09/01/2017,312.5
Bath and North East Somerset Council,80656232,LM6,Nursing Care,P11,Adult Social Care & Health,BRIDGE CARE LTD,09/01/2017,312.5
Bath and North East Somerset Council,80656232,LM6,Nursing Care,P11,Adult Social Care & Health,BRIDGE CARE LTD,09/01/2017,312.5
Bath and North East Somerset Council,80656232,LM6,Nursing Care,P11,Adult Social Care & Health,BRIDGE CARE LTD,09/01/2017,312.5
Bath and North East Somerset Council,80656232,LM6,Nursing Care,P11,Adult Social Care & Health,BRIDGE CARE LTD,09/01/2017,312.5
Bath and North East Somerset Council,80656232,LM6,Nursing Care,P11,Adult Social Care & Health,BRIDGE CARE LTD,09/01/2017,312.5
Bath and North East Somerset Council,80656715,LM3,Residential Care,P11,Adult Social Care & Health,BRIDGE CARE LTD,09/01/2017,904
Bath and North East Somerset Council,80656715,LM3,Residential Care,P11,Adult Social Care & Health,BRIDGE CARE LTD,09/01/2017,904
Bath and North East Somerset Council,80656715,LM3,Residential Care,P11,Adult Social Care & Health,BRIDGE CARE LTD,09/01/2017,904
Bath and North East Somerset Council,80656715,LM3,Residential Care,P11,Adult Social Care & Health,BRIDGE CARE LTD,09/01/2017,904
Bath and North East Somerset Council,80656715,LM6,Nursing Care,P11,Adult Social Care & Health,BRIDGE CARE LTD,09/01/2017,1152
Bath and North East Somerset Council,80656715,LM6,Nursing Care,P11,Adult Social Care & Health,BRIDGE CARE LTD,09/01/2017,1152
Bath and North East Somerset Council,80656715,LM6,Nursing Care,P11,Adult Social Care & Health,BRIDGE CARE LTD,09/01/2017,1152
Bath and North East Somerset Council,80656715,LM3,Residential Care,P11,Adult Social Care & Health,BRIDGE CARE LTD,09/01/2017,1212
Bath and North East Somerset Council,80656715,LM3,Residential Care,P11,Adult Social Care & Health,BRIDGE CARE LTD,09/01/2017,1300
Bath and North East Somerset Council,80656715,LM6,Nursing Care,P11,Adult Social Care & Health,BRIDGE CARE LTD,09/01/2017,1314
Bath and North East Somerset Council,80656715,LM6,Nursing Care,P11,Adult Social Care & Health,BRIDGE CARE LTD,09/01/2017,1634
Bath and North East Somerset Council,80656232,LM6,Nursing Care,P11,Adult Social Care & Health,BRIDGE CARE LTD,09/01/2017,1718.75
Bath and North East Somerset Council,80656269,LM6,Nursing Care,P11,Adult Social Care & Health,BRIDGE CARE LTD,09/01/2017,1750
Bath and North East Somerset Council,80656269,LM6,Nursing Care,P11,Adult Social Care & Health,BRIDGE CARE LTD,09/01/2017,1750
Bath and North East Somerset Council,80656715,LM6,Nursing Care,P11,Adult Social Care & Health,BRIDGE CARE LTD,09/01/2017,1988.57
Bath and North East Somerset Council,80656756,LM8,Home Care,P11,Adult Social Care & Health,BRIGHTBOW LODGE,09/01/2017,936
Bath and North East Somerset Council,80656601,LM3,Residential Care,P11,Adult Social Care & Health,BRIGHTBOW LODGE,09/01/2017,1280
Bath and North East Somerset Council,80656601,LM3,Residential Care,P11,Adult Social Care & Health,BRIGHTBOW LODGE,09/01/2017,1292
Bath and North East Somerset Council,80656601,LM6,Nursing Care,P11,Adult Social Care & Health,BRIGHTBOW LODGE,09/01/2017,1374
Bath and North East Somerset Council,80656601,LM6,Nursing Care,P11,Adult Social Care & Health,BRIGHTBOW LODGE,09/01/2017,1374
Bath and North East Somerset Council,80656601,LM6,Nursing Care,P11,Adult Social Care & Health,BRIGHTBOW LODGE,09/01/2017,1374
Bath and North East Somerset Council,80656601,LM3,Residential Care,P11,Adult Social Care & Health,BRIGHTBOW LODGE,09/01/2017,1482
Bath and North East Somerset Council,80656616,LM6,Nursing Care,P11,Adult Social Care & Health,BRISTOL AGE CARE,09/01/2017,2112.5
Bath and North East Somerset Council,80656280,LM6,Nursing Care,P11,Adult Social Care & Health,BROOKDALE HEALTHCARE LTD,09/01/2017,6468
Bath and North East Somerset Council,80656280,LM6,Nursing Care,P11,Adult Social Care & Health,BROOKDALE HEALTHCARE LTD,09/01/2017,6622
Bath and North East Somerset Council,80656653,LM3,Residential Care,P11,Adult Social Care & Health,BROUGHTON LODGE CARE HOME,09/01/2017,904
Bath and North East Somerset Council,80656681,LM3,Residential Care,P11,Adult Social Care & Health,BRUNEL CARE HOME,09/01/2017,1800
Bath and North East Somerset Council,80656681,LM6,Nursing Care,P11,Adult Social Care & Health,BRUNEL CARE HOME,09/01/2017,1800
Bath and North East Somerset Council,80656681,LM6,Nursing Care,P11,Adult Social Care & Health,BRUNEL CARE HOME,09/01/2017,1828
Bath and North East Somerset Council,80656681,LM6,Nursing Care,P11,Adult Social Care & Health,BRUNEL CARE HOME,09/01/2017,1828
Bath and North East Somerset Council,80656681,LM6,Nursing Care,P11,Adult Social Care & Health,BRUNEL CARE HOME,09/01/2017,1838
Bath and North East Somerset Council,80656301,LM6,Nursing Care,P11,Adult Social Care & Health,BRUNEL CARE HOME,09/01/2017,1986
Bath and North East Somerset Council,80656301,LM6,Nursing Care,P11,Adult Social Care & Health,BRUNEL CARE HOME,09/01/2017,1986
Bath and North East Somerset Council,80656681,LM6,Nursing Care,P11,Adult Social Care & Health,BRUNEL CARE HOME,09/01/2017,2100
Bath and North East Somerset Council,80656626,LM6,Nursing Care,P11,Adult Social Care & Health,BUPA CARE SERVICES,09/01/2017,1152
Bath and North East Somerset Council,80656634,LM6,Nursing Care,P11,Adult Social Care & Health,BUPA CARE SERVICES BACS RECEIPTS,09/01/2017,1196
Bath and North East Somerset Council,80656236,LM6,Nursing Care,P11,Adult Social Care & Health,BYBROOK HOUSE,09/01/2017,312.5
Bath and North East Somerset Council,80656236,LM6,Nursing Care,P11,Adult Social Care & Health,BYBROOK HOUSE,09/01/2017,312.5
Bath and North East Somerset Council,80656236,LM6,Nursing Care,P11,Adult Social Care & Health,BYBROOK HOUSE,09/01/2017,312.5
Bath and North East Somerset Council,80656236,LM6,Nursing Care,P11,Adult Social Care & Health,BYBROOK HOUSE,09/01/2017,312.5
Bath and North East Somerset Council,80656236,LM6,Nursing Care,P11,Adult Social Care & Health,BYBROOK HOUSE,09/01/2017,312.5
Bath and North East Somerset Council,80656273,LM6,Nursing Care,P11,Adult Social Care & Health,BYBROOK HOUSE,09/01/2017,1971.88
Bath and North East Somerset Council,80656628,LM3,Residential Care,P11,Adult Social Care & Health,C.H.O.I.C.E LTD,09/01/2017,4292
Bath and North East Somerset Council,80656628,LM3,Residential Care,P11,Adult Social Care & Health,C.H.O.I.C.E LTD,09/01/2017,4494
Bath and North East Somerset Council,80656303,LM6,Nursing Care,P11,Adult Social Care & Health,CAMBIAN HEALTHCARE LTD,09/01/2017,4739
Bath and North East Somerset Council,80656303,LM6,Nursing Care,P11,Adult Social Care & Health,CAMBIAN HEALTHCARE LTD,09/01/2017,5166
Bath and North East Somerset Council,80656303,LM6,Nursing Care,P11,Adult Social Care & Health,CAMBIAN HEALTHCARE LTD,09/01/2017,5300.04
Bath and North East Somerset Council,80656303,LM6,Nursing Care,P11,Adult Social Care & Health,CAMBIAN HEALTHCARE LTD,09/01/2017,5606
Bath and North East Somerset Council,80656303,LM6,Nursing Care,P11,Adult Social Care & Health,CAMBIAN HEALTHCARE LTD,09/01/2017,6300
Bath and North East Somerset Council,80656303,LM6,Nursing Care,P11,Adult Social Care & Health,CAMBIAN HEALTHCARE LTD,09/01/2017,6674.8
Bath and North East Somerset Council,80656656,LM3,Residential Care,P11,Adult Social Care & Health,CAMPANIA CARE HOME,09/01/2017,1540
Bath and North East Somerset Council,80656654,LM3,Residential Care,P11,Adult Social Care & Health,CAMPHILL DEVON COMMUNITY LTD,09/01/2017,1718
Bath and North East Somerset Council,80656695,LM6,Nursing Care,P11,Adult Social Care & Health,CARE AT ROBERTSBRIDGE LTD,09/01/2017,1226
Bath and North East Somerset Council,80656746,XD3,Client Contributions,P11,Adult Social Care & Health,CARE FIRST CARE HOMES LTD,09/01/2017,117.17
Bath and North East Somerset Council,80656249,LM6,Nursing Care,P11,Adult Social Care & Health,CARE FIRST CARE HOMES LTD,09/01/2017,312.5
Bath and North East Somerset Council,80656249,LM6,Nursing Care,P11,Adult Social Care & Health,CARE FIRST CARE HOMES LTD,09/01/2017,312.5
Bath and North East Somerset Council,80656249,LM6,Nursing Care,P11,Adult Social Care & Health,CARE FIRST CARE HOMES LTD,09/01/2017,312.5
Bath and North East Somerset Council,80656249,LM6,Nursing Care,P11,Adult Social Care & Health,CARE FIRST CARE HOMES LTD,09/01/2017,312.5
Bath and North East Somerset Council,80656249,LM6,Nursing Care,P11,Adult Social Care & Health,CARE FIRST CARE HOMES LTD,09/01/2017,312.5
Bath and North East Somerset Council,80656249,LM6,Nursing Care,P11,Adult Social Care & Health,CARE FIRST CARE HOMES LTD,09/01/2017,312.5
Bath and North East Somerset Council,80656249,LM6,Nursing Care,P11,Adult Social Care & Health,CARE FIRST CARE HOMES LTD,09/01/2017,312.5
Bath and North East Somerset Council,80656746,LM6,Nursing Care,P11,Adult Social Care & Health,CARE FIRST CARE HOMES LTD,09/01/2017,1152
Bath and North East Somerset Council,80656746,LM6,Nursing Care,P11,Adult Social Care & Health,CARE FIRST CARE HOMES LTD,09/01/2017,1152
Bath and North East Somerset Council,80656746,LM3,Residential Care,P11,Adult Social Care & Health,CARE FIRST CARE HOMES LTD,09/01/2017,1328
Bath and North East Somerset Council,80656746,LM3,Residential Care,P11,Adult Social Care & Health,CARE FIRST CARE HOMES LTD,09/01/2017,1422
Bath and North East Somerset Council,80656746,LM6,Nursing Care,P11,Adult Social Care & Health,CARE FIRST CARE HOMES LTD,09/01/2017,1940
Bath and North East Somerset Council,80656249,LM6,Nursing Care,P11,Adult Social Care & Health,CARE FIRST CARE HOMES LTD,09/01/2017,2857.14
Bath and North East Somerset Council,80656302,LM6,Nursing Care,P11,Adult Social Care & Health,CARE UK COMMUNITY PARTNERSHIP LTD,09/01/2017,1839.72
Bath and North East Somerset Council,80656682,LM3,Residential Care,P11,Adult Social Care & Health,CARE UK COMMUNITY PARTNERSHIPS LTD,09/01/2017,3654
Bath and North East Somerset Council,80656246,LM6,Nursing Care,P11,Adult Social Care & Health,CEDAR CARE HOMES LTD,09/01/2017,312.5
Bath and North East Somerset Council,80656246,LM6,Nursing Care,P11,Adult Social Care & Health,CEDAR CARE HOMES LTD,09/01/2017,312.5
Bath and North East Somerset Council,80656246,LM6,Nursing Care,P11,Adult Social Care & Health,CEDAR CARE HOMES LTD,09/01/2017,312.5
Bath and North East Somerset Council,80656246,LM6,Nursing Care,P11,Adult Social Care & Health,CEDAR CARE HOMES LTD,09/01/2017,312.5
Bath and North East Somerset Council,80656246,LM6,Nursing Care,P11,Adult Social Care & Health,CEDAR CARE HOMES LTD,09/01/2017,312.5
Bath and North East Somerset Council,80656246,LM6,Nursing Care,P11,Adult Social Care & Health,CEDAR CARE HOMES LTD,09/01/2017,312.5
Bath and North East Somerset Council,80656246,LM6,Nursing Care,P11,Adult Social Care & Health,CEDAR CARE HOMES LTD,09/01/2017,312.5
Bath and North East Somerset Council,80656246,LM6,Nursing Care,P11,Adult Social Care & Health,CEDAR CARE HOMES LTD,09/01/2017,312.5
Bath and North East Somerset Council,80656246,LM6,Nursing Care,P11,Adult Social Care & Health,CEDAR CARE HOMES LTD,09/01/2017,312.5
Bath and North East Somerset Council,80656246,LM6,Nursing Care,P11,Adult Social Care & Health,CEDAR CARE HOMES LTD,09/01/2017,312.5
Bath and North East Somerset Council,80656246,LM6,Nursing Care,P11,Adult Social Care & Health,CEDAR CARE HOMES LTD,09/01/2017,312.5
Bath and North East Somerset Council,80656246,LM6,Nursing Care,P11,Adult Social Care & Health,CEDAR CARE HOMES LTD,09/01/2017,312.5
Bath and North East Somerset Council,80656246,LM6,Nursing Care,P11,Adult Social Care & Health,CEDAR CARE HOMES LTD,09/01/2017,312.5
Bath and North East Somerset Council,80656246,LM6,Nursing Care,P11,Adult Social Care & Health,CEDAR CARE HOMES LTD,09/01/2017,312.5
Bath and North East Somerset Council,80656246,LM6,Nursing Care,P11,Adult Social Care & Health,CEDAR CARE HOMES LTD,09/01/2017,312.5
Bath and North East Somerset Council,80656246,LM6,Nursing Care,P11,Adult Social Care & Health,CEDAR CARE HOMES LTD,09/01/2017,312.5
Bath and North East Somerset Council,80656250,LM6,Nursing Care,P11,Adult Social Care & Health,CEDAR CARE HOMES LTD,09/01/2017,312.5
Bath and North East Somerset Council,80656250,LM6,Nursing Care,P11,Adult Social Care & Health,CEDAR CARE HOMES LTD,09/01/2017,312.5
Bath and North East Somerset Council,80656250,LM6,Nursing Care,P11,Adult Social Care & Health,CEDAR CARE HOMES LTD,09/01/2017,312.5
Bath and North East Somerset Council,80656250,LM6,Nursing Care,P11,Adult Social Care & Health,CEDAR CARE HOMES LTD,09/01/2017,312.5
Bath and North East Somerset Council,80656250,LM6,Nursing Care,P11,Adult Social Care & Health,CEDAR CARE HOMES LTD,09/01/2017,312.5
Bath and North East Somerset Council,80656250,LM6,Nursing Care,P11,Adult Social Care & Health,CEDAR CARE HOMES LTD,09/01/2017,312.5
Bath and North East Somerset Council,80656250,LM6,Nursing Care,P11,Adult Social Care & Health,CEDAR CARE HOMES LTD,09/01/2017,312.5
Bath and North East Somerset Council,80656250,LM6,Nursing Care,P11,Adult Social Care & Health,CEDAR CARE HOMES LTD,09/01/2017,312.5
Bath and North East Somerset Council,80656250,LM6,Nursing Care,P11,Adult Social Care & Health,CEDAR CARE HOMES LTD,09/01/2017,312.5
Bath and North East Somerset Council,80656250,LM6,Nursing Care,P11,Adult Social Care & Health,CEDAR CARE HOMES LTD,09/01/2017,312.5
Bath and North East Somerset Council,80656250,LM6,Nursing Care,P11,Adult Social Care & Health,CEDAR CARE HOMES LTD,09/01/2017,312.5
Bath and North East Somerset Council,80656250,LM6,Nursing Care,P11,Adult Social Care & Health,CEDAR CARE HOMES LTD,09/01/2017,312.5
Bath and North East Somerset Council,80656250,LM6,Nursing Care,P11,Adult Social Care & Health,CEDAR CARE HOMES LTD,09/01/2017,312.5
Bath and North East Somerset Council,80656250,LM6,Nursing Care,P11,Adult Social Care & Health,CEDAR CARE HOMES LTD,09/01/2017,312.5
Bath and North East Somerset Council,80656250,LM6,Nursing Care,P11,Adult Social Care & Health,CEDAR CARE HOMES LTD,09/01/2017,312.5
Bath and North East Somerset Council,80656250,LM6,Nursing Care,P11,Adult Social Care & Health,CEDAR CARE HOMES LTD,09/01/2017,312.5
Bath and North East Somerset Council,80656250,LM6,Nursing Care,P11,Adult Social Care & Health,CEDAR CARE HOMES LTD,09/01/2017,312.5
Bath and North East Somerset Council,80656250,LM6,Nursing Care,P11,Adult Social Care & Health,CEDAR CARE HOMES LTD,09/01/2017,312.5
Bath and North East Somerset Council,80656250,LM6,Nursing Care,P11,Adult Social Care & Health,CEDAR CARE HOMES LTD,09/01/2017,312.5
Bath and North East Somerset Council,80656250,LM6,Nursing Care,P11,Adult Social Care & Health,CEDAR CARE HOMES LTD,09/01/2017,312.5
Bath and North East Somerset Council,80656250,LM6,Nursing Care,P11,Adult Social Care & Health,CEDAR CARE HOMES LTD,09/01/2017,312.5
Bath and North East Somerset Council,80656250,LM6,Nursing Care,P11,Adult Social Care & Health,CEDAR CARE HOMES LTD,09/01/2017,312.5
Bath and North East Somerset Council,80656250,LM6,Nursing Care,P11,Adult Social Care & Health,CEDAR CARE HOMES LTD,09/01/2017,312.5
Bath and North East Somerset Council,80656250,LM6,Nursing Care,P11,Adult Social Care & Health,CEDAR CARE HOMES LTD,09/01/2017,312.5
Bath and North East Somerset Council,80656250,LM6,Nursing Care,P11,Adult Social Care & Health,CEDAR CARE HOMES LTD,09/01/2017,312.5
Bath and North East Somerset Council,80656250,LM6,Nursing Care,P11,Adult Social Care & Health,CEDAR CARE HOMES LTD,09/01/2017,312.5
Bath and North East Somerset Council,80656250,LM6,Nursing Care,P11,Adult Social Care & Health,CEDAR CARE HOMES LTD,09/01/2017,312.5
Bath and North East Somerset Council,80656250,LM6,Nursing Care,P11,Adult Social Care & Health,CEDAR CARE HOMES LTD,09/01/2017,312.5
Bath and North East Somerset Council,80656738,XD3,Client Contributions,P11,Adult Social Care & Health,CEDAR CARE HOMES LTD,09/01/2017,526.4
Bath and North East Somerset Council,80656733,LM3,Residential Care,P11,Adult Social Care & Health,CEDAR CARE HOMES LTD,09/01/2017,1022
Bath and North East Somerset Council,80656733,LM3,Residential Care,P11,Adult Social Care & Health,CEDAR CARE HOMES LTD,09/01/2017,1042
Bath and North East Somerset Council,80656733,LM3,Residential Care,P11,Adult Social Care & Health,CEDAR CARE HOMES LTD,09/01/2017,1042
Bath and North East Somerset Council,80656733,LM3,Residential Care,P11,Adult Social Care & Health,CEDAR CARE HOMES LTD,09/01/2017,1042
Bath and North East Somerset Council,80656733,LM3,Residential Care,P11,Adult Social Care & Health,CEDAR CARE HOMES LTD,09/01/2017,1124
Bath and North East Somerset Council,80656738,LM3,Residential Care,P11,Adult Social Care & Health,CEDAR CARE HOMES LTD,09/01/2017,1162
Bath and North East Somerset Council,80656738,LM6,Nursing Care,P11,Adult Social Care & Health,CEDAR CARE HOMES LTD,09/01/2017,1196
Bath and North East Somerset Council,80656738,LM6,Nursing Care,P11,Adult Social Care & Health,CEDAR CARE HOMES LTD,09/01/2017,1226
Bath and North East Somerset Council,80656246,LM6,Nursing Care,P11,Adult Social Care & Health,CEDAR CARE HOMES LTD,09/01/2017,1272.32
Bath and North East Somerset Council,80656283,LM6,Nursing Care,P11,Adult Social Care & Health,CEDAR CARE HOMES LTD,09/01/2017,1300
Bath and North East Somerset Council,80656738,LM6,Nursing Care,P11,Adult Social Care & Health,CEDAR CARE HOMES LTD,09/01/2017,1328
Bath and North East Somerset Council,80656747,LM6,Nursing Care,P11,Adult Social Care & Health,CEDAR CARE HOMES LTD,09/01/2017,1430
Bath and North East Somerset Council,80656733,XD3,Client Contributions,P11,Adult Social Care & Health,CEDAR CARE HOMES LTD,09/01/2017,1522.39
Bath and North East Somerset Council,80656738,LM6,Nursing Care,P11,Adult Social Care & Health,CEDAR CARE HOMES LTD,09/01/2017,1532
Bath and North East Somerset Council,80656747,LM6,Nursing Care,P11,Adult Social Care & Health,CEDAR CARE HOMES LTD,09/01/2017,1532
Bath and North East Somerset Council,80656747,LM6,Nursing Care,P11,Adult Social Care & Health,CEDAR CARE HOMES LTD,09/01/2017,1616
Bath and North East Somerset Council,80656283,LM6,Nursing Care,P11,Adult Social Care & Health,CEDAR CARE HOMES LTD,09/01/2017,1620
Bath and North East Somerset Council,80656747,LM6,Nursing Care,P11,Adult Social Care & Health,CEDAR CARE HOMES LTD,09/01/2017,1634
Bath and North East Somerset Council,80656738,LM6,Nursing Care,P11,Adult Social Care & Health,CEDAR CARE HOMES LTD,09/01/2017,1638
Bath and North East Somerset Council,80656738,LM6,Nursing Care,P11,Adult Social Care & Health,CEDAR CARE HOMES LTD,09/01/2017,1654
Bath and North East Somerset Council,80656738,LM6,Nursing Care,P11,Adult Social Care & Health,CEDAR CARE HOMES LTD,09/01/2017,1654
Bath and North East Somerset Council,80656738,LM6,Nursing Care,P11,Adult Social Care & Health,CEDAR CARE HOMES LTD,09/01/2017,1654
Bath and North East Somerset Council,80656747,LM6,Nursing Care,P11,Adult Social Care & Health,CEDAR CARE HOMES LTD,09/01/2017,1693.34
Bath and North East Somerset Council,80656738,LM6,Nursing Care,P11,Adult Social Care & Health,CEDAR CARE HOMES LTD,09/01/2017,1700
Bath and North East Somerset Council,80656747,LM6,Nursing Care,P11,Adult Social Care & Health,CEDAR CARE HOMES LTD,09/01/2017,1700
Bath and North East Somerset Council,80656738,LM6,Nursing Care,P11,Adult Social Care & Health,CEDAR CARE HOMES LTD,09/01/2017,1718
Bath and North East Somerset Council,80656738,LM6,Nursing Care,P11,Adult Social Care & Health,CEDAR CARE HOMES LTD,09/01/2017,1718
Bath and North East Somerset Council,80656738,LM6,Nursing Care,P11,Adult Social Care & Health,CEDAR CARE HOMES LTD,09/01/2017,1718
Bath and North East Somerset Council,80656747,LM6,Nursing Care,P11,Adult Social Care & Health,CEDAR CARE HOMES LTD,09/01/2017,1718
Bath and North East Somerset Council,80656747,LM6,Nursing Care,P11,Adult Social Care & Health,CEDAR CARE HOMES LTD,09/01/2017,1718
Bath and North East Somerset Council,80656250,LM6,Nursing Care,P11,Adult Social Care & Health,CEDAR CARE HOMES LTD,09/01/2017,1785.71
Bath and North East Somerset Council,80656747,LM6,Nursing Care,P11,Adult Social Care & Health,CEDAR CARE HOMES LTD,09/01/2017,1850
Bath and North East Somerset Council,80656738,LM6,Nursing Care,P11,Adult Social Care & Health,CEDAR CARE HOMES LTD,09/01/2017,1878
Bath and North East Somerset Council,80656733,LM3,Residential Care,P11,Adult Social Care & Health,CEDAR CARE HOMES LTD,09/01/2017,4996.21
Bath and North East Somerset Council,80656738,LM6,Nursing Care,P11,Adult Social Care & Health,CEDAR CARE HOMES LTD,09/01/2017,5378.51
Bath and North East Somerset Council,80656747,LM6,Nursing Care,P11,Adult Social Care & Health,CEDAR CARE HOMES LTD,09/01/2017,20457.14
Bath and North East Somerset Council,80656719,XD3,Client Contributions,P11,Adult Social Care & Health,CEDAR PARK NURSING HOME,09/01/2017,93.34
Bath and North East Somerset Council,80656719,LM3,Residential Care,P11,Adult Social Care & Health,CEDAR PARK NURSING HOME,09/01/2017,992
Bath and North East Somerset Council,80656719,LM6,Nursing Care,P11,Adult Social Care & Health,CEDAR PARK NURSING HOME,09/01/2017,1152
Bath and North East Somerset Council,80656719,LM6,Nursing Care,P11,Adult Social Care & Health,CEDAR PARK NURSING HOME,09/01/2017,1152
Bath and North East Somerset Council,80656719,LM6,Nursing Care,P11,Adult Social Care & Health,CEDAR PARK NURSING HOME,09/01/2017,1152
Bath and North East Somerset Council,80656719,LM6,Nursing Care,P11,Adult Social Care & Health,CEDAR PARK NURSING HOME,09/01/2017,1152
Bath and North East Somerset Council,80656719,LM6,Nursing Care,P11,Adult Social Care & Health,CEDAR PARK NURSING HOME,09/01/2017,1152
Bath and North East Somerset Council,80656719,LM6,Nursing Care,P11,Adult Social Care & Health,CEDAR PARK NURSING HOME,09/01/2017,1152
Bath and North East Somerset Council,80656719,LM6,Nursing Care,P11,Adult Social Care & Health,CEDAR PARK NURSING HOME,09/01/2017,1152
Bath and North East Somerset Council,80656719,LM6,Nursing Care,P11,Adult Social Care & Health,CEDAR PARK NURSING HOME,09/01/2017,1152
Bath and North East Somerset Council,80656719,LM6,Nursing Care,P11,Adult Social Care & Health,CEDAR PARK NURSING HOME,09/01/2017,1152
Bath and North East Somerset Council,80656719,LM6,Nursing Care,P11,Adult Social Care & Health,CEDAR PARK NURSING HOME,09/01/2017,1152
Bath and North East Somerset Council,80656719,LM6,Nursing Care,P11,Adult Social Care & Health,CEDAR PARK NURSING HOME,09/01/2017,1152
Bath and North East Somerset Council,80656719,LM6,Nursing Care,P11,Adult Social Care & Health,CEDAR PARK NURSING HOME,09/01/2017,1212
Bath and North East Somerset Council,80656719,LM6,Nursing Care,P11,Adult Social Care & Health,CEDAR PARK NURSING HOME,09/01/2017,1212
Bath and North East Somerset Council,80656719,LM6,Nursing Care,P11,Adult Social Care & Health,CEDAR PARK NURSING HOME,09/01/2017,1230
Bath and North East Somerset Council,80656719,LM6,Nursing Care,P11,Adult Social Care & Health,CEDAR PARK NURSING HOME,09/01/2017,1328
Bath and North East Somerset Council,80656719,LM6,Nursing Care,P11,Adult Social Care & Health,CEDAR PARK NURSING HOME,09/01/2017,1328
Bath and North East Somerset Council,80656719,LM6,Nursing Care,P11,Adult Social Care & Health,CEDAR PARK NURSING HOME,09/01/2017,1378
Bath and North East Somerset Council,80656719,LM6,Nursing Care,P11,Adult Social Care & Health,CEDAR PARK NURSING HOME,09/01/2017,1400
Bath and North East Somerset Council,80656719,LM6,Nursing Care,P11,Adult Social Care & Health,CEDAR PARK NURSING HOME,09/01/2017,1414
Bath and North East Somerset Council,80656719,LM6,Nursing Care,P11,Adult Social Care & Health,CEDAR PARK NURSING HOME,09/01/2017,1430
Bath and North East Somerset Council,80656272,LM6,Nursing Care,P11,Adult Social Care & Health,CEDAR PARK NURSING HOME,09/01/2017,1550
Bath and North East Somerset Council,80656719,LM6,Nursing Care,P11,Adult Social Care & Health,CEDAR PARK NURSING HOME,09/01/2017,1566
Bath and North East Somerset Council,80656719,LM6,Nursing Care,P11,Adult Social Care & Health,CEDAR PARK NURSING HOME,09/01/2017,1566
Bath and North East Somerset Council,80656719,LM6,Nursing Care,P11,Adult Social Care & Health,CEDAR PARK NURSING HOME,09/01/2017,1600
Bath and North East Somerset Council,80656719,LM6,Nursing Care,P11,Adult Social Care & Health,CEDAR PARK NURSING HOME,09/01/2017,1616
Bath and North East Somerset Council,80656719,LM6,Nursing Care,P11,Adult Social Care & Health,CEDAR PARK NURSING HOME,09/01/2017,1668
Bath and North East Somerset Council,80656719,LM6,Nursing Care,P11,Adult Social Care & Health,CEDAR PARK NURSING HOME,09/01/2017,1690
Bath and North East Somerset Council,80656719,LM6,Nursing Care,P11,Adult Social Care & Health,CEDAR PARK NURSING HOME,09/01/2017,1750
Bath and North East Somerset Council,80656719,LM6,Nursing Care,P11,Adult Social Care & Health,CEDAR PARK NURSING HOME,09/01/2017,1750
Bath and North East Somerset Council,80656719,LM6,Nursing Care,P11,Adult Social Care & Health,CEDAR PARK NURSING HOME,09/01/2017,1750
Bath and North East Somerset Council,80656719,LM6,Nursing Care,P11,Adult Social Care & Health,CEDAR PARK NURSING HOME,09/01/2017,1750
Bath and North East Somerset Council,80656272,LM6,Nursing Care,P11,Adult Social Care & Health,CEDAR PARK NURSING HOME,09/01/2017,1804
Bath and North East Somerset Council,80656272,LM6,Nursing Care,P11,Adult Social Care & Health,CEDAR PARK NURSING HOME,09/01/2017,2100
Bath and North East Somerset Council,80656719,LM6,Nursing Care,P11,Adult Social Care & Health,CEDAR PARK NURSING HOME,09/01/2017,2100
Bath and North East Somerset Council,80656272,LM6,Nursing Care,P11,Adult Social Care & Health,CEDAR PARK NURSING HOME,09/01/2017,3250
Bath and North East Somerset Council,80656658,LM6,Nursing Care,P11,Adult Social Care & Health,CEDARS CARE (WINSCOMBE HALL) LTD,09/01/2017,1218
Bath and North East Somerset Council,80656661,LM3,Residential Care,P11,Adult Social Care & Health,CEPEN LODGE CARE HOME,09/01/2017,1328
Bath and North East Somerset Council,80656697,LM3,Residential Care,P11,Adult Social Care & Health,CHASE LODGE CARE HOME,09/01/2017,1446
Bath and North East Somerset Council,10831399,LM6,Nursing Care,P11,Adult Social Care & Health,CHERRY GARDEN PROPERTIES LTD,09/01/2017,189.64
Bath and North East Somerset Council,80656251,LM6,Nursing Care,P11,Adult Social Care & Health,CHERRY GARDEN PROPERTIES LTD,09/01/2017,312.5
Bath and North East Somerset Council,80656251,LM6,Nursing Care,P11,Adult Social Care & Health,CHERRY GARDEN PROPERTIES LTD,09/01/2017,312.5
Bath and North East Somerset Council,80656251,LM6,Nursing Care,P11,Adult Social Care & Health,CHERRY GARDEN PROPERTIES LTD,09/01/2017,312.5
Bath and North East Somerset Council,80656251,LM6,Nursing Care,P11,Adult Social Care & Health,CHERRY GARDEN PROPERTIES LTD,09/01/2017,312.5
Bath and North East Somerset Council,80656251,LM6,Nursing Care,P11,Adult Social Care & Health,CHERRY GARDEN PROPERTIES LTD,09/01/2017,312.5
Bath and North East Somerset Council,80656251,LM6,Nursing Care,P11,Adult Social Care & Health,CHERRY GARDEN PROPERTIES LTD,09/01/2017,312.5
Bath and North East Somerset Council,80656251,LM6,Nursing Care,P11,Adult Social Care & Health,CHERRY GARDEN PROPERTIES LTD,09/01/2017,312.5
Bath and North East Somerset Council,80656251,LM6,Nursing Care,P11,Adult Social Care & Health,CHERRY GARDEN PROPERTIES LTD,09/01/2017,312.5
Bath and North East Somerset Council,80656251,LM6,Nursing Care,P11,Adult Social Care & Health,CHERRY GARDEN PROPERTIES LTD,09/01/2017,312.5
Bath and North East Somerset Council,80656251,LM6,Nursing Care,P11,Adult Social Care & Health,CHERRY GARDEN PROPERTIES LTD,09/01/2017,312.5
Bath and North East Somerset Council,80656251,LM6,Nursing Care,P11,Adult Social Care & Health,CHERRY GARDEN PROPERTIES LTD,09/01/2017,312.5
Bath and North East Somerset Council,80656251,LM6,Nursing Care,P11,Adult Social Care & Health,CHERRY GARDEN PROPERTIES LTD,09/01/2017,312.5
Bath and North East Somerset Council,80656251,LM6,Nursing Care,P11,Adult Social Care & Health,CHERRY GARDEN PROPERTIES LTD,09/01/2017,312.5
Bath and North East Somerset Council,80656251,LM6,Nursing Care,P11,Adult Social Care & Health,CHERRY GARDEN PROPERTIES LTD,09/01/2017,312.5
Bath and North East Somerset Council,80656251,LM6,Nursing Care,P11,Adult Social Care & Health,CHERRY GARDEN PROPERTIES LTD,09/01/2017,312.5
Bath and North East Somerset Council,80656251,LM6,Nursing Care,P11,Adult Social Care & Health,CHERRY GARDEN PROPERTIES LTD,09/01/2017,312.5
Bath and North East Somerset Council,80656251,LM6,Nursing Care,P11,Adult Social Care & Health,CHERRY GARDEN PROPERTIES LTD,09/01/2017,312.5
Bath and North East Somerset Council,80656750,LM6,Nursing Care,P11,Adult Social Care & Health,CHERRY GARDEN PROPERTIES LTD,09/01/2017,1152
Bath and North East Somerset Council,80656750,LM6,Nursing Care,P11,Adult Social Care & Health,CHERRY GARDEN PROPERTIES LTD,09/01/2017,1152
Bath and North East Somerset Council,80656750,LM6,Nursing Care,P11,Adult Social Care & Health,CHERRY GARDEN PROPERTIES LTD,09/01/2017,1152
Bath and North East Somerset Council,80656750,LM6,Nursing Care,P11,Adult Social Care & Health,CHERRY GARDEN PROPERTIES LTD,09/01/2017,1152
Bath and North East Somerset Council,80656750,LM6,Nursing Care,P11,Adult Social Care & Health,CHERRY GARDEN PROPERTIES LTD,09/01/2017,1152
Bath and North East Somerset Council,80656750,LM6,Nursing Care,P11,Adult Social Care & Health,CHERRY GARDEN PROPERTIES LTD,09/01/2017,1152
Bath and North East Somerset Council,80656750,LM6,Nursing Care,P11,Adult Social Care & Health,CHERRY GARDEN PROPERTIES LTD,09/01/2017,1152
Bath and North East Somerset Council,80656750,LM6,Nursing Care,P11,Adult Social Care & Health,CHERRY GARDEN PROPERTIES LTD,09/01/2017,1152
Bath and North East Somerset Council,80656750,LM3,Residential Care,P11,Adult Social Care & Health,CHERRY GARDEN PROPERTIES LTD,09/01/2017,1550
Bath and North East Somerset Council,80656750,LM6,Nursing Care,P11,Adult Social Care & Health,CHERRY GARDEN PROPERTIES LTD,09/01/2017,1770
Bath and North East Somerset Council,80656750,LM6,Nursing Care,P11,Adult Social Care & Health,CHERRY GARDEN PROPERTIES LTD,09/01/2017,1770
Bath and North East Somerset Council,10831399,LM6,Nursing Care,P11,Adult Social Care & Health,CHERRY GARDEN PROPERTIES LTD,09/01/2017,1826.89
Bath and North East Somerset Council,80656295,LM6,Nursing Care,P11,Adult Social Care & Health,CHERRY GARDEN PROPERTIES LTD,09/01/2017,3160.71
Bath and North East Somerset Council,80656604,LM3,Residential Care,P11,Adult Social Care & Health,CHESCOMBE TRUST,09/01/2017,2701.94
Bath and North East Somerset Council,80656287,LM3,Residential Care,P11,Adult Social Care & Health,CHOICE LTD,09/01/2017,4234
Bath and North East Somerset Council,80656678,LM6,Nursing Care,P11,Adult Social Care & Health,CHOLWELL CARE (NAILSEA) LTD,09/01/2017,1634
Bath and North East Somerset Council,80656231,LM6,Nursing Care,P11,Adult Social Care & Health,CHOLWELL HOUSE NURSING HOME,09/01/2017,312.5
Bath and North East Somerset Council,80656231,LM6,Nursing Care,P11,Adult Social Care & Health,CHOLWELL HOUSE NURSING HOME,09/01/2017,312.5
Bath and North East Somerset Council,80656231,LM6,Nursing Care,P11,Adult Social Care & Health,CHOLWELL HOUSE NURSING HOME,09/01/2017,312.5
Bath and North East Somerset Council,80656231,LM6,Nursing Care,P11,Adult Social Care & Health,CHOLWELL HOUSE NURSING HOME,09/01/2017,312.5
Bath and North East Somerset Council,80656231,LM6,Nursing Care,P11,Adult Social Care & Health,CHOLWELL HOUSE NURSING HOME,09/01/2017,312.5
Bath and North East Somerset Council,80656231,LM6,Nursing Care,P11,Adult Social Care & Health,CHOLWELL HOUSE NURSING HOME,09/01/2017,312.5
Bath and North East Somerset Council,80656231,LM6,Nursing Care,P11,Adult Social Care & Health,CHOLWELL HOUSE NURSING HOME,09/01/2017,312.5
Bath and North East Somerset Council,80656231,LM6,Nursing Care,P11,Adult Social Care & Health,CHOLWELL HOUSE NURSING HOME,09/01/2017,312.5
Bath and North East Somerset Council,80656231,LM6,Nursing Care,P11,Adult Social Care & Health,CHOLWELL HOUSE NURSING HOME,09/01/2017,312.5
Bath and North East Somerset Council,80656231,LM6,Nursing Care,P11,Adult Social Care & Health,CHOLWELL HOUSE NURSING HOME,09/01/2017,312.5
Bath and North East Somerset Council,80656231,LM6,Nursing Care,P11,Adult Social Care & Health,CHOLWELL HOUSE NURSING HOME,09/01/2017,312.5
Bath and North East Somerset Council,80656231,LM6,Nursing Care,P11,Adult Social Care & Health,CHOLWELL HOUSE NURSING HOME,09/01/2017,312.5
Bath and North East Somerset Council,80656231,LM6,Nursing Care,P11,Adult Social Care & Health,CHOLWELL HOUSE NURSING HOME,09/01/2017,312.5
Bath and North East Somerset Council,80656231,LM6,Nursing Care,P11,Adult Social Care & Health,CHOLWELL HOUSE NURSING HOME,09/01/2017,625
Bath and North East Somerset Council,80656714,LM6,Nursing Care,P11,Adult Social Care & Health,CHOLWELL HOUSE NURSING HOME,09/01/2017,1364
Bath and North East Somerset Council,80656714,LM6,Nursing Care,P11,Adult Social Care & Health,CHOLWELL HOUSE NURSING HOME,09/01/2017,1480
Bath and North East Somerset Council,80656714,LM6,Nursing Care,P11,Adult Social Care & Health,CHOLWELL HOUSE NURSING HOME,09/01/2017,1664
Bath and North East Somerset Council,80656267,LM6,Nursing Care,P11,Adult Social Care & Health,CHOLWELL HOUSE NURSING HOME,09/01/2017,1700
Bath and North East Somerset Council,80656267,LM6,Nursing Care,P11,Adult Social Care & Health,CHOLWELL HOUSE NURSING HOME,09/01/2017,1700
Bath and North East Somerset Council,80656714,LM6,Nursing Care,P11,Adult Social Care & Health,CHOLWELL HOUSE NURSING HOME,09/01/2017,1700
Bath and North East Somerset Council,80656714,LM6,Nursing Care,P11,Adult Social Care & Health,CHOLWELL HOUSE NURSING HOME,09/01/2017,1718
Bath and North East Somerset Council,80656267,LM6,Nursing Care,P11,Adult Social Care & Health,CHOLWELL HOUSE NURSING HOME,09/01/2017,1812
Bath and North East Somerset Council,80656714,LM6,Nursing Care,P11,Adult Social Care & Health,CHOLWELL HOUSE NURSING HOME,09/01/2017,2588.57
Bath and North East Somerset Council,80656714,LM6,Nursing Care,P11,Adult Social Care & Health,CHOLWELL HOUSE NURSING HOME,09/01/2017,2785.72
Bath and North East Somerset Council,80656714,LM6,Nursing Care,P11,Adult Social Care & Health,CHOLWELL HOUSE NURSING HOME,09/01/2017,3600
Bath and North East Somerset Council,80656267,LM6,Nursing Care,P11,Adult Social Care & Health,CHOLWELL HOUSE NURSING HOME,09/01/2017,4052
Bath and North East Somerset Council,80656267,LM6,Nursing Care,P11,Adult Social Care & Health,CHOLWELL HOUSE NURSING HOME,09/01/2017,6212.57
Bath and North East Somerset Council,80656714,LM6,Nursing Care,P11,Adult Social Care & Health,CHOLWELL HOUSE NURSING HOME,09/01/2017,15745.71
Bath and North East Somerset Council,80656603,LM3,Residential Care,P11,Adult Social Care & Health,CLAREMONT RESIDENTIAL HOME,09/01/2017,1100
Bath and North East Somerset Council,80649702,LL8,Individualised Budget,P11,Adult Social Care & Health,REDACTED,09/01/2017,1025.16
Bath and North East Somerset Council,80653225,LL8,Individualised Budget,P11,Adult Social Care & Health,REDACTED,09/01/2017,1025.16
Bath and North East Somerset Council,80656381,LL8,Individualised Budget,P11,Adult Social Care & Health,REDACTED,09/01/2017,1025.16
Bath and North East Somerset Council,80656613,LM3,Residential Care,P11,Adult Social Care & Health,COCKLEBURY FARMHOUSE,09/01/2017,2012
Bath and North East Somerset Council,80656288,LM6,Nursing Care,P11,Adult Social Care & Health,COMMUNITY OF ST ANTONY & ST ELIAS & REV,09/01/2017,3330
Bath and North East Somerset Council,80656762,LL3,Supported Living,P11,Adult Social Care & Health,COMMUNITY OF ST ANTONY & ST ELIAS & REV,09/01/2017,3560
Bath and North East Somerset Council,80656745,LM3,Residential Care,P11,Adult Social Care & Health,CONSENSUS SUPPORT SERVICES LTD,09/01/2017,3914
Bath and North East Somerset Council,80656745,LM3,Residential Care,P11,Adult Social Care & Health,CONSENSUS SUPPORT SERVICES LTD,09/01/2017,3994
Bath and North East Somerset Council,80656745,LM3,Residential Care,P11,Adult Social Care & Health,CONSENSUS SUPPORT SERVICES LTD,09/01/2017,4074
Bath and North East Somerset Council,80656745,LM3,Residential Care,P11,Adult Social Care & Health,CONSENSUS SUPPORT SERVICES LTD,09/01/2017,4074
Bath and North East Somerset Council,80656745,LM3,Residential Care,P11,Adult Social Care & Health,CONSENSUS SUPPORT SERVICES LTD,09/01/2017,8002
Bath and North East Somerset Council,80656347,LL8,Individualised Budget,P11,Adult Social Care & Health,REDACTED,09/01/2017,734.48
Bath and North East Somerset Council,80656615,LM3,Residential Care,P11,Adult Social Care & Health,CORNERSTONES UK LTD,09/01/2017,1504
Bath and North East Somerset Council,80656636,LM3,Residential Care,P11,Adult Social Care & Health,CORNERSTONES UK LTD,09/01/2017,3059
Bath and North East Somerset Council,80656638,LM3,Residential Care,P11,Adult Social Care & Health,CRAEGMOOR FACILITIES - REDACTED,09/01/2017,3402
Bath and North East Somerset Council,80656650,LM3,Residential Care,P11,Adult Social Care & Health,CRAEGMOOR FACILITIES - CHERRYWOOD HOU,09/01/2017,1600
Bath and North East Somerset Council,80656713,LM3,Residential Care,P11,Adult Social Care & Health,CRAEGMOOR FACILITIES - ELM TREE HOUSE,09/01/2017,2004
Bath and North East Somerset Council,80656713,LM3,Residential Care,P11,Adult Social Care & Health,CRAEGMOOR FACILITIES - ELM TREE HOUSE,09/01/2017,2288
Bath and North East Somerset Council,80656713,LM3,Residential Care,P11,Adult Social Care & Health,CRAEGMOOR FACILITIES - ELM TREE HOUSE,09/01/2017,2678.18
Bath and North East Somerset Council,80656614,LM3,Residential Care,P11,Adult Social Care & Health,CRAEGMOOR FACILITIES - OLD VICARAGE,09/01/2017,2484
Bath and North East Somerset Council,80656691,LM3,Residential Care,P11,Adult Social Care & Health,CRAEGMOOR FACILITIES CO LTD,09/01/2017,3170
Bath and North East Somerset Council,80656234,LM6,Nursing Care,P11,Adult Social Care & Health,CRANHILL NURSING HOME LTD,09/01/2017,312.5
Bath and North East Somerset Council,80656234,LM6,Nursing Care,P11,Adult Social Care & Health,CRANHILL NURSING HOME LTD,09/01/2017,312.5
Bath and North East Somerset Council,80656234,LM6,Nursing Care,P11,Adult Social Care & Health,CRANHILL NURSING HOME LTD,09/01/2017,312.5
Bath and North East Somerset Council,80656234,LM6,Nursing Care,P11,Adult Social Care & Health,CRANHILL NURSING HOME LTD,09/01/2017,312.5
Bath and North East Somerset Council,80656234,LM6,Nursing Care,P11,Adult Social Care & Health,CRANHILL NURSING HOME LTD,09/01/2017,312.5
Bath and North East Somerset Council,80656234,LM6,Nursing Care,P11,Adult Social Care & Health,CRANHILL NURSING HOME LTD,09/01/2017,312.5
Bath and North East Somerset Council,80656234,LM6,Nursing Care,P11,Adult Social Care & Health,CRANHILL NURSING HOME LTD,09/01/2017,312.5
Bath and North East Somerset Council,80656234,LM6,Nursing Care,P11,Adult Social Care & Health,CRANHILL NURSING HOME LTD,09/01/2017,312.5
Bath and North East Somerset Council,80656234,LM6,Nursing Care,P11,Adult Social Care & Health,CRANHILL NURSING HOME LTD,09/01/2017,312.5
Bath and North East Somerset Council,80656234,LM6,Nursing Care,P11,Adult Social Care & Health,CRANHILL NURSING HOME LTD,09/01/2017,312.5
Bath and North East Somerset Council,80656234,LM6,Nursing Care,P11,Adult Social Care & Health,CRANHILL NURSING HOME LTD,09/01/2017,312.5
Bath and North East Somerset Council,80656234,LM6,Nursing Care,P11,Adult Social Care & Health,CRANHILL NURSING HOME LTD,09/01/2017,312.5
Bath and North East Somerset Council,80656234,LM6,Nursing Care,P11,Adult Social Care & Health,CRANHILL NURSING HOME LTD,09/01/2017,312.5
Bath and North East Somerset Council,80656234,LM6,Nursing Care,P11,Adult Social Care & Health,CRANHILL NURSING HOME LTD,09/01/2017,312.5
Bath and North East Somerset Council,80656718,LM6,Nursing Care,P11,Adult Social Care & Health,CRANHILL NURSING HOME LTD,09/01/2017,1350
Bath and North East Somerset Council,80656718,LM6,Nursing Care,P11,Adult Social Care & Health,CRANHILL NURSING HOME LTD,09/01/2017,1532
Bath and North East Somerset Council,80656718,LM6,Nursing Care,P11,Adult Social Care & Health,CRANHILL NURSING HOME LTD,09/01/2017,1718
Bath and North East Somerset Council,80656718,LM6,Nursing Care,P11,Adult Social Care & Health,CRANHILL NURSING HOME LTD,09/01/2017,1718
Bath and North East Somerset Council,80656271,LM6,Nursing Care,P11,Adult Social Care & Health,CRANHILL NURSING HOME LTD,09/01/2017,1750
Bath and North East Somerset Council,80656271,LM6,Nursing Care,P11,Adult Social Care & Health,CRANHILL NURSING HOME LTD,09/01/2017,2125
Bath and North East Somerset Council,80656665,LM3,Residential Care,P11,Adult Social Care & Health,CREAM HOLDING (TAUNTON) LTD,09/01/2017,5066
Bath and North East Somerset Council,80656646,LM3,Residential Care,P11,Adult Social Care & Health,CREAM I LTD,09/01/2017,5230
Bath and North East Somerset Council,80656687,LM3,Residential Care,P11,Adult Social Care & Health,CREAM III LTD,09/01/2017,3432
Bath and North East Somerset Council,80656687,LM3,Residential Care,P11,Adult Social Care & Health,CREAM III LTD,09/01/2017,4930
Bath and North East Somerset Council,80656237,LM6,Nursing Care,P11,Adult Social Care & Health,CULVERHAY NURSING HOME,09/01/2017,22.32
Bath and North East Somerset Council,80656237,LM6,Nursing Care,P11,Adult Social Care & Health,CULVERHAY NURSING HOME,09/01/2017,312.5
Bath and North East Somerset Council,80656237,LM6,Nursing Care,P11,Adult Social Care & Health,CULVERHAY NURSING HOME,09/01/2017,312.5
Bath and North East Somerset Council,80656237,LM6,Nursing Care,P11,Adult Social Care & Health,CULVERHAY NURSING HOME,09/01/2017,312.5
Bath and North East Somerset Council,80656237,LM6,Nursing Care,P11,Adult Social Care & Health,CULVERHAY NURSING HOME,09/01/2017,312.5
Bath and North East Somerset Council,80656237,LM6,Nursing Care,P11,Adult Social Care & Health,CULVERHAY NURSING HOME,09/01/2017,312.5
Bath and North East Somerset Council,80656237,LM6,Nursing Care,P11,Adult Social Care & Health,CULVERHAY NURSING HOME,09/01/2017,312.5
Bath and North East Somerset Council,80656237,LM6,Nursing Care,P11,Adult Social Care & Health,CULVERHAY NURSING HOME,09/01/2017,312.5
Bath and North East Somerset Council,80656237,LM6,Nursing Care,P11,Adult Social Care & Health,CULVERHAY NURSING HOME,09/01/2017,312.5
Bath and North East Somerset Council,80656237,LM6,Nursing Care,P11,Adult Social Care & Health,CULVERHAY NURSING HOME,09/01/2017,312.5
Bath and North East Somerset Council,80656237,LM6,Nursing Care,P11,Adult Social Care & Health,CULVERHAY NURSING HOME,09/01/2017,312.5
Bath and North East Somerset Council,80656237,LM6,Nursing Care,P11,Adult Social Care & Health,CULVERHAY NURSING HOME,09/01/2017,312.5
Bath and North East Somerset Council,80656720,LM6,Nursing Care,P11,Adult Social Care & Health,CULVERHAY NURSING HOME,09/01/2017,1602.86
Bath and North East Somerset Council,80656720,LM6,Nursing Care,P11,Adult Social Care & Health,CULVERHAY NURSING HOME,09/01/2017,1636.2
Bath and North East Somerset Council,80656274,LM6,Nursing Care,P11,Adult Social Care & Health,CULVERHAY NURSING HOME,09/01/2017,1870
Bath and North East Somerset Council,80656274,LM6,Nursing Care,P11,Adult Social Care & Health,CULVERHAY NURSING HOME,09/01/2017,1870
Bath and North East Somerset Council,80656274,LM6,Nursing Care,P11,Adult Social Care & Health,CULVERHAY NURSING HOME,09/01/2017,1870
Bath and North East Somerset Council,80656274,LM6,Nursing Care,P11,Adult Social Care & Health,CULVERHAY NURSING HOME,09/01/2017,1870
Bath and North East Somerset Council,10831881,HA1,Responsive Maintenance,P13,Economic Development,ADT FIRE & SECURITY PLC,09/01/2017,455
Bath and North East Somerset Council,80656274,LM6,Nursing Care,P11,Adult Social Care & Health,CULVERHAY NURSING HOME,09/01/2017,1870
Bath and North East Somerset Council,80656274,LM6,Nursing Care,P11,Adult Social Care & Health,CULVERHAY NURSING HOME,09/01/2017,1870
Bath and North East Somerset Council,80656274,LM6,Nursing Care,P11,Adult Social Care & Health,CULVERHAY NURSING HOME,09/01/2017,1870
Bath and North East Somerset Council,80656720,LM6,Nursing Care,P11,Adult Social Care & Health,CULVERHAY NURSING HOME,09/01/2017,1870
Bath and North East Somerset Council,10831692,3N7,Misc. Costs,P14,Community Services,TOM LEDBURY,09/01/2017,467
Bath and North East Somerset Council,80656720,LM6,Nursing Care,P11,Adult Social Care & Health,CULVERHAY NURSING HOME,09/01/2017,1870
Bath and North East Somerset Council,80656759,LM9,Day Care,P11,Adult Social Care & Health,S.W.A.L.L.O.W. LTD,09/01/2017,469.38
Bath and North East Somerset Council,80656720,LM6,Nursing Care,P11,Adult Social Care & Health,CULVERHAY NURSING HOME,09/01/2017,1870
Bath and North East Somerset Council,80656720,LM6,Nursing Care,P11,Adult Social Care & Health,CULVERHAY NURSING HOME,09/01/2017,1870
Bath and North East Somerset Council,80656720,LM6,Nursing Care,P11,Adult Social Care & Health,CULVERHAY NURSING HOME,09/01/2017,1870
Bath and North East Somerset Council,80656720,LM6,Nursing Care,P11,Adult Social Care & Health,CULVERHAY NURSING HOME,09/01/2017,1870
Bath and North East Somerset Council,80656720,LM6,Nursing Care,P11,Adult Social Care & Health,CULVERHAY NURSING HOME,09/01/2017,1870
Bath and North East Somerset Council,80656720,LM6,Nursing Care,P11,Adult Social Care & Health,CULVERHAY NURSING HOME,09/01/2017,1870
Bath and North East Somerset Council,80656720,LM6,Nursing Care,P11,Adult Social Care & Health,CULVERHAY NURSING HOME,09/01/2017,1870
Bath and North East Somerset Council,80656720,LM6,Nursing Care,P11,Adult Social Care & Health,CULVERHAY NURSING HOME,09/01/2017,1870
Bath and North East Somerset Council,80656720,LM6,Nursing Care,P11,Adult Social Care & Health,CULVERHAY NURSING HOME,09/01/2017,1870
Bath and North East Somerset Council,80656720,LM6,Nursing Care,P11,Adult Social Care & Health,CULVERHAY NURSING HOME,09/01/2017,1870
Bath and North East Somerset Council,80656720,LM6,Nursing Care,P11,Adult Social Care & Health,CULVERHAY NURSING HOME,09/01/2017,1870
Bath and North East Somerset Council,80656720,LM6,Nursing Care,P11,Adult Social Care & Health,CULVERHAY NURSING HOME,09/01/2017,1870
Bath and North East Somerset Council,80656720,LM6,Nursing Care,P11,Adult Social Care & Health,CULVERHAY NURSING HOME,09/01/2017,1870
Bath and North East Somerset Council,80656720,LM6,Nursing Care,P11,Adult Social Care & Health,CULVERHAY NURSING HOME,09/01/2017,1870
Bath and North East Somerset Council,80656720,LM6,Nursing Care,P11,Adult Social Care & Health,CULVERHAY NURSING HOME,09/01/2017,1870
Bath and North East Somerset Council,80656720,LM6,Nursing Care,P11,Adult Social Care & Health,CULVERHAY NURSING HOME,09/01/2017,1870
Bath and North East Somerset Council,80656720,LM6,Nursing Care,P11,Adult Social Care & Health,CULVERHAY NURSING HOME,09/01/2017,1870
Bath and North East Somerset Council,80656720,LM6,Nursing Care,P11,Adult Social Care & Health,CULVERHAY NURSING HOME,09/01/2017,1870
Bath and North East Somerset Council,80656720,LM6,Nursing Care,P11,Adult Social Care & Health,CULVERHAY NURSING HOME,09/01/2017,1870
Bath and North East Somerset Council,80656720,LM6,Nursing Care,P11,Adult Social Care & Health,CULVERHAY NURSING HOME,09/01/2017,1870
Bath and North East Somerset Council,80656720,LM6,Nursing Care,P11,Adult Social Care & Health,CULVERHAY NURSING HOME,09/01/2017,1870
Bath and North East Somerset Council,80656720,LM6,Nursing Care,P11,Adult Social Care & Health,CULVERHAY NURSING HOME,09/01/2017,1870
Bath and North East Somerset Council,80656720,LM6,Nursing Care,P11,Adult Social Care & Health,CULVERHAY NURSING HOME,09/01/2017,3962.2
Bath and North East Somerset Council,80656720,LM6,Nursing Care,P11,Adult Social Care & Health,CULVERHAY NURSING HOME,09/01/2017,8147.86
Bath and North East Somerset Council,10831905,LJ1,Consultants Fees,P11,Adult Social Care & Health,COAST SOCIAL WORK LTD,09/01/2017,500
Bath and North East Somerset Council,80656720,LM6,Nursing Care,P11,Adult Social Care & Health,CULVERHAY NURSING HOME,09/01/2017,12824.23
Bath and North East Somerset Council,10831804,LL1,Services to/for Clients,P12,Children's Services,CURO,09/01/2017,1500
Bath and North East Somerset Council,80656680,LM3,Residential Care,P11,Adult Social Care & Health,D & C AUTISTIC COMM TRUST,09/01/2017,5384
Bath and North East Somerset Council,80656521,LL8,Individualised Budget,P11,Adult Social Care & Health,REDACTED,09/01/2017,3004.64
Bath and North East Somerset Council,80656435,LL8,Individualised Budget,P11,Adult Social Care & Health,REDACTED - CARE ACCOUNT,09/01/2017,2868.02
Bath and North East Somerset Council,80656659,LM6,Nursing Care,P11,Adult Social Care & Health,REDACTED,09/01/2017,1373.46
Bath and North East Somerset Council,10831697,LV2,Contributions to Organisations,P04,Leader,DEMENTIA FRIENDLY KEYNSHAM,09/01/2017,1700
Bath and North East Somerset Council,80656323,LL8,Individualised Budget,P11,Adult Social Care & Health,DEVELOPING HEALTH AND INDEPENDENCE,09/01/2017,52
Bath and North East Somerset Council,80656323,LL8,Individualised Budget,P11,Adult Social Care & Health,DEVELOPING HEALTH AND INDEPENDENCE,09/01/2017,73.04
Bath and North East Somerset Council,80656323,LL8,Individualised Budget,P11,Adult Social Care & Health,DEVELOPING HEALTH AND INDEPENDENCE,09/01/2017,88
Bath and North East Somerset Council,80656323,LL8,Individualised Budget,P11,Adult Social Care & Health,DEVELOPING HEALTH AND INDEPENDENCE,09/01/2017,93.16
Bath and North East Somerset Council,80656323,LL8,Individualised Budget,P11,Adult Social Care & Health,DEVELOPING HEALTH AND INDEPENDENCE,09/01/2017,95
Bath and North East Somerset Council,80656323,LL8,Individualised Budget,P11,Adult Social Care & Health,DEVELOPING HEALTH AND INDEPENDENCE,09/01/2017,106
Bath and North East Somerset Council,80656323,LL8,Individualised Budget,P11,Adult Social Care & Health,DEVELOPING HEALTH AND INDEPENDENCE,09/01/2017,111.22
Bath and North East Somerset Council,80656323,LL8,Individualised Budget,P11,Adult Social Care & Health,DEVELOPING HEALTH AND INDEPENDENCE,09/01/2017,111.4
Bath and North East Somerset Council,80656323,LL8,Individualised Budget,P11,Adult Social Care & Health,DEVELOPING HEALTH AND INDEPENDENCE,09/01/2017,115.54
Bath and North East Somerset Council,80656323,LL8,Individualised Budget,P11,Adult Social Care & Health,DEVELOPING HEALTH AND INDEPENDENCE,09/01/2017,117.88
Bath and North East Somerset Council,80656323,LL8,Individualised Budget,P11,Adult Social Care & Health,DEVELOPING HEALTH AND INDEPENDENCE,09/01/2017,118
Bath and North East Somerset Council,80656323,LL8,Individualised Budget,P11,Adult Social Care & Health,DEVELOPING HEALTH AND INDEPENDENCE,09/01/2017,120
Bath and North East Somerset Council,80656323,LL8,Individualised Budget,P11,Adult Social Care & Health,DEVELOPING HEALTH AND INDEPENDENCE,09/01/2017,122.42
Bath and North East Somerset Council,80656323,LL8,Individualised Budget,P11,Adult Social Care & Health,DEVELOPING HEALTH AND INDEPENDENCE,09/01/2017,124.4
Bath and North East Somerset Council,80656323,LL8,Individualised Budget,P11,Adult Social Care & Health,DEVELOPING HEALTH AND INDEPENDENCE,09/01/2017,125.72
Bath and North East Somerset Council,80656323,LL8,Individualised Budget,P11,Adult Social Care & Health,DEVELOPING HEALTH AND INDEPENDENCE,09/01/2017,126.06
Bath and North East Somerset Council,80656323,LL8,Individualised Budget,P11,Adult Social Care & Health,DEVELOPING HEALTH AND INDEPENDENCE,09/01/2017,129.2
Bath and North East Somerset Council,80656323,LL8,Individualised Budget,P11,Adult Social Care & Health,DEVELOPING HEALTH AND INDEPENDENCE,09/01/2017,131.14
Bath and North East Somerset Council,80656323,LL8,Individualised Budget,P11,Adult Social Care & Health,DEVELOPING HEALTH AND INDEPENDENCE,09/01/2017,133.92
Bath and North East Somerset Council,80656323,LL8,Individualised Budget,P11,Adult Social Care & Health,DEVELOPING HEALTH AND INDEPENDENCE,09/01/2017,135.26
Bath and North East Somerset Council,80656323,LL8,Individualised Budget,P11,Adult Social Care & Health,DEVELOPING HEALTH AND INDEPENDENCE,09/01/2017,142.3
Bath and North East Somerset Council,80656323,LL8,Individualised Budget,P11,Adult Social Care & Health,DEVELOPING HEALTH AND INDEPENDENCE,09/01/2017,143.26
Bath and North East Somerset Council,80656323,LL8,Individualised Budget,P11,Adult Social Care & Health,DEVELOPING HEALTH AND INDEPENDENCE,09/01/2017,147.76
Bath and North East Somerset Council,80656323,LL8,Individualised Budget,P11,Adult Social Care & Health,DEVELOPING HEALTH AND INDEPENDENCE,09/01/2017,148.64
Bath and North East Somerset Council,80656323,LL8,Individualised Budget,P11,Adult Social Care & Health,DEVELOPING HEALTH AND INDEPENDENCE,09/01/2017,159.86
Bath and North East Somerset Council,80656323,LL8,Individualised Budget,P11,Adult Social Care & Health,DEVELOPING HEALTH AND INDEPENDENCE,09/01/2017,161.6
Bath and North East Somerset Council,80656323,LL8,Individualised Budget,P11,Adult Social Care & Health,DEVELOPING HEALTH AND INDEPENDENCE,09/01/2017,161.62
Bath and North East Somerset Council,80656323,LL8,Individualised Budget,P11,Adult Social Care & Health,DEVELOPING HEALTH AND INDEPENDENCE,09/01/2017,168.06
Bath and North East Somerset Council,80656323,LL8,Individualised Budget,P11,Adult Social Care & Health,DEVELOPING HEALTH AND INDEPENDENCE,09/01/2017,170
Bath and North East Somerset Council,80656323,LL8,Individualised Budget,P11,Adult Social Care & Health,DEVELOPING HEALTH AND INDEPENDENCE,09/01/2017,178
Bath and North East Somerset Council,80656323,LL8,Individualised Budget,P11,Adult Social Care & Health,DEVELOPING HEALTH AND INDEPENDENCE,09/01/2017,178.48
Bath and North East Somerset Council,80656759,LM9,Day Care,P11,Adult Social Care & Health,S.W.A.L.L.O.W. LTD,09/01/2017,557.7
Bath and North East Somerset Council,80656323,LL8,Individualised Budget,P11,Adult Social Care & Health,DEVELOPING HEALTH AND INDEPENDENCE,09/01/2017,183.82
Bath and North East Somerset Council,80656323,LL8,Individualised Budget,P11,Adult Social Care & Health,DEVELOPING HEALTH AND INDEPENDENCE,09/01/2017,188.32
Bath and North East Somerset Council,80656323,LL8,Individualised Budget,P11,Adult Social Care & Health,DEVELOPING HEALTH AND INDEPENDENCE,09/01/2017,190.28
Bath and North East Somerset Council,80656323,LL8,Individualised Budget,P11,Adult Social Care & Health,DEVELOPING HEALTH AND INDEPENDENCE,09/01/2017,193.38
Bath and North East Somerset Council,80656323,LL8,Individualised Budget,P11,Adult Social Care & Health,DEVELOPING HEALTH AND INDEPENDENCE,09/01/2017,199.66
Bath and North East Somerset Council,80656323,LL8,Individualised Budget,P11,Adult Social Care & Health,DEVELOPING HEALTH AND INDEPENDENCE,09/01/2017,208
Bath and North East Somerset Council,80656323,LL8,Individualised Budget,P11,Adult Social Care & Health,DEVELOPING HEALTH AND INDEPENDENCE,09/01/2017,208
Bath and North East Somerset Council,80656323,LL8,Individualised Budget,P11,Adult Social Care & Health,DEVELOPING HEALTH AND INDEPENDENCE,09/01/2017,214.56
Bath and North East Somerset Council,80656323,LL8,Individualised Budget,P11,Adult Social Care & Health,DEVELOPING HEALTH AND INDEPENDENCE,09/01/2017,216
Bath and North East Somerset Council,80656323,LL8,Individualised Budget,P11,Adult Social Care & Health,DEVELOPING HEALTH AND INDEPENDENCE,09/01/2017,218
Bath and North East Somerset Council,80656323,LL8,Individualised Budget,P11,Adult Social Care & Health,DEVELOPING HEALTH AND INDEPENDENCE,09/01/2017,220
Bath and North East Somerset Council,80656323,LL8,Individualised Budget,P11,Adult Social Care & Health,DEVELOPING HEALTH AND INDEPENDENCE,09/01/2017,223.7
Bath and North East Somerset Council,80656323,LL8,Individualised Budget,P11,Adult Social Care & Health,DEVELOPING HEALTH AND INDEPENDENCE,09/01/2017,226
Bath and North East Somerset Council,10831913,LA5,Materials,P10,Finance & Efficiency,PREMIER PAPER,09/01/2017,569.25
Bath and North East Somerset Council,80656323,LL8,Individualised Budget,P11,Adult Social Care & Health,DEVELOPING HEALTH AND INDEPENDENCE,09/01/2017,226
Bath and North East Somerset Council,80656323,LL8,Individualised Budget,P11,Adult Social Care & Health,DEVELOPING HEALTH AND INDEPENDENCE,09/01/2017,229.5
Bath and North East Somerset Council,80656323,LL8,Individualised Budget,P11,Adult Social Care & Health,DEVELOPING HEALTH AND INDEPENDENCE,09/01/2017,232
Bath and North East Somerset Council,80656323,LL8,Individualised Budget,P11,Adult Social Care & Health,DEVELOPING HEALTH AND INDEPENDENCE,09/01/2017,232
Bath and North East Somerset Council,80656323,LL8,Individualised Budget,P11,Adult Social Care & Health,DEVELOPING HEALTH AND INDEPENDENCE,09/01/2017,236
Bath and North East Somerset Council,80656323,LL8,Individualised Budget,P11,Adult Social Care & Health,DEVELOPING HEALTH AND INDEPENDENCE,09/01/2017,236.54
Bath and North East Somerset Council,80656323,LL8,Individualised Budget,P11,Adult Social Care & Health,DEVELOPING HEALTH AND INDEPENDENCE,09/01/2017,240
Bath and North East Somerset Council,80656323,LL8,Individualised Budget,P11,Adult Social Care & Health,DEVELOPING HEALTH AND INDEPENDENCE,09/01/2017,240
Bath and North East Somerset Council,80656323,LL8,Individualised Budget,P11,Adult Social Care & Health,DEVELOPING HEALTH AND INDEPENDENCE,09/01/2017,246
Bath and North East Somerset Council,80656323,LL8,Individualised Budget,P11,Adult Social Care & Health,DEVELOPING HEALTH AND INDEPENDENCE,09/01/2017,246
Bath and North East Somerset Council,80656323,LL8,Individualised Budget,P11,Adult Social Care & Health,DEVELOPING HEALTH AND INDEPENDENCE,09/01/2017,252
Bath and North East Somerset Council,80656323,LL8,Individualised Budget,P11,Adult Social Care & Health,DEVELOPING HEALTH AND INDEPENDENCE,09/01/2017,258
Bath and North East Somerset Council,80656323,LL8,Individualised Budget,P11,Adult Social Care & Health,DEVELOPING HEALTH AND INDEPENDENCE,09/01/2017,260
Bath and North East Somerset Council,80656323,LL8,Individualised Budget,P11,Adult Social Care & Health,DEVELOPING HEALTH AND INDEPENDENCE,09/01/2017,266
Bath and North East Somerset Council,80656323,LL8,Individualised Budget,P11,Adult Social Care & Health,DEVELOPING HEALTH AND INDEPENDENCE,09/01/2017,268
Bath and North East Somerset Council,80656323,LL8,Individualised Budget,P11,Adult Social Care & Health,DEVELOPING HEALTH AND INDEPENDENCE,09/01/2017,273
Bath and North East Somerset Council,80656323,LL8,Individualised Budget,P11,Adult Social Care & Health,DEVELOPING HEALTH AND INDEPENDENCE,09/01/2017,275.6
Bath and North East Somerset Council,80656323,LL8,Individualised Budget,P11,Adult Social Care & Health,DEVELOPING HEALTH AND INDEPENDENCE,09/01/2017,276
Bath and North East Somerset Council,80656323,LL8,Individualised Budget,P11,Adult Social Care & Health,DEVELOPING HEALTH AND INDEPENDENCE,09/01/2017,284
Bath and North East Somerset Council,80656323,LL8,Individualised Budget,P11,Adult Social Care & Health,DEVELOPING HEALTH AND INDEPENDENCE,09/01/2017,284
Bath and North East Somerset Council,80656323,LL8,Individualised Budget,P11,Adult Social Care & Health,DEVELOPING HEALTH AND INDEPENDENCE,09/01/2017,288.42
Bath and North East Somerset Council,80656323,LL8,Individualised Budget,P11,Adult Social Care & Health,DEVELOPING HEALTH AND INDEPENDENCE,09/01/2017,289.84
Bath and North East Somerset Council,80656323,LL8,Individualised Budget,P11,Adult Social Care & Health,DEVELOPING HEALTH AND INDEPENDENCE,09/01/2017,298
Bath and North East Somerset Council,80656323,LL8,Individualised Budget,P11,Adult Social Care & Health,DEVELOPING HEALTH AND INDEPENDENCE,09/01/2017,298.34
Bath and North East Somerset Council,80656323,LL8,Individualised Budget,P11,Adult Social Care & Health,DEVELOPING HEALTH AND INDEPENDENCE,09/01/2017,321.04
Bath and North East Somerset Council,80656323,LL8,Individualised Budget,P11,Adult Social Care & Health,DEVELOPING HEALTH AND INDEPENDENCE,09/01/2017,322
Bath and North East Somerset Council,10831915,HK1,Highway Maintenance,P01,Transport,SAKNEL HIGHWAYS STRUCTURES CONTRACTOR,09/01/2017,590
Bath and North East Somerset Council,80656323,LL8,Individualised Budget,P11,Adult Social Care & Health,DEVELOPING HEALTH AND INDEPENDENCE,09/01/2017,330
Bath and North East Somerset Council,80656323,LL8,Individualised Budget,P11,Adult Social Care & Health,DEVELOPING HEALTH AND INDEPENDENCE,09/01/2017,330
Bath and North East Somerset Council,80656323,LL8,Individualised Budget,P11,Adult Social Care & Health,DEVELOPING HEALTH AND INDEPENDENCE,09/01/2017,338
Bath and North East Somerset Council,80656323,LL8,Individualised Budget,P11,Adult Social Care & Health,DEVELOPING HEALTH AND INDEPENDENCE,09/01/2017,341.3
Bath and North East Somerset Council,80656323,LL8,Individualised Budget,P11,Adult Social Care & Health,DEVELOPING HEALTH AND INDEPENDENCE,09/01/2017,350
Bath and North East Somerset Council,80656323,LL8,Individualised Budget,P11,Adult Social Care & Health,DEVELOPING HEALTH AND INDEPENDENCE,09/01/2017,356
Bath and North East Somerset Council,80656323,LL8,Individualised Budget,P11,Adult Social Care & Health,DEVELOPING HEALTH AND INDEPENDENCE,09/01/2017,362
Bath and North East Somerset Council,80656323,LL8,Individualised Budget,P11,Adult Social Care & Health,DEVELOPING HEALTH AND INDEPENDENCE,09/01/2017,364
Bath and North East Somerset Council,80656323,LL8,Individualised Budget,P11,Adult Social Care & Health,DEVELOPING HEALTH AND INDEPENDENCE,09/01/2017,366
Bath and North East Somerset Council,10831909,HE1,General Maintenance,P13,Economic Development,HORDERS,09/01/2017,602.14
Bath and North East Somerset Council,80656323,LL8,Individualised Budget,P11,Adult Social Care & Health,DEVELOPING HEALTH AND INDEPENDENCE,09/01/2017,366
Bath and North East Somerset Council,80656323,LL8,Individualised Budget,P11,Adult Social Care & Health,DEVELOPING HEALTH AND INDEPENDENCE,09/01/2017,367.24
Bath and North East Somerset Council,80656323,LL8,Individualised Budget,P11,Adult Social Care & Health,DEVELOPING HEALTH AND INDEPENDENCE,09/01/2017,370
Bath and North East Somerset Council,80656323,LL8,Individualised Budget,P11,Adult Social Care & Health,DEVELOPING HEALTH AND INDEPENDENCE,09/01/2017,374
Bath and North East Somerset Council,80656323,LL8,Individualised Budget,P11,Adult Social Care & Health,DEVELOPING HEALTH AND INDEPENDENCE,09/01/2017,374
Bath and North East Somerset Council,80656323,LL8,Individualised Budget,P11,Adult Social Care & Health,DEVELOPING HEALTH AND INDEPENDENCE,09/01/2017,398
Bath and North East Somerset Council,80656323,LL8,Individualised Budget,P11,Adult Social Care & Health,DEVELOPING HEALTH AND INDEPENDENCE,09/01/2017,400
Bath and North East Somerset Council,80656323,LL8,Individualised Budget,P11,Adult Social Care & Health,DEVELOPING HEALTH AND INDEPENDENCE,09/01/2017,402
Bath and North East Somerset Council,80656323,LL8,Individualised Budget,P11,Adult Social Care & Health,DEVELOPING HEALTH AND INDEPENDENCE,09/01/2017,421.28
Bath and North East Somerset Council,80656323,LL8,Individualised Budget,P11,Adult Social Care & Health,DEVELOPING HEALTH AND INDEPENDENCE,09/01/2017,424
Bath and North East Somerset Council,80656323,LL8,Individualised Budget,P11,Adult Social Care & Health,DEVELOPING HEALTH AND INDEPENDENCE,09/01/2017,430.92
Bath and North East Somerset Council,80656323,LL8,Individualised Budget,P11,Adult Social Care & Health,DEVELOPING HEALTH AND INDEPENDENCE,09/01/2017,433.62
Bath and North East Somerset Council,80656323,LL8,Individualised Budget,P11,Adult Social Care & Health,DEVELOPING HEALTH AND INDEPENDENCE,09/01/2017,454
Bath and North East Somerset Council,80656323,LL8,Individualised Budget,P11,Adult Social Care & Health,DEVELOPING HEALTH AND INDEPENDENCE,09/01/2017,458.14
Bath and North East Somerset Council,80656323,LL8,Individualised Budget,P11,Adult Social Care & Health,DEVELOPING HEALTH AND INDEPENDENCE,09/01/2017,468
Bath and North East Somerset Council,80656323,LL8,Individualised Budget,P11,Adult Social Care & Health,DEVELOPING HEALTH AND INDEPENDENCE,09/01/2017,472.5
Bath and North East Somerset Council,80656323,LL8,Individualised Budget,P11,Adult Social Care & Health,DEVELOPING HEALTH AND INDEPENDENCE,09/01/2017,474
Bath and North East Somerset Council,80656323,LL8,Individualised Budget,P11,Adult Social Care & Health,DEVELOPING HEALTH AND INDEPENDENCE,09/01/2017,478
Bath and North East Somerset Council,80656323,LL8,Individualised Budget,P11,Adult Social Care & Health,DEVELOPING HEALTH AND INDEPENDENCE,09/01/2017,482.76
Bath and North East Somerset Council,80656323,LL8,Individualised Budget,P11,Adult Social Care & Health,DEVELOPING HEALTH AND INDEPENDENCE,09/01/2017,486
Bath and North East Somerset Council,80656323,LL8,Individualised Budget,P11,Adult Social Care & Health,DEVELOPING HEALTH AND INDEPENDENCE,09/01/2017,504
Bath and North East Somerset Council,80656323,LL8,Individualised Budget,P11,Adult Social Care & Health,DEVELOPING HEALTH AND INDEPENDENCE,09/01/2017,506.5
Bath and North East Somerset Council,80656323,LL8,Individualised Budget,P11,Adult Social Care & Health,DEVELOPING HEALTH AND INDEPENDENCE,09/01/2017,526
Bath and North East Somerset Council,80656323,LL8,Individualised Budget,P11,Adult Social Care & Health,DEVELOPING HEALTH AND INDEPENDENCE,09/01/2017,531.7
Bath and North East Somerset Council,80656323,LL8,Individualised Budget,P11,Adult Social Care & Health,DEVELOPING HEALTH AND INDEPENDENCE,09/01/2017,562
Bath and North East Somerset Council,80656323,LL8,Individualised Budget,P11,Adult Social Care & Health,DEVELOPING HEALTH AND INDEPENDENCE,09/01/2017,571.38
Bath and North East Somerset Council,80656323,LL8,Individualised Budget,P11,Adult Social Care & Health,DEVELOPING HEALTH AND INDEPENDENCE,09/01/2017,574
Bath and North East Somerset Council,80656323,LL8,Individualised Budget,P11,Adult Social Care & Health,DEVELOPING HEALTH AND INDEPENDENCE,09/01/2017,590.6
Bath and North East Somerset Council,80656323,LL8,Individualised Budget,P11,Adult Social Care & Health,DEVELOPING HEALTH AND INDEPENDENCE,09/01/2017,656
Bath and North East Somerset Council,80656323,LL8,Individualised Budget,P11,Adult Social Care & Health,DEVELOPING HEALTH AND INDEPENDENCE,09/01/2017,668
Bath and North East Somerset Council,80656323,LL8,Individualised Budget,P11,Adult Social Care & Health,DEVELOPING HEALTH AND INDEPENDENCE,09/01/2017,684
Bath and North East Somerset Council,80656323,LL8,Individualised Budget,P11,Adult Social Care & Health,DEVELOPING HEALTH AND INDEPENDENCE,09/01/2017,688
Bath and North East Somerset Council,80656323,LL8,Individualised Budget,P11,Adult Social Care & Health,DEVELOPING HEALTH AND INDEPENDENCE,09/01/2017,718.46
Bath and North East Somerset Council,80656323,LL8,Individualised Budget,P11,Adult Social Care & Health,DEVELOPING HEALTH AND INDEPENDENCE,09/01/2017,734
Bath and North East Somerset Council,80656323,LL8,Individualised Budget,P11,Adult Social Care & Health,DEVELOPING HEALTH AND INDEPENDENCE,09/01/2017,744
Bath and North East Somerset Council,80656323,LL8,Individualised Budget,P11,Adult Social Care & Health,DEVELOPING HEALTH AND INDEPENDENCE,09/01/2017,744
Bath and North East Somerset Council,80656323,LL8,Individualised Budget,P11,Adult Social Care & Health,DEVELOPING HEALTH AND INDEPENDENCE,09/01/2017,750
Bath and North East Somerset Council,80656323,LL8,Individualised Budget,P11,Adult Social Care & Health,DEVELOPING HEALTH AND INDEPENDENCE,09/01/2017,798
Bath and North East Somerset Council,80656323,LL8,Individualised Budget,P11,Adult Social Care & Health,DEVELOPING HEALTH AND INDEPENDENCE,09/01/2017,826
Bath and North East Somerset Council,80656323,LL8,Individualised Budget,P11,Adult Social Care & Health,DEVELOPING HEALTH AND INDEPENDENCE,09/01/2017,847.52
Bath and North East Somerset Council,80656323,LL8,Individualised Budget,P11,Adult Social Care & Health,DEVELOPING HEALTH AND INDEPENDENCE,09/01/2017,892
Bath and North East Somerset Council,80656323,LL8,Individualised Budget,P11,Adult Social Care & Health,DEVELOPING HEALTH AND INDEPENDENCE,09/01/2017,898
Bath and North East Somerset Council,80656323,LL8,Individualised Budget,P11,Adult Social Care & Health,DEVELOPING HEALTH AND INDEPENDENCE,09/01/2017,936
Bath and North East Somerset Council,80656323,LL8,Individualised Budget,P11,Adult Social Care & Health,DEVELOPING HEALTH AND INDEPENDENCE,09/01/2017,952
Bath and North East Somerset Council,80656323,LL8,Individualised Budget,P11,Adult Social Care & Health,DEVELOPING HEALTH AND INDEPENDENCE,09/01/2017,963.5
Bath and North East Somerset Council,80656323,LL8,Individualised Budget,P11,Adult Social Care & Health,DEVELOPING HEALTH AND INDEPENDENCE,09/01/2017,970
Bath and North East Somerset Council,80656323,LL8,Individualised Budget,P11,Adult Social Care & Health,DEVELOPING HEALTH AND INDEPENDENCE,09/01/2017,994.48
Bath and North East Somerset Council,80656323,LL8,Individualised Budget,P11,Adult Social Care & Health,DEVELOPING HEALTH AND INDEPENDENCE,09/01/2017,998.9
Bath and North East Somerset Council,80656259,LL8,Individualised Budget,P11,Adult Social Care & Health,DEVELOPING HEALTH AND INDEPENDENCE,09/01/2017,1003.08
Bath and North East Somerset Council,80656323,LL8,Individualised Budget,P11,Adult Social Care & Health,DEVELOPING HEALTH AND INDEPENDENCE,09/01/2017,1010
Bath and North East Somerset Council,80656323,LL8,Individualised Budget,P11,Adult Social Care & Health,DEVELOPING HEALTH AND INDEPENDENCE,09/01/2017,1128.76
Bath and North East Somerset Council,80656323,LL8,Individualised Budget,P11,Adult Social Care & Health,DEVELOPING HEALTH AND INDEPENDENCE,09/01/2017,1199.04
Bath and North East Somerset Council,80656323,LL8,Individualised Budget,P11,Adult Social Care & Health,DEVELOPING HEALTH AND INDEPENDENCE,09/01/2017,1234
Bath and North East Somerset Council,80656259,LL8,Individualised Budget,P11,Adult Social Care & Health,DEVELOPING HEALTH AND INDEPENDENCE,09/01/2017,1300
Bath and North East Somerset Council,80656323,LL8,Individualised Budget,P11,Adult Social Care & Health,DEVELOPING HEALTH AND INDEPENDENCE,09/01/2017,1318.79
Bath and North East Somerset Council,80656323,LL8,Individualised Budget,P11,Adult Social Care & Health,DEVELOPING HEALTH AND INDEPENDENCE,09/01/2017,1350.8
Bath and North East Somerset Council,10831939,HA2,Servicing,P13,Economic Development,AVON ALARMS LIMITED,09/01/2017,715
Bath and North East Somerset Council,80656323,LL8,Individualised Budget,P11,Adult Social Care & Health,DEVELOPING HEALTH AND INDEPENDENCE,09/01/2017,1360
Bath and North East Somerset Council,80656323,LL8,Individualised Budget,P11,Adult Social Care & Health,DEVELOPING HEALTH AND INDEPENDENCE,09/01/2017,1426
Bath and North East Somerset Council,80656323,LL8,Individualised Budget,P11,Adult Social Care & Health,DEVELOPING HEALTH AND INDEPENDENCE,09/01/2017,1442.14
Bath and North East Somerset Council,80656323,LL8,Individualised Budget,P11,Adult Social Care & Health,DEVELOPING HEALTH AND INDEPENDENCE,09/01/2017,1479.6
Bath and North East Somerset Council,80656323,LL8,Individualised Budget,P11,Adult Social Care & Health,DEVELOPING HEALTH AND INDEPENDENCE,09/01/2017,1484
Bath and North East Somerset Council,80656323,LL8,Individualised Budget,P11,Adult Social Care & Health,DEVELOPING HEALTH AND INDEPENDENCE,09/01/2017,1510.82
Bath and North East Somerset Council,80656323,LL8,Individualised Budget,P11,Adult Social Care & Health,DEVELOPING HEALTH AND INDEPENDENCE,09/01/2017,1548
Bath and North East Somerset Council,80656323,LL8,Individualised Budget,P11,Adult Social Care & Health,DEVELOPING HEALTH AND INDEPENDENCE,09/01/2017,1686.46
Bath and North East Somerset Council,80656323,LL8,Individualised Budget,P11,Adult Social Care & Health,DEVELOPING HEALTH AND INDEPENDENCE,09/01/2017,1702
Bath and North East Somerset Council,80656323,LL8,Individualised Budget,P11,Adult Social Care & Health,DEVELOPING HEALTH AND INDEPENDENCE,09/01/2017,1919.6
Bath and North East Somerset Council,80656323,LL8,Individualised Budget,P11,Adult Social Care & Health,DEVELOPING HEALTH AND INDEPENDENCE,09/01/2017,1946.94
Bath and North East Somerset Council,80656323,LL8,Individualised Budget,P11,Adult Social Care & Health,DEVELOPING HEALTH AND INDEPENDENCE,09/01/2017,2036
Bath and North East Somerset Council,80656323,LL8,Individualised Budget,P11,Adult Social Care & Health,DEVELOPING HEALTH AND INDEPENDENCE,09/01/2017,2104
Bath and North East Somerset Council,80656259,LL8,Individualised Budget,P11,Adult Social Care & Health,DEVELOPING HEALTH AND INDEPENDENCE,09/01/2017,2211.1
Bath and North East Somerset Council,80656323,LL8,Individualised Budget,P11,Adult Social Care & Health,DEVELOPING HEALTH AND INDEPENDENCE,09/01/2017,2224
Bath and North East Somerset Council,80656323,LL8,Individualised Budget,P11,Adult Social Care & Health,DEVELOPING HEALTH AND INDEPENDENCE,09/01/2017,2310
Bath and North East Somerset Council,80656259,LL8,Individualised Budget,P11,Adult Social Care & Health,DEVELOPING HEALTH AND INDEPENDENCE,09/01/2017,3134
Bath and North East Somerset Council,10831675,LJ1,Consultants Fees,P04,Leader,VEALE WASBROUGH VIZARDS,09/01/2017,743
Bath and North East Somerset Council,80656259,LL8,Individualised Budget,P11,Adult Social Care & Health,DEVELOPING HEALTH AND INDEPENDENCE,09/01/2017,3936.14
Bath and North East Somerset Council,80656259,LL8,Individualised Budget,P11,Adult Social Care & Health,DEVELOPING HEALTH AND INDEPENDENCE,09/01/2017,7076.6
Bath and North East Somerset Council,80656323,LL8,Individualised Budget,P11,Adult Social Care & Health,DEVELOPING HEALTH AND INDEPENDENCE,09/01/2017,8323.09
Bath and North East Somerset Council,80656758,LM9,Day Care,P11,Adult Social Care & Health,DIMENSIONS (UK) LTD,09/01/2017,18.19
Bath and North East Somerset Council,80656758,LM9,Day Care,P11,Adult Social Care & Health,DIMENSIONS (UK) LTD,09/01/2017,24.25
Bath and North East Somerset Council,80656758,LM9,Day Care,P11,Adult Social Care & Health,DIMENSIONS (UK) LTD,09/01/2017,36.38
Bath and North East Somerset Council,80656758,LM9,Day Care,P11,Adult Social Care & Health,DIMENSIONS (UK) LTD,09/01/2017,36.38
Bath and North East Somerset Council,80656758,LM9,Day Care,P11,Adult Social Care & Health,DIMENSIONS (UK) LTD,09/01/2017,36.38
Bath and North East Somerset Council,80656758,LM9,Day Care,P11,Adult Social Care & Health,DIMENSIONS (UK) LTD,09/01/2017,60.64
Bath and North East Somerset Council,80656758,LM9,Day Care,P11,Adult Social Care & Health,DIMENSIONS (UK) LTD,09/01/2017,97.01
Bath and North East Somerset Council,80656758,LM9,Day Care,P11,Adult Social Care & Health,DIMENSIONS (UK) LTD,09/01/2017,97.01
Bath and North East Somerset Council,10831747,LH3,Publicity,P04,Leader,MR H TU T/A BEANBOX,09/01/2017,750
Bath and North East Somerset Council,80656758,LM9,Day Care,P11,Adult Social Care & Health,DIMENSIONS (UK) LTD,09/01/2017,155
Bath and North East Somerset Council,80656759,LM9,Day Care,P11,Adult Social Care & Health,S.W.A.L.L.O.W. LTD,09/01/2017,754.86
Bath and North East Somerset Council,80656758,LM8,Home Care,P11,Adult Social Care & Health,DIMENSIONS (UK) LTD,09/01/2017,179.24
Bath and North East Somerset Council,80656758,LM9,Day Care,P11,Adult Social Care & Health,DIMENSIONS (UK) LTD,09/01/2017,187.92
Bath and North East Somerset Council,80656758,LM9,Day Care,P11,Adult Social Care & Health,DIMENSIONS (UK) LTD,09/01/2017,216.36
Bath and North East Somerset Council,80656758,LM9,Day Care,P11,Adult Social Care & Health,DIMENSIONS (UK) LTD,09/01/2017,249.42
Bath and North East Somerset Council,80656758,LM9,Day Care,P11,Adult Social Care & Health,DIMENSIONS (UK) LTD,09/01/2017,251.6
Bath and North East Somerset Council,80656758,LM8,Home Care,P11,Adult Social Care & Health,DIMENSIONS (UK) LTD,09/01/2017,379.6
Bath and North East Somerset Council,80656758,LM8,Home Care,P11,Adult Social Care & Health,DIMENSIONS (UK) LTD,09/01/2017,381.08
Bath and North East Somerset Council,80656731,LM3,Residential Care,P11,Adult Social Care & Health,DIMENSIONS (UK) LTD,09/01/2017,393.31
Bath and North East Somerset Council,80656731,LM3,Residential Care,P11,Adult Social Care & Health,DIMENSIONS (UK) LTD,09/01/2017,393.31
Bath and North East Somerset Council,80656731,LM3,Residential Care,P11,Adult Social Care & Health,DIMENSIONS (UK) LTD,09/01/2017,393.31
Bath and North East Somerset Council,80656758,LM9,Day Care,P11,Adult Social Care & Health,DIMENSIONS (UK) LTD,09/01/2017,428.32
Bath and North East Somerset Council,80656758,LM9,Day Care,P11,Adult Social Care & Health,DIMENSIONS (UK) LTD,09/01/2017,436.53
Bath and North East Somerset Council,80656758,LM9,Day Care,P11,Adult Social Care & Health,DIMENSIONS (UK) LTD,09/01/2017,449.02
Bath and North East Somerset Council,80656758,LM8,Home Care,P11,Adult Social Care & Health,DIMENSIONS (UK) LTD,09/01/2017,546.26
Bath and North East Somerset Council,80656731,LM3,Residential Care,P11,Adult Social Care & Health,DIMENSIONS (UK) LTD,09/01/2017,589.98
Bath and North East Somerset Council,80656731,LM3,Residential Care,P11,Adult Social Care & Health,DIMENSIONS (UK) LTD,09/01/2017,589.98
Bath and North East Somerset Council,80656731,LM3,Residential Care,P11,Adult Social Care & Health,DIMENSIONS (UK) LTD,09/01/2017,589.98
Bath and North East Somerset Council,80656731,LM3,Residential Care,P11,Adult Social Care & Health,DIMENSIONS (UK) LTD,09/01/2017,589.98
Bath and North East Somerset Council,80656758,LM8,Home Care,P11,Adult Social Care & Health,DIMENSIONS (UK) LTD,09/01/2017,602.86
Bath and North East Somerset Council,80656758,LM8,Home Care,P11,Adult Social Care & Health,DIMENSIONS (UK) LTD,09/01/2017,606.78
Bath and North East Somerset Council,80656758,LM9,Day Care,P11,Adult Social Care & Health,DIMENSIONS (UK) LTD,09/01/2017,706.8
Bath and North East Somerset Council,80656758,LM8,Home Care,P11,Adult Social Care & Health,DIMENSIONS (UK) LTD,09/01/2017,740.56
Bath and North East Somerset Council,80656731,LM3,Residential Care,P11,Adult Social Care & Health,DIMENSIONS (UK) LTD,09/01/2017,786.63
Bath and North East Somerset Council,80656731,LM3,Residential Care,P11,Adult Social Care & Health,DIMENSIONS (UK) LTD,09/01/2017,786.63
Bath and North East Somerset Council,80656731,LM3,Residential Care,P11,Adult Social Care & Health,DIMENSIONS (UK) LTD,09/01/2017,786.64
Bath and North East Somerset Council,80656731,LM3,Residential Care,P11,Adult Social Care & Health,DIMENSIONS (UK) LTD,09/01/2017,794
Bath and North East Somerset Council,80656731,LM3,Residential Care,P11,Adult Social Care & Health,DIMENSIONS (UK) LTD,09/01/2017,794
Bath and North East Somerset Council,80656731,LM3,Residential Care,P11,Adult Social Care & Health,DIMENSIONS (UK) LTD,09/01/2017,794
Bath and North East Somerset Council,80656731,LM3,Residential Care,P11,Adult Social Care & Health,DIMENSIONS (UK) LTD,09/01/2017,794
Bath and North East Somerset Council,80656758,LM8,Home Care,P11,Adult Social Care & Health,DIMENSIONS (UK) LTD,09/01/2017,813.18
Bath and North East Somerset Council,80656758,LM9,Day Care,P11,Adult Social Care & Health,DIMENSIONS (UK) LTD,09/01/2017,826.2
Bath and North East Somerset Council,80656758,LM8,Home Care,P11,Adult Social Care & Health,DIMENSIONS (UK) LTD,09/01/2017,850.72
Bath and North East Somerset Council,80656758,LM8,Home Care,P11,Adult Social Care & Health,DIMENSIONS (UK) LTD,09/01/2017,991.62
Bath and North East Somerset Council,80656758,LL3,Supported Living,P11,Adult Social Care & Health,DIMENSIONS (UK) LTD,09/01/2017,995.18
Bath and North East Somerset Council,80656758,LM8,Home Care,P11,Adult Social Care & Health,DIMENSIONS (UK) LTD,09/01/2017,1101.2
Bath and North East Somerset Council,80656758,LM8,Home Care,P11,Adult Social Care & Health,DIMENSIONS (UK) LTD,09/01/2017,1172.46
Bath and North East Somerset Council,80656731,LM3,Residential Care,P11,Adult Social Care & Health,DIMENSIONS (UK) LTD,09/01/2017,1179.94
Bath and North East Somerset Council,80656758,LM8,Home Care,P11,Adult Social Care & Health,DIMENSIONS (UK) LTD,09/01/2017,1223.84
Bath and North East Somerset Council,80656758,LM8,Home Care,P11,Adult Social Care & Health,DIMENSIONS (UK) LTD,09/01/2017,1279.52
Bath and North East Somerset Council,80656731,LM3,Residential Care,P11,Adult Social Care & Health,DIMENSIONS (UK) LTD,09/01/2017,1376.6
Bath and North East Somerset Council,80656731,LM3,Residential Care,P11,Adult Social Care & Health,DIMENSIONS (UK) LTD,09/01/2017,1376.6
Bath and North East Somerset Council,80656758,LL3,Supported Living,P11,Adult Social Care & Health,DIMENSIONS (UK) LTD,09/01/2017,1470.54
Bath and North East Somerset Council,80656758,LM8,Home Care,P11,Adult Social Care & Health,DIMENSIONS (UK) LTD,09/01/2017,1610.4
Bath and North East Somerset Council,80656758,LM8,Home Care,P11,Adult Social Care & Health,DIMENSIONS (UK) LTD,09/01/2017,1670.46
Bath and North East Somerset Council,80656758,LM8,Home Care,P11,Adult Social Care & Health,DIMENSIONS (UK) LTD,09/01/2017,1686.04
Bath and North East Somerset Council,80656758,LL3,Supported Living,P11,Adult Social Care & Health,DIMENSIONS (UK) LTD,09/01/2017,1826.52
Bath and North East Somerset Council,80656758,LM8,Home Care,P11,Adult Social Care & Health,DIMENSIONS (UK) LTD,09/01/2017,1836.44
Bath and North East Somerset Council,80656731,LM3,Residential Care,P11,Adult Social Care & Health,DIMENSIONS (UK) LTD,09/01/2017,1854.66
Bath and North East Somerset Council,80656758,LM8,Home Care,P11,Adult Social Care & Health,DIMENSIONS (UK) LTD,09/01/2017,2137.24
Bath and North East Somerset Council,80656758,LM8,Home Care,P11,Adult Social Care & Health,DIMENSIONS (UK) LTD,09/01/2017,2182.98
Bath and North East Somerset Council,80656758,LL3,Supported Living,P11,Adult Social Care & Health,DIMENSIONS (UK) LTD,09/01/2017,2230.84
Bath and North East Somerset Council,80656758,LM8,Home Care,P11,Adult Social Care & Health,DIMENSIONS (UK) LTD,09/01/2017,2287.64
Bath and North East Somerset Council,80656731,LM3,Residential Care,P11,Adult Social Care & Health,DIMENSIONS (UK) LTD,09/01/2017,2312
Bath and North East Somerset Council,80656731,LM3,Residential Care,P11,Adult Social Care & Health,DIMENSIONS (UK) LTD,09/01/2017,2430
Bath and North East Somerset Council,80656731,LM3,Residential Care,P11,Adult Social Care & Health,DIMENSIONS (UK) LTD,09/01/2017,2454
Bath and North East Somerset Council,80656758,LM8,Home Care,P11,Adult Social Care & Health,DIMENSIONS (UK) LTD,09/01/2017,2476.22
Bath and North East Somerset Council,80656758,LM9,Day Care,P11,Adult Social Care & Health,DIMENSIONS (UK) LTD,09/01/2017,2513.08
Bath and North East Somerset Council,80656758,LM8,Home Care,P11,Adult Social Care & Health,DIMENSIONS (UK) LTD,09/01/2017,2558.36
Bath and North East Somerset Council,80656731,LM3,Residential Care,P11,Adult Social Care & Health,DIMENSIONS (UK) LTD,09/01/2017,2580
Bath and North East Somerset Council,80656731,LM3,Residential Care,P11,Adult Social Care & Health,DIMENSIONS (UK) LTD,09/01/2017,2580
Bath and North East Somerset Council,80656731,LM3,Residential Care,P11,Adult Social Care & Health,DIMENSIONS (UK) LTD,09/01/2017,2580
Bath and North East Somerset Council,80656758,LM9,Day Care,P11,Adult Social Care & Health,DIMENSIONS (UK) LTD,09/01/2017,2757.76
Bath and North East Somerset Council,80656731,LM3,Residential Care,P11,Adult Social Care & Health,DIMENSIONS (UK) LTD,09/01/2017,3106
Bath and North East Somerset Council,80656731,LM3,Residential Care,P11,Adult Social Care & Health,DIMENSIONS (UK) LTD,09/01/2017,3248
Bath and North East Somerset Council,80656731,LM3,Residential Care,P11,Adult Social Care & Health,DIMENSIONS (UK) LTD,09/01/2017,3302
Bath and North East Somerset Council,80656731,LM3,Residential Care,P11,Adult Social Care & Health,DIMENSIONS (UK) LTD,09/01/2017,3674
Bath and North East Somerset Council,80656758,LM9,Day Care,P11,Adult Social Care & Health,DIMENSIONS (UK) LTD,09/01/2017,3938
Bath and North East Somerset Council,80656758,LM9,Day Care,P11,Adult Social Care & Health,DIMENSIONS (UK) LTD,09/01/2017,4059.44
Bath and North East Somerset Council,80656758,LM8,Home Care,P11,Adult Social Care & Health,DIMENSIONS (UK) LTD,09/01/2017,4172.42
Bath and North East Somerset Council,80656758,LM9,Day Care,P11,Adult Social Care & Health,DIMENSIONS (UK) LTD,09/01/2017,4560.56
Bath and North East Somerset Council,80656758,LM9,Day Care,P11,Adult Social Care & Health,DIMENSIONS (UK) LTD,09/01/2017,6256.96
Bath and North East Somerset Council,80656759,LM9,Day Care,P11,Adult Social Care & Health,S.W.A.L.L.O.W. LTD,09/01/2017,836.84
Bath and North East Somerset Council,80656265,LM6,Nursing Care,P11,Adult Social Care & Health,DOROTHY HOUSE FOUNDATION,09/01/2017,1700
Bath and North East Somerset Council,80656635,LM3,Residential Care,P11,Adult Social Care & Health,DRAFTCREATE LTD,09/01/2017,3288
Bath and North East Somerset Council,80656664,LM6,Nursing Care,P11,Adult Social Care & Health,EASTLEIGH CARE HOMES LTD,09/01/2017,1940
Bath and North East Somerset Council,80656610,LM6,Nursing Care,P11,Adult Social Care & Health,EDGEMONT VIEW NURSING HOME,09/01/2017,1238
Bath and North East Somerset Council,80656602,LM3,Residential Care,P11,Adult Social Care & Health,REDACTED,09/01/2017,2246
Bath and North East Somerset Council,80656466,LL8,Individualised Budget,P11,Adult Social Care & Health,REDACTED,09/01/2017,1984.98
Bath and North East Somerset Council,10831444,LM6,Nursing Care,P11,Adult Social Care & Health,EMBRACE LIMITED - REDACTED,09/01/2017,189.64
Bath and North East Somerset Council,10831444,LM6,Nursing Care,P11,Adult Social Care & Health,EMBRACE LIMITED - REDACTED,09/01/2017,189.64
Bath and North East Somerset Council,80656243,LM6,Nursing Care,P11,Adult Social Care & Health,EMBRACE LIMITED - REDACTED,09/01/2017,312.5
Bath and North East Somerset Council,80656243,LM6,Nursing Care,P11,Adult Social Care & Health,EMBRACE LIMITED - REDACTED,09/01/2017,312.5
Bath and North East Somerset Council,80656243,LM6,Nursing Care,P11,Adult Social Care & Health,EMBRACE LIMITED - REDACTED,09/01/2017,312.5
Bath and North East Somerset Council,80656243,LM6,Nursing Care,P11,Adult Social Care & Health,EMBRACE LIMITED - REDACTED,09/01/2017,312.5
Bath and North East Somerset Council,80656243,LM6,Nursing Care,P11,Adult Social Care & Health,EMBRACE LIMITED - REDACTED,09/01/2017,312.5
Bath and North East Somerset Council,80656243,LM6,Nursing Care,P11,Adult Social Care & Health,EMBRACE LIMITED - REDACTED,09/01/2017,312.5
Bath and North East Somerset Council,10831444,LM6,Nursing Care,P11,Adult Social Care & Health,EMBRACE LIMITED - REDACTED,09/01/2017,556.29
Bath and North East Somerset Council,80656732,LM3,Residential Care,P11,Adult Social Care & Health,EMBRACE LIMITED - REDACTED,09/01/2017,904
Bath and North East Somerset Council,80656759,LM9,Day Care,P11,Adult Social Care & Health,S.W.A.L.L.O.W. LTD,09/01/2017,873.72
Bath and North East Somerset Council,80656732,LM6,Nursing Care,P11,Adult Social Care & Health,EMBRACE LIMITED - REDACTED,09/01/2017,1152
Bath and North East Somerset Council,80656732,LM6,Nursing Care,P11,Adult Social Care & Health,EMBRACE LIMITED - REDACTED,09/01/2017,1152
Bath and North East Somerset Council,80656732,LM6,Nursing Care,P11,Adult Social Care & Health,EMBRACE LIMITED - REDACTED,09/01/2017,1152
Bath and North East Somerset Council,80656732,LM6,Nursing Care,P11,Adult Social Care & Health,EMBRACE LIMITED - REDACTED,09/01/2017,1248
Bath and North East Somerset Council,80656732,LM6,Nursing Care,P11,Adult Social Care & Health,EMBRACE LIMITED - REDACTED,09/01/2017,1314
Bath and North East Somerset Council,80656732,LM6,Nursing Care,P11,Adult Social Care & Health,EMBRACE LIMITED - REDACTED,09/01/2017,1326
Bath and North East Somerset Council,80656732,LM6,Nursing Care,P11,Adult Social Care & Health,EMBRACE LIMITED - REDACTED,09/01/2017,1340
Bath and North East Somerset Council,80656732,LM6,Nursing Care,P11,Adult Social Care & Health,EMBRACE LIMITED - REDACTED,09/01/2017,1340
Bath and North East Somerset Council,80656732,LM6,Nursing Care,P11,Adult Social Care & Health,EMBRACE LIMITED - REDACTED,09/01/2017,1354
Bath and North East Somerset Council,80656732,LM6,Nursing Care,P11,Adult Social Care & Health,EMBRACE LIMITED - REDACTED,09/01/2017,1356
Bath and North East Somerset Council,80656732,LM6,Nursing Care,P11,Adult Social Care & Health,EMBRACE LIMITED - REDACTED,09/01/2017,1400
Bath and North East Somerset Council,80656732,LM6,Nursing Care,P11,Adult Social Care & Health,EMBRACE LIMITED - REDACTED,09/01/2017,1516
Bath and North East Somerset Council,10831444,LM6,Nursing Care,P11,Adult Social Care & Health,EMBRACE LIMITED - REDACTED,09/01/2017,1896.43
Bath and North East Somerset Council,80656732,LM6,Nursing Care,P11,Adult Social Care & Health,EMBRACE LIMITED - REDACTED,09/01/2017,2020
Bath and North East Somerset Council,80656732,LM6,Nursing Care,P11,Adult Social Care & Health,EMBRACE LIMITED - REDACTED,09/01/2017,2160
Bath and North East Somerset Council,80656732,LM6,Nursing Care,P11,Adult Social Care & Health,EMBRACE LIMITED - REDACTED,09/01/2017,3000
Bath and North East Somerset Council,80656732,LM6,Nursing Care,P11,Adult Social Care & Health,EMBRACE LIMITED - REDACTED,09/01/2017,3030
Bath and North East Somerset Council,80656732,LM6,Nursing Care,P11,Adult Social Care & Health,EMBRACE LIMITED - REDACTED,09/01/2017,5000
Bath and North East Somerset Council,80656284,LM6,Nursing Care,P11,Adult Social Care & Health,EXTRAFRIEND LTD,09/01/2017,1525.5
Bath and North East Somerset Council,80656740,LM3,Residential Care,P11,Adult Social Care & Health,FARLEIGH SCHOOLS LIMITED,09/01/2017,3568
Bath and North East Somerset Council,80656740,LM3,Residential Care,P11,Adult Social Care & Health,FARLEIGH SCHOOLS LIMITED,09/01/2017,3721.26
Bath and North East Somerset Council,80656740,LM3,Residential Care,P11,Adult Social Care & Health,FARLEIGH SCHOOLS LIMITED,09/01/2017,4136
Bath and North East Somerset Council,80656740,LM3,Residential Care,P11,Adult Social Care & Health,FARLEIGH SCHOOLS LIMITED,09/01/2017,4228
Bath and North East Somerset Council,80656612,LM3,Residential Care,P11,Adult Social Care & Health,PONDSMEAD (SHEPTON MALLET) LIMITED,09/01/2017,904
Bath and North East Somerset Council,80656740,LM3,Residential Care,P11,Adult Social Care & Health,FARLEIGH SCHOOLS LIMITED,09/01/2017,5244
Bath and North East Somerset Council,80656740,LM3,Residential Care,P11,Adult Social Care & Health,FARLEIGH SCHOOLS LIMITED,09/01/2017,10505.85
Bath and North East Somerset Council,80656648,LM6,Nursing Care,P11,Adult Social Care & Health,FIR LAWN NURSING HOME LTD,09/01/2017,1718
Bath and North East Somerset Council,80656698,LM3,Residential Care,P11,Adult Social Care & Health,FLOLLIE INVESTMENTS LTD,09/01/2017,1400
Bath and North East Somerset Council,80656655,LM6,Nursing Care,P11,Adult Social Care & Health,FLOLLIE INVESTMENTS LTD T/A STANTON NURS,09/01/2017,1328
Bath and North East Somerset Council,80656663,XD3,Client Contributions,P11,Adult Social Care & Health,FOUR SEASONS EVEDALE LTD WHITCHURCH,09/01/2017,90.21
Bath and North East Somerset Council,80656663,XD2,Contributions,P11,Adult Social Care & Health,FOUR SEASONS EVEDALE LTD WHITCHURCH,09/01/2017,111.61
Bath and North East Somerset Council,80656663,LM6,Nursing Care,P11,Adult Social Care & Health,FOUR SEASONS EVEDALE LTD WHITCHURCH,09/01/2017,1152
Bath and North East Somerset Council,80656663,LM6,Nursing Care,P11,Adult Social Care & Health,FOUR SEASONS EVEDALE LTD WHITCHURCH,09/01/2017,1152
Bath and North East Somerset Council,80656663,LM6,Nursing Care,P11,Adult Social Care & Health,FOUR SEASONS EVEDALE LTD WHITCHURCH,09/01/2017,1152
Bath and North East Somerset Council,80656663,LM6,Nursing Care,P11,Adult Social Care & Health,FOUR SEASONS EVEDALE LTD WHITCHURCH,09/01/2017,1152
Bath and North East Somerset Council,80656294,LM6,Nursing Care,P11,Adult Social Care & Health,FOUR SEASONS EVEDALE LTD WHITCHURCH,09/01/2017,1600
Bath and North East Somerset Council,80656663,LM6,Nursing Care,P11,Adult Social Care & Health,FOUR SEASONS EVEDALE LTD WHITCHURCH,09/01/2017,1700
Bath and North East Somerset Council,80656663,LM6,Nursing Care,P11,Adult Social Care & Health,FOUR SEASONS EVEDALE LTD WHITCHURCH,09/01/2017,1700
Bath and North East Somerset Council,80656724,LM3,Residential Care,P11,Adult Social Care & Health,FREEWAYS TRUST LTD,09/01/2017,1532
Bath and North East Somerset Council,80656724,LM3,Residential Care,P11,Adult Social Care & Health,FREEWAYS TRUST LTD,09/01/2017,1976
Bath and North East Somerset Council,80656744,LM3,Residential Care,P11,Adult Social Care & Health,FSHC NEWCO 2 LTD: REDACTED,09/01/2017,904
Bath and North East Somerset Council,80656744,LM3,Residential Care,P11,Adult Social Care & Health,FSHC NEWCO 2 LTD: REDACTED,09/01/2017,904
Bath and North East Somerset Council,80656744,LM3,Residential Care,P11,Adult Social Care & Health,FSHC NEWCO 2 LTD: REDACTED,09/01/2017,904
Bath and North East Somerset Council,80656744,LM3,Residential Care,P11,Adult Social Care & Health,FSHC NEWCO 2 LTD: REDACTED,09/01/2017,904
Bath and North East Somerset Council,80656744,LM3,Residential Care,P11,Adult Social Care & Health,FSHC NEWCO 2 LTD: REDACTED,09/01/2017,904
Bath and North East Somerset Council,80656744,LM3,Residential Care,P11,Adult Social Care & Health,FSHC NEWCO 2 LTD: REDACTED,09/01/2017,992
Bath and North East Somerset Council,80656744,LM3,Residential Care,P11,Adult Social Care & Health,FSHC NEWCO 2 LTD: REDACTED,09/01/2017,1400
Bath and North East Somerset Council,80656744,LM3,Residential Care,P11,Adult Social Care & Health,FSHC NEWCO 2 LTD: REDACTED,09/01/2017,1414
Bath and North East Somerset Council,80656744,LM3,Residential Care,P11,Adult Social Care & Health,FSHC NEWCO 2 LTD: REDACTED,09/01/2017,1414
Bath and North East Somerset Council,80656744,LM3,Residential Care,P11,Adult Social Care & Health,FSHC NEWCO 2 LTD: REDACTED,09/01/2017,1600
Bath and North East Somerset Council,80656744,LM3,Residential Care,P11,Adult Social Care & Health,FSHC NEWCO 2 LTD: REDACTED,09/01/2017,1700
Bath and North East Somerset Council,80656422,LL8,Individualised Budget,P11,Adult Social Care & Health,REDACTED,09/01/2017,1968
Bath and North East Somerset Council,80656289,LM6,Nursing Care,P11,Adult Social Care & Health,GLENSIDE MANOR HEALTHCARE SERVICES LTD,09/01/2017,2802.86
Bath and North East Somerset Council,80656289,LM6,Nursing Care,P11,Adult Social Care & Health,GLENSIDE MANOR HEALTHCARE SERVICES LTD,09/01/2017,3022.52
Bath and North East Somerset Council,80656289,LM6,Nursing Care,P11,Adult Social Care & Health,GLENSIDE MANOR HEALTHCARE SERVICES LTD,09/01/2017,5518
Bath and North East Somerset Council,80656643,LM3,Residential Care,P11,Adult Social Care & Health,GLENSIDE MANOR HEALTHCARE SERVICES LTD,09/01/2017,6220.48
Bath and North East Somerset Council,80656675,LM6,Nursing Care,P11,Adult Social Care & Health,GRACEWELL HEALTHCARE LTD,09/01/2017,1940
Bath and North East Somerset Council,80656607,LM6,Nursing Care,P11,Adult Social Care & Health,GRAND CROSS LTD RE KINGSWOOD COURT,09/01/2017,1350
Bath and North East Somerset Council,10831232,LJ1,Consultants Fees,P10,Finance & Efficiency,WORKMAN LLP CLIENTS RE CLIENT COMMON RECEIPTS NO 4,09/01/2017,931.4
Bath and North East Somerset Council,10831799,LJ1,Consultants Fees,P09,Homes & Planning,ARCHITECTURE CENTRE DEVON AND CORNWALL,09/01/2017,931.8
Bath and North East Somerset Council,80656607,LM6,Nursing Care,P11,Adult Social Care & Health,GRAND CROSS LTD RE KINGSWOOD COURT,09/01/2017,1350
Bath and North East Somerset Council,80656699,LM3,Residential Care,P11,Adult Social Care & Health,GRAPEVINE CARE LTD,09/01/2017,5745.84
Bath and North East Somerset Council,10831698,LV2,Contributions to Organisations,P04,Leader,COMMUNITY @ 67,09/01/2017,938
Bath and North East Somerset Council,80656690,LM6,Nursing Care,P11,Adult Social Care & Health,GROVE CARE LTD,09/01/2017,1990
Bath and North East Somerset Council,80656759,LM9,Day Care,P11,Adult Social Care & Health,S.W.A.L.L.O.W. LTD,09/01/2017,943.32
Bath and North East Somerset Council,80656690,LM6,Nursing Care,P11,Adult Social Care & Health,GROVE CARE LTD,09/01/2017,2200
Bath and North East Somerset Council,80656743,XD3,Client Contributions,P11,Adult Social Care & Health,GROVE CARE LTD T/A ORIEL LODGE,09/01/2017,581.39
Bath and North East Somerset Council,80656743,LM3,Residential Care,P11,Adult Social Care & Health,GROVE CARE LTD T/A ORIEL LODGE,09/01/2017,1100
Bath and North East Somerset Council,80656743,LM3,Residential Care,P11,Adult Social Care & Health,GROVE CARE LTD T/A ORIEL LODGE,09/01/2017,1226
